Workbook

Sheet Home
H5: Welcome to the Pendulum Court!
H7: Use the Navigation Menu to the left to begin entering data

Sheet Current Prices
F5: Menu | G5: Price
F6: Feature | G6: 5.35 | I6: Other Fixed Data
F7: Soup | G7: 2.5 | I7: # of Seats in Dining Room | J7: 80
F8: Cold Plate | G8: 5 | I8: Equivalent Meal Factor | J8: =SUM(G6,G22,G10) -> 8.45
F9: Taco Salad | G9: 4.5
F10: Dessert | G10: 2.5
F11: Muffin | G11: 1.25
F12: Cookie | G12: 0.75
F14: A La Carte | G14: Price
F15: Entrée | G15: 3
F16: Vegetable | G16: 1
F17: Starch | G17: 1.35
F19: Misc Items | G19: Price
F20: Fruit | G20: 0.6
F21: Roll | G21: 0.6
F22: Soda | G22: 0.6
F23: Chocolate Milk | G23: 1
F24: 2% Milk | G24: 1
F25: Skim Milk | G25: 1
F26: V-8 Splash | G26: 1.5

Sheet Current Menu
E3: Pendulum Court Menu | K3: Backwards Menu for Weeks 4-6
F4: Monday | G4: Tuesday | H4: Wednesday | I4: Thursday | L4: Monday | M4: Tuesday | N4: Wednesday | O4: Thursday
F5: 1 | G5: 2 | H5: 3 | I5: 4 | L5: 1 | M5: 2 | N5: 3 | O5: 4
E6: Feature | F6: Chicken Puff Pastry | G6: Beef & Broccoli Stir Fry | H6: Macadamia Chicken | I6: Mediterranean Chicken Pasta | K6: Feature | L6: =I6 -> Mediterranean Chicken Pasta | M6: =H6 -> Macadamia Chicken | N6: =G6 -> Beef & Broccoli Stir Fry | O6: =F6 -> Chicken Puff Pastry
E7: Soup | F7: Taco Soup | G7: Chicken Pot Pie | H7: Lasagna Soup | I7: Broccoli Cheese Soup | K7: Soup | L7: Broccoli Cheese Soup | M7: Lasagna Soup | N7: Chicken Pot Pie | O7: Taco Soup
E8: Cold Plate | F8: Vermont Turkey Club w/Spinach | G8: Chicken & Berry Sensation | H8: Kansas City BBQ Pork Sandwhich | I8: BBQ Chicken Salad | K8: Cold Plate | L8: BBQ Chicken Salad | M8: Kansas City BBQ Pork Sandwhich | N8: Chicken & Berry Sensation | O8: Vermont Turkey Club w/Spinach
E9: Taco Salad | F9: Beef Taco Salad | G9: Beef Taco Salad | H9: Beef Taco Salad | I9: Beef Taco Salad | K9: Taco Salad | L9: Beef Taco Salad | M9: Beef Taco Salad | N9: Beef Taco Salad | O9: Beef Taco Salad
E10: Dessert | F10: Decadent Fudge Cake (÷ 12) | G10: Rasberry Buttermilk Pie Tart | H10: Pumpkin Streusel Pie (÷ 8) | I10: Fruit Pizza | K10: Dessert | L10: Fruit Pizza | M10: Pumpkin Streusel Pie (÷ 8) | N10: Rasberry Buttermilk Pie Tart | O10: Decadent Fudge Cake (÷ 12)
E11: Bread | F11: Cherry Chocolate Scone | G11: Carrot Muffin | H11: Lemon Poppy Seed Muffin | I11: Cranberry Orange Scone (÷ 10) | K11: Bread | L11: Cranberry Orange Scone (÷ 10) | M11: Lemon Poppy Seed Muffin | N11: Carrot Muffin | O11: Cherry Chocolate Scone
E12: Cookie | F12: Oatmeal Golden Raisin Cookie | G12: Peanut Butter Chocolate Chip Cookie | H12: Chewy Dbl Chocolate Mint Cookie | I12: Macaroon | K12: Cookie | L12: Macaroon | M12: Chewy Dbl Chocolate Mint Cookie | N12: Peanut Butter Chocolate Chip Cookie | O12: Oatmeal Golden Raisin Cookie
E13: Feature | F13: Russian Beef Stroganoff | G13: Moroccan Chicken | H13: Chicken & Spinach Calzone | I13: Cheddar Herb Cod | K13: Feature | L13: Cheddar Herb Cod | M13: Chicken & Spinach Calzone | N13: Moroccan Chicken | O13: Russian Beef Stroganoff
E14: Soup | F14: Vegetable Chili | G14: Hearty Wild Mushroom Soup | H14: Loaded Baked Potato Soup | I14: Chicken Enchilada Soup | K14: Soup | L14: Chicken Enchilada Soup | M14: Loaded Baked Potato Soup | N14: Hearty Wild Mushroom Soup | O14: Vegetable Chili
E15: Cold Plate | F15: Cajun Chicken Caesar Salad | G15: Turkey Bacon Ranch Sandwhich | H15: Gourmet Gouda & Beef Sandwhich | I15: Oriental Chicken & Mandarin Salad | K15: Cold Plate | L15: Oriental Chicken & Mandarin Salad | M15: Gourmet Gouda & Beef Sandwhich | N15: Turkey Bacon Ranch Sandwhich | O15: Cajun Chicken Caesar Salad
E16: Taco Salad | F16: Beef Taco Salad | G16: Beef Taco Salad | H16: Beef Taco Salad | I16: Beef Taco Salad | K16: Taco Salad | L16: Beef Taco Salad | M16: Beef Taco Salad | N16: Beef Taco Salad | O16: Beef Taco Salad
E17: Dessert | F17: Lemon Crepe with Rasberry Sauce | G17: Chocolate Rasberry Crème Torte (÷ 10) | H17: Chocolaty Peanut Butter Pie (÷ 6) | I17: Strawberry Shortcake (÷ 10) | K17: Dessert | L17: Strawberry Shortcake (÷ 10) | M17: Chocolaty Peanut Butter Pie (÷ 6) | N17: Chocolate Rasberry Crème Torte (÷ 10) | O17: Lemon Crepe with Rasberry Sauce
E18: Bread | F18: Home Style Cornbread Muffin | G18: Cheddar Chive Scone (÷ 10) | H18: Apple Muffin | I18: Golden Raisin Scone (÷ 10) | K18: Bread | L18: Golden Raisin Scone (÷ 10) | M18: Apple Muffin | N18: Cheddar Chive Scone (÷ 10) | O18: Home Style Cornbread Muffin
E19: Cookie | F19: Peanut Butter Choc Chip Cookie | G19: Chocolate Chip Cookie | H19: Toffee Oatmeal Cookie | I19: Chocolate Chip Cookie | K19: Cookie | L19: Chocolate Chip Cookie | M19: Toffee Oatmeal Cookie | N19: Chocolate Chip Cookie | O19: Peanut Butter Choc Chip Cookie
E20: Feature | F20: Monterey Chicken | G20: Baked Ziti | H20: Stuffed Bean Burrito | I20: Herb Crusted Chicken Breast | K20: Feature | L20: Herb Crusted Chicken Breast | M20: Stuffed Bean Burrito | N20: Baked Ziti | O20: Monterey Chicken
E21: Soup | F21: Black Bean Soup | G21: Chicken Cilantro Bisque | H21: Zuppa Tuscana Soup | I21: Tomato Florentine Soup | K21: Soup | L21: Tomato Florentine Soup | M21: Zuppa Tuscana Soup | N21: Chicken Cilantro Bisque | O21: Black Bean Soup
E22: Cold Plate | F22: Asian Lettuce Un-Wrapped Salad | G22: Grilled Cheese Sandwhich w/Tomato Soup | H22: Turkey & Swiss Crescent Sandwhich | I22: Tuscan Tuna Sandwhich | K22: Cold Plate | L22: Tuscan Tuna Sandwhich | M22: Turkey & Swiss Crescent Sandwhich | N22: Grilled Cheese Sandwhich w/Tomato Soup | O22: Asian Lettuce Un-Wrapped Salad
E23: Taco Salad | F23: Beef Taco Salad | G23: Beef Taco Salad | H23: Beef Taco Salad | I23: Beef Taco Salad | K23: Taco Salad | L23: Beef Taco Salad | M23: Beef Taco Salad | N23: Beef Taco Salad | O23: Beef Taco Salad
E24: Dessert | F24: Cheesecake Assortment | G24: Triple Chocolate Turnover | H24: Malted Chocolate Mousse Pie (÷ 6) | I24: Old Fashioned Peach Pie (÷ 8) | K24: Dessert | L24: Old Fashioned Peach Pie (÷ 8) | M24: Malted Chocolate Mousse Pie (÷ 6) | N24: Triple Chocolate Turnover | O24: Cheesecake Assortment
E25: Bread | F25: Pumpkin Chocolate Chip Muffin | G25: Chocolate Chip Sour Cream Muffin | H25: Almond Poppy Seed Scone | I25: Chocolate Avalanche Muffin | K25: Bread | L25: Chocolate Avalanche Muffin | M25: Almond Poppy Seed Scone | N25: Chocolate Chip Sour Cream Muffin | O25: Pumpkin Chocolate Chip Muffin
E26: Cookie | F26: Peanut Butter Chocolate Chip Cookie | G26: Toffee Oatmeal Cookie | H26: Chewy Double Chocolate Mint Cookie | I26: Oatmeal Golden Raisin Cookie | K26: Cookie | L26: Oatmeal Golden Raisin Cookie | M26: Chewy Double Chocolate Mint Cookie | N26: Toffee Oatmeal Cookie | O26: Peanut Butter Chocolate Chip Cookie
E28: Week Lookup Table
E29: Week | F29: Feature | G29: Soup | H29: Cold Plate | I29: Taco Salad | J29: Dessert | K29: Bread | L29: Cookie
E30: 1 | F30: 2 | G30: 3 | H30: 4 | I30: 5 | J30: 6 | K30: 7 | L30: 8
E31: 2 | F31: 9 | G31: 10 | H31: 11 | I31: 12 | J31: 13 | K31: 14 | L31: 15
E32: 3 | F32: 16 | G32: 17 | H32: 18 | I32: 19 | J32: 20 | K32: 21 | L32: 22
E33: 4 | F33: 2 | G33: 3 | H33: 4 | I33: 5 | J33: 6 | K33: 7 | L33: 8
E34: 5 | F34: 9 | G34: 10 | H34: 11 | I34: 12 | J34: 13 | K34: 14 | L34: 15
E35: 6 | F35: 16 | G35: 17 | H35: 18 | I35: 19 | J35: 20 | K35: 21 | L35: 22
E36: 7 | F36: 2 | G36: 3 | H36: 4 | I36: 5 | J36: 6 | K36: 7 | L36: 8
E37: 8 | F37: 9 | G37: 10 | H37: 11 | I37: 12 | J37: 13 | K37: 14 | L37: 15
E38: 9 | F38: 16 | G38: 17 | H38: 18 | I38: 19 | J38: 20 | K38: 21 | L38: 22

Sheet Week 1
F1: ü
Y2: Instructions
F3: ü
F4: ü | H4: Monday | L4: Tuesday | P4: Wednesday | T4: Thursday
H5: 1 | L5: 2 | P5: 3 | T5: 4
F6: ü | H6: Daily Production | L6: Daily Production | P6: Daily Production | T6: Daily Production
G7: Type | H7: Name of Menu Item | I7: # Prod. | J7: # Sold | K7: Type | L7: Name of Menu Item | M7: # Prod. | N7: # Sold | O7: Type | P7: Name of Menu Item | Q7: # Prod. | R7: # Sold | S7: Type | T7: Name of Menu Item | U7: # Prod. | V7: # Sold | X7: WeekLookup Reference
G8: ='Current Prices'!$F$6 -> Feature | H8: =IF(AND($E$13>=4,$E$13<=6),(HLOOKUP(H$5,ReverseMenu,VLOOKUP($E$13,WeekLookupTable,X8))),(HLOOKUP(H$5,CurrentMenu,VLOOKUP($E$13,WeekLookupTable,X8)))) -> Chicken Puff Pastry | I8: 0 | J8: 44 | K8: ='Current Prices'!$F$6 -> Feature | L8: =IF(AND($E$13>=4,$E$13<=6),(HLOOKUP(L$5,ReverseMenu,VLOOKUP($E$13,WeekLookupTable,X8))),(HLOOKUP(L$5,CurrentMenu,VLOOKUP($E$13,WeekLookupTable,X8)))) -> Beef & Broccoli Stir Fry | O8: ='Current Prices'!$F$6 -> Feature | P8: =IF(AND($E$13>=4,$E$13<=6),(HLOOKUP(P$5,ReverseMenu,VLOOKUP($E$13,WeekLookupTable,X8))),(HLOOKUP(P$5,CurrentMenu,VLOOKUP($E$13,WeekLookupTable,X8)))) -> Macadamia Chicken | S8: ='Current Prices'!$F$6 -> Feature | T8: =IF(AND($E$13>=4,$E$13<=6),(HLOOKUP(T$5,ReverseMenu,VLOOKUP($E$13,WeekLookupTable,X8))),(HLOOKUP(T$5,CurrentMenu,VLOOKUP($E$13,WeekLookupTable,X8)))) -> Mediterranean Chicken Pasta | X8: 2
G9: ='Current Prices'!$F$7 -> Soup | H9: Taco Soup | I9: 0 | J9: 33 | K9: ='Current Prices'!$F$7 -> Soup | L9: Chicken Pot Pie | O9: ='Current Prices'!$F$7 -> Soup | P9: Lasagna Soup | S9: ='Current Prices'!$F$7 -> Soup | T9: Broccoli Cheese Soup | X9: 3
G10: ='Current Prices'!$F$8 -> Cold Plate | H10: Vermont Turkey Club w/Spinach | I10: 0 | J10: 25 | K10: ='Current Prices'!$F$8 -> Cold Plate | L10: Chicken & Berry Sensation | O10: ='Current Prices'!$F$8 -> Cold Plate | P10: Kansas City BBQ Pork Sandwhich | S10: ='Current Prices'!$F$8 -> Cold Plate | T10: BBQ Chicken Salad | X10: 4
G11: ='Current Prices'!$F$9 -> Taco Salad | H11: Beef Taco Salad | I11: 0 | J11: 47 | K11: ='Current Prices'!$F$9 -> Taco Salad | L11: Beef Taco Salad | O11: ='Current Prices'!$F$9 -> Taco Salad | P11: Beef Taco Salad | S11: ='Current Prices'!$F$9 -> Taco Salad | T11: Beef Taco Salad | X11: 5
G12: ='Current Prices'!$F$10 -> Dessert | H12: Decadent Fudge Cake (÷ 12) | I12: 0 | J12: 43 | K12: ='Current Prices'!$F$10 -> Dessert | L12: Rasberry Buttermilk Pie Tart | O12: ='Current Prices'!$F$10 -> Dessert | P12: Pumpkin Streusel Pie (÷ 8) | S12: ='Current Prices'!$F$10 -> Dessert | T12: Fruit Pizza | X12: 6
D13: WEEK VLOOKUP = | E13: 1 | G13: ='Current Prices'!$F$11 -> Muffin | H13: Cherry Chocolate Scone | I13: 0 | J13: 65 | K13: ='Current Prices'!$F$11 -> Muffin | L13: Carrot Muffin | O13: ='Current Prices'!$F$11 -> Muffin | P13: Lemon Poppy Seed Muffin | S13: ='Current Prices'!$F$11 -> Muffin | T13: Cranberry Orange Scone (÷ 10) | X13: 7
G14: ='Current Prices'!$F$12 -> Cookie | H14: Oatmeal Golden Raisin Cookie | I14: 0 | J14: 44 | K14: ='Current Prices'!$F$12 -> Cookie | L14: Peanut Butter Chocolate Chip Cookie | O14: ='Current Prices'!$F$12 -> Cookie | P14: Chewy Dbl Chocolate Mint Cookie | S14: ='Current Prices'!$F$12 -> Cookie | T14: Macaroon | X14: 8
H15: There were 0 basic items produced and 301 basic items sold | L15: There were 0 basic items produced and 0 basic items sold | P15: There were 154 basic items produced and 122 basic items sold | T15: There were 154 basic items produced and 122 basic items sold
H17: Cashier Sheet | L17: Daily Sales | P17: Daily Sales | T17: Daily Sales | X17: Instructions:
G18: Type | H18: # Sold | I18: Price | J18: Total Sales | K18: Type | L18: # Sold | M18: Price | N18: Total Sales | O18: Type | P18: # Sold | Q18: Price | R18: Total Sales | S18: Type | T18: # Sold | U18: Price | V18: Total Sales | X18: This is the reference used to find which week to lookup in the menu
G19: ='Current Prices'!$F$6 -> Feature | H19: =IF(J8>0,J8,"") -> 44 | I19: ='Current Prices'!$G$6 -> 5.35 | J19: =IF(J8>0,(H19*I19),"") -> 235.4 | K19: ='Current Prices'!$F$6 -> Feature | L19: =IF(N8>0,N8,"") ->  | M19: ='Current Prices'!$G$6 -> 5.35 | N19: =IF(N8>0,(L19*M19),"") ->  | O19: ='Current Prices'!$F$6 -> Feature | P19: =IF(R8>0,R8,"") ->  | Q19: ='Current Prices'!$G$6 -> 5.35 | R19: =IF(R8>0,(P19*Q19),"") ->  | S19: ='Current Prices'!$F$6 -> Feature | T19: =IF(V8>0,V8,"") ->  | U19: ='Current Prices'!$G$6 -> 5.35 | V19: =IF(V8>0,(T19*U19),"") -> 
G20: ='Current Prices'!$F$8 -> Cold Plate | H20: =IF(J10>0,J10,"") -> 25 | I20: ='Current Prices'!$G$8 -> 5 | J20: =IF(J10>0,(H20*I20),"") -> 125 | K20: ='Current Prices'!$F$8 -> Cold Plate | L20: =IF(N10>0,N10,"") ->  | M20: ='Current Prices'!$G$8 -> 5 | N20: =IF(N10>0,(L20*M20),"") ->  | O20: ='Current Prices'!$F$8 -> Cold Plate | P20: =IF(R10>0,R10,"") ->  | Q20: ='Current Prices'!$G$8 -> 5 | R20: =IF(R10>0,(P20*Q20),"") ->  | S20: ='Current Prices'!$F$8 -> Cold Plate | T20: =IF(V10>0,V10,"") ->  | U20: ='Current Prices'!$G$8 -> 5 | V20: =IF(V10>0,(T20*U20),"") -> 
G21: ='Current Prices'!$F$9 -> Taco Salad | H21: =IF(J11>0,J11,"") -> 47 | I21: ='Current Prices'!$G$9 -> 4.5 | J21: =IF(J11>0,(H21*I21),"") -> 211.5 | K21: ='Current Prices'!$F$9 -> Taco Salad | L21: =IF(N11>0,N11,"") ->  | M21: ='Current Prices'!$G$9 -> 4.5 | N21: =IF(N11>0,(L21*M21),"") ->  | O21: ='Current Prices'!$F$9 -> Taco Salad | P21: =IF(R11>0,R11,"") ->  | Q21: ='Current Prices'!$G$9 -> 4.5 | R21: =IF(R11>0,(P21*Q21),"") ->  | S21: ='Current Prices'!$F$9 -> Taco Salad | T21: =IF(V11>0,V11,"") ->  | U21: ='Current Prices'!$G$9 -> 4.5 | V21: =IF(V11>0,(T21*U21),"") -> 
G22: ='Current Prices'!$F$7 -> Soup | H22: =IF(J9>0,J9,"") -> 33 | I22: ='Current Prices'!$G$7 -> 2.5 | J22: =IF(J9>0,(H22*I22),"") -> 82.5 | K22: ='Current Prices'!$F$7 -> Soup | L22: =IF(N9>0,N9,"") ->  | M22: ='Current Prices'!$G$7 -> 2.5 | N22: =IF(N9>0,(L22*M22),"") ->  | O22: ='Current Prices'!$F$7 -> Soup | P22: =IF(R9>0,R9,"") ->  | Q22: ='Current Prices'!$G$7 -> 2.5 | R22: =IF(R9>0,(P22*Q22),"") ->  | S22: ='Current Prices'!$F$7 -> Soup | T22: =IF(V9>0,V9,"") ->  | U22: ='Current Prices'!$G$7 -> 2.5 | V22: =IF(V9>0,(T22*U22),"") -> 
G23: ='Current Prices'!$F$10 -> Dessert | H23: =IF(J12>0,J12,"") -> 43 | I23: ='Current Prices'!$G$10 -> 2.5 | J23: =IF(J12>0,(H23*I23),"") -> 107.5 | K23: ='Current Prices'!$F$10 -> Dessert | L23: =IF(N12>0,N12,"") ->  | M23: ='Current Prices'!$G$10 -> 2.5 | N23: =IF(N12>0,(L23*M23),"") ->  | O23: ='Current Prices'!$F$10 -> Dessert | P23: =IF(R12>0,R12,"") ->  | Q23: ='Current Prices'!$G$10 -> 2.5 | R23: =IF(R12>0,(P23*Q23),"") ->  | S23: ='Current Prices'!$F$10 -> Dessert | T23: =IF(V12>0,V12,"") ->  | U23: ='Current Prices'!$G$10 -> 2.5 | V23: =IF(V12>0,(T23*U23),"") -> 
G24: ='Current Prices'!$F$11 -> Muffin | H24: =IF(J13>0,J13,"") -> 65 | I24: ='Current Prices'!$G$11 -> 1.25 | J24: =IF(J13>0,(H24*I24),"") -> 81.25 | K24: ='Current Prices'!$F$11 -> Muffin | L24: =IF(N13>0,N13,"") ->  | M24: ='Current Prices'!$G$11 -> 1.25 | N24: =IF(N13>0,(L24*M24),"") ->  | O24: ='Current Prices'!$F$11 -> Muffin | P24: =IF(R13>0,R13,"") ->  | Q24: ='Current Prices'!$G$11 -> 1.25 | R24: =IF(R13>0,(P24*Q24),"") ->  | S24: ='Current Prices'!$F$11 -> Muffin | T24: =IF(V13>0,V13,"") ->  | U24: ='Current Prices'!$G$11 -> 1.25 | V24: =IF(V13>0,(T24*U24),"") -> 
G25: ='Current Prices'!$F$12 -> Cookie | H25: =IF(J14>0,J14,"") -> 44 | I25: ='Current Prices'!$G$12 -> 0.75 | J25: =IF(J14>0,(H25*I25),"") -> 33 | K25: ='Current Prices'!$F$12 -> Cookie | L25: =IF(N14>0,N14,"") ->  | M25: ='Current Prices'!$G$12 -> 0.75 | N25: =IF(N14>0,(L25*M25),"") ->  | O25: ='Current Prices'!$F$12 -> Cookie | P25: =IF(R14>0,R14,"") ->  | Q25: ='Current Prices'!$G$12 -> 0.75 | R25: =IF(R14>0,(P25*Q25),"") ->  | S25: ='Current Prices'!$F$12 -> Cookie | T25: =IF(V14>0,V14,"") ->  | U25: ='Current Prices'!$G$12 -> 0.75 | V25: =IF(V14>0,(T25*U25),"") -> 
G27: A La Carte: | K27: A La Carte: | O27: A La Carte: | S27: A La Carte:
G28: ='Current Prices'!$F$15 -> Entrée | H28: 12 | I28: ='Current Prices'!$G$15 -> 3 | J28: =H28*I28 -> 36 | K28: ='Current Prices'!$F$15 -> Entrée | M28: ='Current Prices'!$G$15 -> 3 | N28: =L28*M28 -> 0 | O28: ='Current Prices'!$F$15 -> Entrée | Q28: ='Current Prices'!$G$15 -> 3 | R28: =P28*Q28 -> 0 | S28: ='Current Prices'!$F$15 -> Entrée | U28: ='Current Prices'!$G$15 -> 3 | V28: =T28*U28 -> 0
G29: ='Current Prices'!$F$16 -> Vegetable | H29: 6 | I29: ='Current Prices'!$G$16 -> 1 | J29: 6 | K29: ='Current Prices'!$F$16 -> Vegetable | M29: ='Current Prices'!$G$16 -> 1 | N29: =L29*M29 -> 0 | O29: ='Current Prices'!$F$16 -> Vegetable | Q29: ='Current Prices'!$G$16 -> 1 | R29: =P29*Q29 -> 0 | S29: ='Current Prices'!$F$16 -> Vegetable | U29: ='Current Prices'!$G$16 -> 1 | V29: =T29*U29 -> 0
G30: ='Current Prices'!$F$17 -> Starch | H30: 8 | I30: ='Current Prices'!$G$17 -> 1.35 | J30: 10.8 | K30: ='Current Prices'!$F$17 -> Starch | M30: ='Current Prices'!$G$17 -> 1.35 | N30: 0 | O30: ='Current Prices'!$F$17 -> Starch | Q30: ='Current Prices'!$G$17 -> 1.35 | R30: 0 | S30: ='Current Prices'!$F$17 -> Starch | U30: ='Current Prices'!$G$17 -> 1.35 | V30: 0
G32: Misc. Items: | K32: Misc. Items: | O32: Misc. Items: | S32: Misc. Items:
G33: ='Current Prices'!$F$20 -> Fruit | H33: 26 | I33: ='Current Prices'!$G$20 -> 0.6 | J33: =H33*I33 -> 15.6 | K33: ='Current Prices'!$F$20 -> Fruit | M33: ='Current Prices'!$G$20 -> 0.6 | N33: =L33*M33 -> 0 | O33: ='Current Prices'!$F$20 -> Fruit | Q33: ='Current Prices'!$G$20 -> 0.6 | R33: =P33*Q33 -> 0 | S33: ='Current Prices'!$F$20 -> Fruit | U33: ='Current Prices'!$G$20 -> 0.6 | V33: =T33*U33 -> 0
G34: ='Current Prices'!$F$21 -> Roll | H34: 22 | I34: ='Current Prices'!$G$21 -> 0.6 | J34: =H34*I34 -> 13.2 | K34: ='Current Prices'!$F$21 -> Roll | M34: ='Current Prices'!$G$21 -> 0.6 | N34: =L34*M34 -> 0 | O34: ='Current Prices'!$F$21 -> Roll | Q34: ='Current Prices'!$G$21 -> 0.6 | R34: =P34*Q34 -> 0 | S34: ='Current Prices'!$F$21 -> Roll | U34: ='Current Prices'!$G$21 -> 0.6 | V34: =T34*U34 -> 0
G35: ='Current Prices'!$F$22 -> Soda | H35: 15 | I35: ='Current Prices'!$G$22 -> 0.6 | J35: =H35*I35 -> 9 | K35: ='Current Prices'!$F$22 -> Soda | M35: ='Current Prices'!$G$22 -> 0.6 | N35: =L35*M35 -> 0 | O35: ='Current Prices'!$F$22 -> Soda | Q35: ='Current Prices'!$G$22 -> 0.6 | R35: =P35*Q35 -> 0 | S35: ='Current Prices'!$F$22 -> Soda | U35: ='Current Prices'!$G$22 -> 0.6 | V35: =T35*U35 -> 0
G36: ='Current Prices'!$F$23 -> Chocolate Milk | H36: 18 | I36: ='Current Prices'!$G$23 -> 1 | J36: =H36*I36 -> 18 | K36: ='Current Prices'!$F$23 -> Chocolate Milk | M36: ='Current Prices'!$G$23 -> 1 | N36: =L36*M36 -> 0 | O36: ='Current Prices'!$F$23 -> Chocolate Milk | Q36: ='Current Prices'!$G$23 -> 1 | R36: =P36*Q36 -> 0 | S36: ='Current Prices'!$F$23 -> Chocolate Milk | U36: ='Current Prices'!$G$23 -> 1 | V36: =T36*U36 -> 0
G37: ='Current Prices'!$F$24 -> 2% Milk | H37: 26 | I37: ='Current Prices'!$G$24 -> 1 | J37: =H37*I37 -> 26 | K37: ='Current Prices'!$F$24 -> 2% Milk | M37: ='Current Prices'!$G$24 -> 1 | N37: =L37*M37 -> 0 | O37: ='Current Prices'!$F$24 -> 2% Milk | Q37: ='Current Prices'!$G$24 -> 1 | R37: =P37*Q37 -> 0 | S37: ='Current Prices'!$F$24 -> 2% Milk | U37: ='Current Prices'!$G$24 -> 1 | V37: =T37*U37 -> 0
G38: ='Current Prices'!$F$25 -> Skim Milk | H38: 13 | I38: ='Current Prices'!$G$25 -> 1 | J38: 13 | K38: ='Current Prices'!$F$25 -> Skim Milk | M38: ='Current Prices'!$G$25 -> 1 | N38: 0 | O38: ='Current Prices'!$F$25 -> Skim Milk | Q38: ='Current Prices'!$G$25 -> 1 | R38: 0 | S38: ='Current Prices'!$F$25 -> Skim Milk | U38: ='Current Prices'!$G$25 -> 1 | V38: 0
G39: ='Current Prices'!$F$26 -> V-8 Splash | H39: 8 | I39: ='Current Prices'!$G$26 -> 1.5 | J39: 12 | K39: ='Current Prices'!$F$26 -> V-8 Splash | M39: ='Current Prices'!$G$26 -> 1.5 | N39: 0 | O39: ='Current Prices'!$F$26 -> V-8 Splash | Q39: ='Current Prices'!$G$26 -> 1.5 | R39: 0 | S39: ='Current Prices'!$F$26 -> V-8 Splash | U39: ='Current Prices'!$G$26 -> 1.5 | V39: 0
G40: Misc. | H40: 0 | I40: Misc. Income: | J40: 0 | K40: Misc. | M40: Misc. Income: | O40: Misc. | Q40: Misc. Income: | S40: Misc. | U40: Misc. Income:
H42: Subtotal of Net Income: | I42: 1035.75 | J42: =IF(ABS(I42-I53)>0,"DISCREPANCY","") ->  | L42: Subtotal of Net Income: | N42: =IF(ABS(M42-M53)>0,"DISCREPANCY","") ->  | P42: Subtotal of Net Income: | R42: =IF(ABS(Q42-Q53)>0,"DISCREPANCY","") ->  | T42: Subtotal of Net Income: | V42: =IF(ABS(U42-U53)>0,"DISCREPANCY","") -> 
H43: Minus Discount Meals: | I43: 35 | L43: Minus Discount Meals: | P43: Minus Discount Meals: | T43: Minus Discount Meals:
H44: Net Income: | I44: =I42-I43 -> 1000.75 | L44: Net Income: | M44: =M42-M43 -> 0 | P44: Net Income: | Q44: =Q42-Q43 -> 0 | T44: Net Income: | U44: =U42-U43 -> 0
H46: Number of Guests: | I46: 114 | L46: Number of Guests: | P46: Number of Guests: | T46: Number of Guests:
H47: There were 455 items sold with total sales of $1035.75 | L47: There were 215 items sold with total sales of $451.2 | P47: There were 215 items sold with total sales of $451.2 | T47: There were 215 items sold with total sales of $451.2
G52: DATA HIDDEN - USED FOR REPORTS | K52: DATA HIDDEN - USED FOR REPORTS | O52: DATA HIDDEN - USED FOR REPORTS | S52: DATA HIDDEN - USED FOR REPORTS
H53: Total Gross Sales: | I53: =SUM(J19:J40) -> 1035.75 | L53: Total Gross Sales: | M53: =SUM(N19:N40) -> 0 | P53: Total Gross Sales: | Q53: =SUM(R19:R40) -> 0 | T53: Total Gross Sales: | U53: =SUM(V19:V40) -> 0
H54: Total Items Sold: | I54: =SUM(H19:H40) -> 455 | L54: Total Sales Count: | M54: =SUM(L19:L40) -> 0 | P54: Total Sales Count: | Q54: =SUM(P19:P40) -> 0 | T54: Total Sales Count: | U54: =SUM(T19:T40) -> 0
H56: Equivalent Meals Served | I56: =I44/EquivalentMealFactor -> 118.4319527 | L56: Equivalent Meals Served | M56: =M44/EquivalentMealFactor -> 0 | P56: Equivalent Meals Served | Q56: =Q44/EquivalentMealFactor -> 0 | T56: Equivalent Meals Served | U56: =U44/EquivalentMealFactor -> 0
H57: Average Check: | I57: =I44/I46 -> 8.778508772 | L57: Average Check: | M57: =M44/M46 ->  | P57: Average Check: | Q57: =Q44/Q46 ->  | T57: Average Check: | U57: =U44/U46 -> 
H58: Seat Turnover: | I58: =I46/DiningRoomCapacity -> 1.425 | L58: Seat Turnover: | M58: =M46/DiningRoomCapacity -> 0 | P58: Seat Turnover: | Q58: =Q46/DiningRoomCapacity -> 0 | T58: Seat Turnover: | U58: =U46/DiningRoomCapacity -> 0
H60: Minutes Served: | I60: 100 | L60: Minutes Served: | M60: 70 | P60: Minutes Served: | Q60: 100 | T60: Minutes Served: | U60: 100
H61: Normal Minutes: | I61: 100 | L61: Normal Minutes: | M61: 100 | P61: Normal Minutes: | Q61: 100 | T61: Normal Minutes: | U61: 100
H63: Average Sales per Minute: | I63: =I44/I60 -> 10.0075 | L63: Average Sales per Minute: | M63: =M44/M60 -> 0 | P63: Average Sales per Minute: | Q63: =Q44/Q60 -> 0 | T63: Average Sales per Minute: | U63: =U44/U60 -> 0
H64: Normalized Sales: | I64: =I63*I61 -> 1000.75 | L64: Normalized Sales: | M64: =M63*M61 -> 0 | P64: Normalized Sales: | Q64: =Q63*Q61 -> 0 | T64: Normalized Sales: | U64: =U63*U61 -> 0
H66: Average Equivalent Meals per Minute: | I66: =I56/I60 -> 1.184319527 | L66: Average Equivalent Meals per Minute: | M66: =M56/M60 -> 0 | P66: Average Equivalent Meals per Minute: | Q66: =Q56/Q60 -> 0 | T66: Average Equivalent Meals per Minute: | U66: =U56/U60 -> 0
H67: Normalized Equivalent Meals: | I67: =I61*I66 -> 118.4319527 | L67: Normalized Equivalent Meals: | M67: =M61*M66 -> 0 | P67: Normalized Equivalent Meals: | Q67: =Q61*Q66 -> 0 | T67: Normalized Equivalent Meals: | U67: =U61*U66 -> 0
H69: Average Number of Checks per Minute: | I69: =I46/I60 -> 1.14 | L69: Average Number of Checks per Minute: | M69: =M46/M60 -> 0 | P69: Average Number of Checks per Minute: | Q69: =Q46/Q60 -> 0 | T69: Average Number of Checks per Minute: | U69: =U46/U60 -> 0
H70: Normalized Seat Turnover: | I70: =(I69*I61)/DiningRoomCapacity -> 1.425 | L70: Normalized Seat Turnover: | M70: =(M69*M61)/DiningRoomCapacity -> 0 | P70: Normalized Seat Turnover: | Q70: =(Q69*Q61)/DiningRoomCapacity -> 0 | T70: Normalized Seat Turnover: | U70: =(U69*U61)/DiningRoomCapacity -> 0

Sheet Week 2
F1: ü
Y2: Instructions
F3: ü
F4: ü | H4: Monday | L4: Tuesday | P4: Wednesday | T4: Thursday
H5: 1 | L5: 2 | P5: 3 | T5: 4
F6: ü | H6: Daily Production | L6: Daily Production | P6: Daily Production | T6: Daily Production
G7: Type | H7: Name of Menu Item | I7: # Prod. | J7: # Sold | K7: Type | L7: Name of Menu Item | M7: # Prod. | N7: # Sold | O7: Type | P7: Name of Menu Item | Q7: # Prod. | R7: # Sold | S7: Type | T7: Name of Menu Item | U7: # Prod. | V7: # Sold | X7: WeekLookup Reference
G8: ='Current Prices'!$F$6 -> Feature | H8: =IF(AND($E$13>=4,$E$13<=6),(HLOOKUP(H$5,ReverseMenu,VLOOKUP($E$13,WeekLookupTable,X8))),(HLOOKUP(H$5,CurrentMenu,VLOOKUP($E$13,WeekLookupTable,X8)))) -> Russian Beef Stroganoff | K8: ='Current Prices'!$F$6 -> Feature | L8: =IF(AND($E$13>=4,$E$13<=6),(HLOOKUP(L$5,ReverseMenu,VLOOKUP($E$13,WeekLookupTable,X8))),(HLOOKUP(L$5,CurrentMenu,VLOOKUP($E$13,WeekLookupTable,X8)))) -> Moroccan Chicken | O8: ='Current Prices'!$F$6 -> Feature | P8: =IF(AND($E$13>=4,$E$13<=6),(HLOOKUP(P$5,ReverseMenu,VLOOKUP($E$13,WeekLookupTable,X8))),(HLOOKUP(P$5,CurrentMenu,VLOOKUP($E$13,WeekLookupTable,X8)))) -> Chicken & Spinach Calzone | S8: ='Current Prices'!$F$6 -> Feature | T8: =IF(AND($E$13>=4,$E$13<=6),(HLOOKUP(T$5,ReverseMenu,VLOOKUP($E$13,WeekLookupTable,X8))),(HLOOKUP(T$5,CurrentMenu,VLOOKUP($E$13,WeekLookupTable,X8)))) -> Cheddar Herb Cod | X8: 2
G9: ='Current Prices'!$F$7 -> Soup | H9: Vegetable Chili | K9: ='Current Prices'!$F$7 -> Soup | L9: Hearty Wild Mushroom Soup | O9: ='Current Prices'!$F$7 -> Soup | P9: Loaded Baked Potato Soup | S9: ='Current Prices'!$F$7 -> Soup | T9: Chicken Enchilada Soup | X9: 3
G10: ='Current Prices'!$F$8 -> Cold Plate | H10: Cajun Chicken Caesar Salad | K10: ='Current Prices'!$F$8 -> Cold Plate | L10: Turkey Bacon Ranch Sandwhich | O10: ='Current Prices'!$F$8 -> Cold Plate | P10: Gourmet Gouda & Beef Sandwhich | S10: ='Current Prices'!$F$8 -> Cold Plate | T10: Oriental Chicken & Mandarin Salad | X10: 4
G11: ='Current Prices'!$F$9 -> Taco Salad | H11: Beef Taco Salad | K11: ='Current Prices'!$F$9 -> Taco Salad | L11: Beef Taco Salad | O11: ='Current Prices'!$F$9 -> Taco Salad | P11: Beef Taco Salad | S11: ='Current Prices'!$F$9 -> Taco Salad | T11: Beef Taco Salad | X11: 5
G12: ='Current Prices'!$F$10 -> Dessert | H12: Lemon Crepe with Rasberry Sauce | K12: ='Current Prices'!$F$10 -> Dessert | L12: Chocolate Rasberry Crème Torte (÷ 10) | O12: ='Current Prices'!$F$10 -> Dessert | P12: Chocolaty Peanut Butter Pie (÷ 6) | S12: ='Current Prices'!$F$10 -> Dessert | T12: Strawberry Shortcake (÷ 10) | X12: 6
D13: WEEK VLOOKUP = | E13: 2 | G13: ='Current Prices'!$F$11 -> Muffin | H13: Home Style Cornbread Muffin | K13: ='Current Prices'!$F$11 -> Muffin | L13: Cheddar Chive Scone (÷ 10) | O13: ='Current Prices'!$F$11 -> Muffin | P13: Apple Muffin | S13: ='Current Prices'!$F$11 -> Muffin | T13: Golden Raisin Scone (÷ 10) | X13: 7
G14: ='Current Prices'!$F$12 -> Cookie | H14: Peanut Butter Choc Chip Cookie | K14: ='Current Prices'!$F$12 -> Cookie | L14: Chocolate Chip Cookie | O14: ='Current Prices'!$F$12 -> Cookie | P14: Toffee Oatmeal Cookie | S14: ='Current Prices'!$F$12 -> Cookie | T14: Chocolate Chip Cookie | X14: 8
H15: There were 0 basic items produced and 0 basic items sold | L15: There were 0 basic items produced and 0 basic items sold | P15: There were 154 basic items produced and 122 basic items sold | T15: There were 154 basic items produced and 122 basic items sold
H17: Cashier Sheet | L17: Daily Sales | P17: Daily Sales | T17: Daily Sales | X17: Instructions:
G18: Type | H18: # Sold | I18: Price | J18: Total Sales | K18: Type | L18: # Sold | M18: Price | N18: Total Sales | O18: Type | P18: # Sold | Q18: Price | R18: Total Sales | S18: Type | T18: # Sold | U18: Price | V18: Total Sales | X18: This is the reference used to find which week to lookup in the menu
G19: ='Current Prices'!$F$6 -> Feature | H19: =IF(J8>0,J8,"") ->  | I19: ='Current Prices'!$G$6 -> 5.35 | J19: =IF(J8>0,(H19*I19),"") ->  | K19: ='Current Prices'!$F$6 -> Feature | L19: =IF(N8>0,N8,"") ->  | M19: ='Current Prices'!$G$6 -> 5.35 | N19: =IF(N8>0,(L19*M19),"") ->  | O19: ='Current Prices'!$F$6 -> Feature | P19: =IF(R8>0,R8,"") ->  | Q19: ='Current Prices'!$G$6 -> 5.35 | R19: =IF(R8>0,(P19*Q19),"") ->  | S19: ='Current Prices'!$F$6 -> Feature | T19: =IF(V8>0,V8,"") ->  | U19: ='Current Prices'!$G$6 -> 5.35 | V19: =IF(V8>0,(T19*U19),"") -> 
G20: ='Current Prices'!$F$8 -> Cold Plate | H20: =IF(J10>0,J10,"") ->  | I20: ='Current Prices'!$G$8 -> 5 | J20: =IF(J10>0,(H20*I20),"") ->  | K20: ='Current Prices'!$F$8 -> Cold Plate | L20: =IF(N10>0,N10,"") ->  | M20: ='Current Prices'!$G$8 -> 5 | N20: =IF(N10>0,(L20*M20),"") ->  | O20: ='Current Prices'!$F$8 -> Cold Plate | P20: =IF(R10>0,R10,"") ->  | Q20: ='Current Prices'!$G$8 -> 5 | R20: =IF(R10>0,(P20*Q20),"") ->  | S20: ='Current Prices'!$F$8 -> Cold Plate | T20: =IF(V10>0,V10,"") ->  | U20: ='Current Prices'!$G$8 -> 5 | V20: =IF(V10>0,(T20*U20),"") -> 
G21: ='Current Prices'!$F$9 -> Taco Salad | H21: =IF(J11>0,J11,"") ->  | I21: ='Current Prices'!$G$9 -> 4.5 | J21: =IF(J11>0,(H21*I21),"") ->  | K21: ='Current Prices'!$F$9 -> Taco Salad | L21: =IF(N11>0,N11,"") ->  | M21: ='Current Prices'!$G$9 -> 4.5 | N21: =IF(N11>0,(L21*M21),"") ->  | O21: ='Current Prices'!$F$9 -> Taco Salad | P21: =IF(R11>0,R11,"") ->  | Q21: ='Current Prices'!$G$9 -> 4.5 | R21: =IF(R11>0,(P21*Q21),"") ->  | S21: ='Current Prices'!$F$9 -> Taco Salad | T21: =IF(V11>0,V11,"") ->  | U21: ='Current Prices'!$G$9 -> 4.5 | V21: =IF(V11>0,(T21*U21),"") -> 
G22: ='Current Prices'!$F$7 -> Soup | H22: =IF(J9>0,J9,"") ->  | I22: ='Current Prices'!$G$7 -> 2.5 | J22: =IF(J9>0,(H22*I22),"") ->  | K22: ='Current Prices'!$F$7 -> Soup | L22: =IF(N9>0,N9,"") ->  | M22: ='Current Prices'!$G$7 -> 2.5 | N22: =IF(N9>0,(L22*M22),"") ->  | O22: ='Current Prices'!$F$7 -> Soup | P22: =IF(R9>0,R9,"") ->  | Q22: ='Current Prices'!$G$7 -> 2.5 | R22: =IF(R9>0,(P22*Q22),"") ->  | S22: ='Current Prices'!$F$7 -> Soup | T22: =IF(V9>0,V9,"") ->  | U22: ='Current Prices'!$G$7 -> 2.5 | V22: =IF(V9>0,(T22*U22),"") -> 
G23: ='Current Prices'!$F$10 -> Dessert | H23: =IF(J12>0,J12,"") ->  | I23: ='Current Prices'!$G$10 -> 2.5 | J23: =IF(J12>0,(H23*I23),"") ->  | K23: ='Current Prices'!$F$10 -> Dessert | L23: =IF(N12>0,N12,"") ->  | M23: ='Current Prices'!$G$10 -> 2.5 | N23: =IF(N12>0,(L23*M23),"") ->  | O23: ='Current Prices'!$F$10 -> Dessert | P23: =IF(R12>0,R12,"") ->  | Q23: ='Current Prices'!$G$10 -> 2.5 | R23: =IF(R12>0,(P23*Q23),"") ->  | S23: ='Current Prices'!$F$10 -> Dessert | T23: =IF(V12>0,V12,"") ->  | U23: ='Current Prices'!$G$10 -> 2.5 | V23: =IF(V12>0,(T23*U23),"") -> 
G24: ='Current Prices'!$F$11 -> Muffin | H24: =IF(J13>0,J13,"") ->  | I24: ='Current Prices'!$G$11 -> 1.25 | J24: =IF(J13>0,(H24*I24),"") ->  | K24: ='Current Prices'!$F$11 -> Muffin | L24: =IF(N13>0,N13,"") ->  | M24: ='Current Prices'!$G$11 -> 1.25 | N24: =IF(N13>0,(L24*M24),"") ->  | O24: ='Current Prices'!$F$11 -> Muffin | P24: =IF(R13>0,R13,"") ->  | Q24: ='Current Prices'!$G$11 -> 1.25 | R24: =IF(R13>0,(P24*Q24),"") ->  | S24: ='Current Prices'!$F$11 -> Muffin | T24: =IF(V13>0,V13,"") ->  | U24: ='Current Prices'!$G$11 -> 1.25 | V24: =IF(V13>0,(T24*U24),"") -> 
G25: ='Current Prices'!$F$12 -> Cookie | H25: =IF(J14>0,J14,"") ->  | I25: ='Current Prices'!$G$12 -> 0.75 | J25: =IF(J14>0,(H25*I25),"") ->  | K25: ='Current Prices'!$F$12 -> Cookie | L25: =IF(N14>0,N14,"") ->  | M25: ='Current Prices'!$G$12 -> 0.75 | N25: =IF(N14>0,(L25*M25),"") ->  | O25: ='Current Prices'!$F$12 -> Cookie | P25: =IF(R14>0,R14,"") ->  | Q25: ='Current Prices'!$G$12 -> 0.75 | R25: =IF(R14>0,(P25*Q25),"") ->  | S25: ='Current Prices'!$F$12 -> Cookie | T25: =IF(V14>0,V14,"") ->  | U25: ='Current Prices'!$G$12 -> 0.75 | V25: =IF(V14>0,(T25*U25),"") -> 
G27: A La Carte: | K27: A La Carte: | O27: A La Carte: | S27: A La Carte:
G28: ='Current Prices'!$F$15 -> Entrée | I28: ='Current Prices'!$G$15 -> 3 | J28: =H28*I28 -> 0 | K28: ='Current Prices'!$F$15 -> Entrée | M28: ='Current Prices'!$G$15 -> 3 | N28: =L28*M28 -> 0 | O28: ='Current Prices'!$F$15 -> Entrée | Q28: ='Current Prices'!$G$15 -> 3 | R28: =P28*Q28 -> 0 | S28: ='Current Prices'!$F$15 -> Entrée | U28: ='Current Prices'!$G$15 -> 3 | V28: =T28*U28 -> 0
G29: ='Current Prices'!$F$16 -> Vegetable | I29: ='Current Prices'!$G$16 -> 1 | J29: 0 | K29: ='Current Prices'!$F$16 -> Vegetable | M29: ='Current Prices'!$G$16 -> 1 | N29: =L29*M29 -> 0 | O29: ='Current Prices'!$F$16 -> Vegetable | Q29: ='Current Prices'!$G$16 -> 1 | R29: =P29*Q29 -> 0 | S29: ='Current Prices'!$F$16 -> Vegetable | U29: ='Current Prices'!$G$16 -> 1 | V29: =T29*U29 -> 0
G30: ='Current Prices'!$F$17 -> Starch | I30: ='Current Prices'!$G$17 -> 1.35 | J30: 0 | K30: ='Current Prices'!$F$17 -> Starch | M30: ='Current Prices'!$G$17 -> 1.35 | N30: 0 | O30: ='Current Prices'!$F$17 -> Starch | Q30: ='Current Prices'!$G$17 -> 1.35 | R30: 0 | S30: ='Current Prices'!$F$17 -> Starch | U30: ='Current Prices'!$G$17 -> 1.35 | V30: 0
G32: Misc. Items: | K32: Misc. Items: | O32: Misc. Items: | S32: Misc. Items:
G33: ='Current Prices'!$F$20 -> Fruit | I33: ='Current Prices'!$G$20 -> 0.6 | J33: =H33*I33 -> 0 | K33: ='Current Prices'!$F$20 -> Fruit | M33: ='Current Prices'!$G$20 -> 0.6 | N33: =L33*M33 -> 0 | O33: ='Current Prices'!$F$20 -> Fruit | Q33: ='Current Prices'!$G$20 -> 0.6 | R33: =P33*Q33 -> 0 | S33: ='Current Prices'!$F$20 -> Fruit | U33: ='Current Prices'!$G$20 -> 0.6 | V33: =T33*U33 -> 0
G34: ='Current Prices'!$F$21 -> Roll | I34: ='Current Prices'!$G$21 -> 0.6 | J34: =H34*I34 -> 0 | K34: ='Current Prices'!$F$21 -> Roll | M34: ='Current Prices'!$G$21 -> 0.6 | N34: =L34*M34 -> 0 | O34: ='Current Prices'!$F$21 -> Roll | Q34: ='Current Prices'!$G$21 -> 0.6 | R34: =P34*Q34 -> 0 | S34: ='Current Prices'!$F$21 -> Roll | U34: ='Current Prices'!$G$21 -> 0.6 | V34: =T34*U34 -> 0
G35: ='Current Prices'!$F$22 -> Soda | I35: ='Current Prices'!$G$22 -> 0.6 | J35: =H35*I35 -> 0 | K35: ='Current Prices'!$F$22 -> Soda | M35: ='Current Prices'!$G$22 -> 0.6 | N35: =L35*M35 -> 0 | O35: ='Current Prices'!$F$22 -> Soda | Q35: ='Current Prices'!$G$22 -> 0.6 | R35: =P35*Q35 -> 0 | S35: ='Current Prices'!$F$22 -> Soda | U35: ='Current Prices'!$G$22 -> 0.6 | V35: =T35*U35 -> 0
G36: ='Current Prices'!$F$23 -> Chocolate Milk | I36: ='Current Prices'!$G$23 -> 1 | J36: =H36*I36 -> 0 | K36: ='Current Prices'!$F$23 -> Chocolate Milk | M36: ='Current Prices'!$G$23 -> 1 | N36: =L36*M36 -> 0 | O36: ='Current Prices'!$F$23 -> Chocolate Milk | Q36: ='Current Prices'!$G$23 -> 1 | R36: =P36*Q36 -> 0 | S36: ='Current Prices'!$F$23 -> Chocolate Milk | U36: ='Current Prices'!$G$23 -> 1 | V36: =T36*U36 -> 0
G37: ='Current Prices'!$F$24 -> 2% Milk | I37: ='Current Prices'!$G$24 -> 1 | J37: =H37*I37 -> 0 | K37: ='Current Prices'!$F$24 -> 2% Milk | M37: ='Current Prices'!$G$24 -> 1 | N37: =L37*M37 -> 0 | O37: ='Current Prices'!$F$24 -> 2% Milk | Q37: ='Current Prices'!$G$24 -> 1 | R37: =P37*Q37 -> 0 | S37: ='Current Prices'!$F$24 -> 2% Milk | U37: ='Current Prices'!$G$24 -> 1 | V37: =T37*U37 -> 0
G38: ='Current Prices'!$F$25 -> Skim Milk | I38: ='Current Prices'!$G$25 -> 1 | J38: 0 | K38: ='Current Prices'!$F$25 -> Skim Milk | M38: ='Current Prices'!$G$25 -> 1 | N38: 0 | O38: ='Current Prices'!$F$25 -> Skim Milk | Q38: ='Current Prices'!$G$25 -> 1 | R38: 0 | S38: ='Current Prices'!$F$25 -> Skim Milk | U38: ='Current Prices'!$G$25 -> 1 | V38: 0
G39: ='Current Prices'!$F$26 -> V-8 Splash | I39: ='Current Prices'!$G$26 -> 1.5 | J39: 0 | K39: ='Current Prices'!$F$26 -> V-8 Splash | M39: ='Current Prices'!$G$26 -> 1.5 | N39: 0 | O39: ='Current Prices'!$F$26 -> V-8 Splash | Q39: ='Current Prices'!$G$26 -> 1.5 | R39: 0 | S39: ='Current Prices'!$F$26 -> V-8 Splash | U39: ='Current Prices'!$G$26 -> 1.5 | V39: 0
G40: Misc. | I40: Misc. Income: | K40: Misc. | M40: Misc. Income: | O40: Misc. | Q40: Misc. Income: | S40: Misc. | U40: Misc. Income:
H42: Subtotal of Net Income: | J42: =IF(ABS(I42-I53)>0,"DISCREPANCY","") ->  | L42: Subtotal of Net Income: | N42: =IF(ABS(M42-M53)>0,"DISCREPANCY","") ->  | P42: Subtotal of Net Income: | R42: =IF(ABS(Q42-Q53)>0,"DISCREPANCY","") ->  | T42: Subtotal of Net Income: | V42: =IF(ABS(U42-U53)>0,"DISCREPANCY","") -> 
H43: Minus Discount Meals: | L43: Minus Discount Meals: | P43: Minus Discount Meals: | T43: Minus Discount Meals:
H44: Net Income: | I44: =I42-I43 -> 0 | L44: Net Income: | M44: =M42-M43 -> 0 | P44: Net Income: | Q44: =Q42-Q43 -> 0 | T44: Net Income: | U44: =U42-U43 -> 0
H46: Number of Guests: | L46: Number of Guests: | P46: Number of Guests: | T46: Number of Guests:
H47: There were 18 items sold with total sales of $33.5 | L47: There were 215 items sold with total sales of $451.2 | P47: There were 215 items sold with total sales of $451.2 | T47: There were 215 items sold with total sales of $451.2
G52: DATA HIDDEN - USED FOR REPORTS | K52: DATA HIDDEN - USED FOR REPORTS | O52: DATA HIDDEN - USED FOR REPORTS | S52: DATA HIDDEN - USED FOR REPORTS
H53: Total Gross Sales: | I53: =SUM(J19:J40) -> 0 | L53: Total Gross Sales: | M53: =SUM(N19:N40) -> 0 | P53: Total Gross Sales: | Q53: =SUM(R19:R40) -> 0 | T53: Total Gross Sales: | U53: =SUM(V19:V40) -> 0
H54: Total Items Sold: | I54: =SUM(H19:H40) -> 0 | L54: Total Sales Count: | M54: =SUM(L19:L40) -> 0 | P54: Total Sales Count: | Q54: =SUM(P19:P40) -> 0 | T54: Total Sales Count: | U54: =SUM(T19:T40) -> 0
H56: Equivalent Meals Served | I56: =I44/EquivalentMealFactor -> 0 | L56: Equivalent Meals Served | M56: =M44/EquivalentMealFactor -> 0 | P56: Equivalent Meals Served | Q56: =Q44/EquivalentMealFactor -> 0 | T56: Equivalent Meals Served | U56: =U44/EquivalentMealFactor -> 0
H57: Average Check: | I57: =I44/I46 ->  | L57: Average Check: | M57: =M44/M46 ->  | P57: Average Check: | Q57: =Q44/Q46 ->  | T57: Average Check: | U57: =U44/U46 -> 
H58: Seat Turnover: | I58: =I46/DiningRoomCapacity -> 0 | L58: Seat Turnover: | M58: =M46/DiningRoomCapacity -> 0 | P58: Seat Turnover: | Q58: =Q46/DiningRoomCapacity -> 0 | T58: Seat Turnover: | U58: =U46/DiningRoomCapacity -> 0
H60: Minutes Served: | I60: 100 | L60: Minutes Served: | M60: 70 | P60: Minutes Served: | Q60: 100 | T60: Minutes Served: | U60: 100
H61: Normal Minutes: | I61: 100 | L61: Normal Minutes: | M61: 100 | P61: Normal Minutes: | Q61: 100 | T61: Normal Minutes: | U61: 100
H63: Average Sales per Minute: | I63: =I44/I60 -> 0 | L63: Average Sales per Minute: | M63: =M44/M60 -> 0 | P63: Average Sales per Minute: | Q63: =Q44/Q60 -> 0 | T63: Average Sales per Minute: | U63: =U44/U60 -> 0
H64: Normalized Sales: | I64: =I63*I61 -> 0 | L64: Normalized Sales: | M64: =M63*M61 -> 0 | P64: Normalized Sales: | Q64: =Q63*Q61 -> 0 | T64: Normalized Sales: | U64: =U63*U61 -> 0
H66: Average Equivalent Meals per Minute: | I66: =I56/I60 -> 0 | L66: Average Equivalent Meals per Minute: | M66: =M56/M60 -> 0 | P66: Average Equivalent Meals per Minute: | Q66: =Q56/Q60 -> 0 | T66: Average Equivalent Meals per Minute: | U66: =U56/U60 -> 0
H67: Normalized Equivalent Meals: | I67: =I61*I66 -> 0 | L67: Normalized Equivalent Meals: | M67: =M61*M66 -> 0 | P67: Normalized Equivalent Meals: | Q67: =Q61*Q66 -> 0 | T67: Normalized Equivalent Meals: | U67: =U61*U66 -> 0
H69: Average Number of Checks per Minute: | I69: =I46/I60 -> 0 | L69: Average Number of Checks per Minute: | M69: =M46/M60 -> 0 | P69: Average Number of Checks per Minute: | Q69: =Q46/Q60 -> 0 | T69: Average Number of Checks per Minute: | U69: =U46/U60 -> 0
H70: Normalized Seat Turnover: | I70: =(I69*I61)/DiningRoomCapacity -> 0 | L70: Normalized Seat Turnover: | M70: =(M69*M61)/DiningRoomCapacity -> 0 | P70: Normalized Seat Turnover: | Q70: =(Q69*Q61)/DiningRoomCapacity -> 0 | T70: Normalized Seat Turnover: | U70: =(U69*U61)/DiningRoomCapacity -> 0

Sheet Week 3
F1: ü
Y2: Instructions
F3: ü
F4: ü | H4: Monday | L4: Tuesday | P4: Wednesday | T4: Thursday
H5: 1 | L5: 2 | P5: 3 | T5: 4
F6: ü | H6: Daily Production | L6: Daily Production | P6: Daily Production | T6: Daily Production
G7: Type | H7: Name of Menu Item | I7: # Prod. | J7: # Sold | K7: Type | L7: Name of Menu Item | M7: # Prod. | N7: # Sold | O7: Type | P7: Name of Menu Item | Q7: # Prod. | R7: # Sold | S7: Type | T7: Name of Menu Item | U7: # Prod. | V7: # Sold | X7: WeekLookup Reference
G8: ='Current Prices'!$F$6 -> Feature | H8: =IF(AND($E$13>=4,$E$13<=6),(HLOOKUP(H$5,ReverseMenu,VLOOKUP($E$13,WeekLookupTable,X8))),(HLOOKUP(H$5,CurrentMenu,VLOOKUP($E$13,WeekLookupTable,X8)))) -> Monterey Chicken | K8: ='Current Prices'!$F$6 -> Feature | L8: =IF(AND($E$13>=4,$E$13<=6),(HLOOKUP(L$5,ReverseMenu,VLOOKUP($E$13,WeekLookupTable,X8))),(HLOOKUP(L$5,CurrentMenu,VLOOKUP($E$13,WeekLookupTable,X8)))) -> Baked Ziti | O8: ='Current Prices'!$F$6 -> Feature | P8: =IF(AND($E$13>=4,$E$13<=6),(HLOOKUP(P$5,ReverseMenu,VLOOKUP($E$13,WeekLookupTable,X8))),(HLOOKUP(P$5,CurrentMenu,VLOOKUP($E$13,WeekLookupTable,X8)))) -> Stuffed Bean Burrito | S8: ='Current Prices'!$F$6 -> Feature | T8: =IF(AND($E$13>=4,$E$13<=6),(HLOOKUP(T$5,ReverseMenu,VLOOKUP($E$13,WeekLookupTable,X8))),(HLOOKUP(T$5,CurrentMenu,VLOOKUP($E$13,WeekLookupTable,X8)))) -> Herb Crusted Chicken Breast | X8: 2
G9: ='Current Prices'!$F$7 -> Soup | H9: Black Bean Soup | K9: ='Current Prices'!$F$7 -> Soup | L9: Chicken Cilantro Bisque | O9: ='Current Prices'!$F$7 -> Soup | P9: Zuppa Tuscana Soup | S9: ='Current Prices'!$F$7 -> Soup | T9: Tomato Florentine Soup | X9: 3
G10: ='Current Prices'!$F$8 -> Cold Plate | H10: Asian Lettuce Un-Wrapped Salad | K10: ='Current Prices'!$F$8 -> Cold Plate | L10: Grilled Cheese Sandwhich w/Tomato Soup | O10: ='Current Prices'!$F$8 -> Cold Plate | P10: Turkey & Swiss Crescent Sandwhich | S10: ='Current Prices'!$F$8 -> Cold Plate | T10: Tuscan Tuna Sandwhich | X10: 4
G11: ='Current Prices'!$F$9 -> Taco Salad | H11: Beef Taco Salad | K11: ='Current Prices'!$F$9 -> Taco Salad | L11: Beef Taco Salad | O11: ='Current Prices'!$F$9 -> Taco Salad | P11: Beef Taco Salad | S11: ='Current Prices'!$F$9 -> Taco Salad | T11: Beef Taco Salad | X11: 5
G12: ='Current Prices'!$F$10 -> Dessert | H12: Cheesecake Assortment | K12: ='Current Prices'!$F$10 -> Dessert | L12: Triple Chocolate Turnover | O12: ='Current Prices'!$F$10 -> Dessert | P12: Malted Chocolate Mousse Pie (÷ 6) | S12: ='Current Prices'!$F$10 -> Dessert | T12: Old Fashioned Peach Pie (÷ 8) | X12: 6
D13: WEEK VLOOKUP = | E13: 3 | G13: ='Current Prices'!$F$11 -> Muffin | H13: Pumpkin Chocolate Chip Muffin | K13: ='Current Prices'!$F$11 -> Muffin | L13: Chocolate Chip Sour Cream Muffin | O13: ='Current Prices'!$F$11 -> Muffin | P13: Almond Poppy Seed Scone | S13: ='Current Prices'!$F$11 -> Muffin | T13: Chocolate Avalanche Muffin | X13: 7
G14: ='Current Prices'!$F$12 -> Cookie | H14: Peanut Butter Chocolate Chip Cookie | K14: ='Current Prices'!$F$12 -> Cookie | L14: Toffee Oatmeal Cookie | O14: ='Current Prices'!$F$12 -> Cookie | P14: Chewy Double Chocolate Mint Cookie | S14: ='Current Prices'!$F$12 -> Cookie | T14: Oatmeal Golden Raisin Cookie | X14: 8
H15: There were 0 basic items produced and 0 basic items sold | L15: There were 0 basic items produced and 0 basic items sold | P15: There were 154 basic items produced and 122 basic items sold | T15: There were 154 basic items produced and 122 basic items sold
H17: Cashier Sheet | L17: Daily Sales | P17: Daily Sales | T17: Daily Sales | X17: Instructions:
G18: Type | H18: # Sold | I18: Price | J18: Total Sales | K18: Type | L18: # Sold | M18: Price | N18: Total Sales | O18: Type | P18: # Sold | Q18: Price | R18: Total Sales | S18: Type | T18: # Sold | U18: Price | V18: Total Sales | X18: This is the reference used to find which week to lookup in the menu
G19: ='Current Prices'!$F$6 -> Feature | H19: =IF(J8>0,J8,"") ->  | I19: ='Current Prices'!$G$6 -> 5.35 | J19: =IF(J8>0,(H19*I19),"") ->  | K19: ='Current Prices'!$F$6 -> Feature | L19: =IF(N8>0,N8,"") ->  | M19: ='Current Prices'!$G$6 -> 5.35 | N19: =IF(N8>0,(L19*M19),"") ->  | O19: ='Current Prices'!$F$6 -> Feature | P19: =IF(R8>0,R8,"") ->  | Q19: ='Current Prices'!$G$6 -> 5.35 | R19: =IF(R8>0,(P19*Q19),"") ->  | S19: ='Current Prices'!$F$6 -> Feature | T19: =IF(V8>0,V8,"") ->  | U19: ='Current Prices'!$G$6 -> 5.35 | V19: =IF(V8>0,(T19*U19),"") -> 
G20: ='Current Prices'!$F$8 -> Cold Plate | H20: =IF(J10>0,J10,"") ->  | I20: ='Current Prices'!$G$8 -> 5 | J20: =IF(J10>0,(H20*I20),"") ->  | K20: ='Current Prices'!$F$8 -> Cold Plate | L20: =IF(N10>0,N10,"") ->  | M20: ='Current Prices'!$G$8 -> 5 | N20: =IF(N10>0,(L20*M20),"") ->  | O20: ='Current Prices'!$F$8 -> Cold Plate | P20: =IF(R10>0,R10,"") ->  | Q20: ='Current Prices'!$G$8 -> 5 | R20: =IF(R10>0,(P20*Q20),"") ->  | S20: ='Current Prices'!$F$8 -> Cold Plate | T20: =IF(V10>0,V10,"") ->  | U20: ='Current Prices'!$G$8 -> 5 | V20: =IF(V10>0,(T20*U20),"") -> 
G21: ='Current Prices'!$F$9 -> Taco Salad | H21: =IF(J11>0,J11,"") ->  | I21: ='Current Prices'!$G$9 -> 4.5 | J21: =IF(J11>0,(H21*I21),"") ->  | K21: ='Current Prices'!$F$9 -> Taco Salad | L21: =IF(N11>0,N11,"") ->  | M21: ='Current Prices'!$G$9 -> 4.5 | N21: =IF(N11>0,(L21*M21),"") ->  | O21: ='Current Prices'!$F$9 -> Taco Salad | P21: =IF(R11>0,R11,"") ->  | Q21: ='Current Prices'!$G$9 -> 4.5 | R21: =IF(R11>0,(P21*Q21),"") ->  | S21: ='Current Prices'!$F$9 -> Taco Salad | T21: =IF(V11>0,V11,"") ->  | U21: ='Current Prices'!$G$9 -> 4.5 | V21: =IF(V11>0,(T21*U21),"") -> 
G22: ='Current Prices'!$F$7 -> Soup | H22: =IF(J9>0,J9,"") ->  | I22: ='Current Prices'!$G$7 -> 2.5 | J22: =IF(J9>0,(H22*I22),"") ->  | K22: ='Current Prices'!$F$7 -> Soup | L22: =IF(N9>0,N9,"") ->  | M22: ='Current Prices'!$G$7 -> 2.5 | N22: =IF(N9>0,(L22*M22),"") ->  | O22: ='Current Prices'!$F$7 -> Soup | P22: =IF(R9>0,R9,"") ->  | Q22: ='Current Prices'!$G$7 -> 2.5 | R22: =IF(R9>0,(P22*Q22),"") ->  | S22: ='Current Prices'!$F$7 -> Soup | T22: =IF(V9>0,V9,"") ->  | U22: ='Current Prices'!$G$7 -> 2.5 | V22: =IF(V9>0,(T22*U22),"") -> 
G23: ='Current Prices'!$F$10 -> Dessert | H23: =IF(J12>0,J12,"") ->  | I23: ='Current Prices'!$G$10 -> 2.5 | J23: =IF(J12>0,(H23*I23),"") ->  | K23: ='Current Prices'!$F$10 -> Dessert | L23: =IF(N12>0,N12,"") ->  | M23: ='Current Prices'!$G$10 -> 2.5 | N23: =IF(N12>0,(L23*M23),"") ->  | O23: ='Current Prices'!$F$10 -> Dessert | P23: =IF(R12>0,R12,"") ->  | Q23: ='Current Prices'!$G$10 -> 2.5 | R23: =IF(R12>0,(P23*Q23),"") ->  | S23: ='Current Prices'!$F$10 -> Dessert | T23: =IF(V12>0,V12,"") ->  | U23: ='Current Prices'!$G$10 -> 2.5 | V23: =IF(V12>0,(T23*U23),"") -> 
G24: ='Current Prices'!$F$11 -> Muffin | H24: =IF(J13>0,J13,"") ->  | I24: ='Current Prices'!$G$11 -> 1.25 | J24: =IF(J13>0,(H24*I24),"") ->  | K24: ='Current Prices'!$F$11 -> Muffin | L24: =IF(N13>0,N13,"") ->  | M24: ='Current Prices'!$G$11 -> 1.25 | N24: =IF(N13>0,(L24*M24),"") ->  | O24: ='Current Prices'!$F$11 -> Muffin | P24: =IF(R13>0,R13,"") ->  | Q24: ='Current Prices'!$G$11 -> 1.25 | R24: =IF(R13>0,(P24*Q24),"") ->  | S24: ='Current Prices'!$F$11 -> Muffin | T24: =IF(V13>0,V13,"") ->  | U24: ='Current Prices'!$G$11 -> 1.25 | V24: =IF(V13>0,(T24*U24),"") -> 
G25: ='Current Prices'!$F$12 -> Cookie | H25: =IF(J14>0,J14,"") ->  | I25: ='Current Prices'!$G$12 -> 0.75 | J25: =IF(J14>0,(H25*I25),"") ->  | K25: ='Current Prices'!$F$12 -> Cookie | L25: =IF(N14>0,N14,"") ->  | M25: ='Current Prices'!$G$12 -> 0.75 | N25: =IF(N14>0,(L25*M25),"") ->  | O25: ='Current Prices'!$F$12 -> Cookie | P25: =IF(R14>0,R14,"") ->  | Q25: ='Current Prices'!$G$12 -> 0.75 | R25: =IF(R14>0,(P25*Q25),"") ->  | S25: ='Current Prices'!$F$12 -> Cookie | T25: =IF(V14>0,V14,"") ->  | U25: ='Current Prices'!$G$12 -> 0.75 | V25: =IF(V14>0,(T25*U25),"") -> 
G27: A La Carte: | K27: A La Carte: | O27: A La Carte: | S27: A La Carte:
G28: ='Current Prices'!$F$15 -> Entrée | I28: ='Current Prices'!$G$15 -> 3 | J28: =H28*I28 -> 0 | K28: ='Current Prices'!$F$15 -> Entrée | M28: ='Current Prices'!$G$15 -> 3 | N28: =L28*M28 -> 0 | O28: ='Current Prices'!$F$15 -> Entrée | Q28: ='Current Prices'!$G$15 -> 3 | R28: =P28*Q28 -> 0 | S28: ='Current Prices'!$F$15 -> Entrée | U28: ='Current Prices'!$G$15 -> 3 | V28: =T28*U28 -> 0
G29: ='Current Prices'!$F$16 -> Vegetable | I29: ='Current Prices'!$G$16 -> 1 | J29: 0 | K29: ='Current Prices'!$F$16 -> Vegetable | M29: ='Current Prices'!$G$16 -> 1 | N29: =L29*M29 -> 0 | O29: ='Current Prices'!$F$16 -> Vegetable | Q29: ='Current Prices'!$G$16 -> 1 | R29: =P29*Q29 -> 0 | S29: ='Current Prices'!$F$16 -> Vegetable | U29: ='Current Prices'!$G$16 -> 1 | V29: =T29*U29 -> 0
G30: ='Current Prices'!$F$17 -> Starch | I30: ='Current Prices'!$G$17 -> 1.35 | J30: 0 | K30: ='Current Prices'!$F$17 -> Starch | M30: ='Current Prices'!$G$17 -> 1.35 | N30: 0 | O30: ='Current Prices'!$F$17 -> Starch | Q30: ='Current Prices'!$G$17 -> 1.35 | R30: 0 | S30: ='Current Prices'!$F$17 -> Starch | U30: ='Current Prices'!$G$17 -> 1.35 | V30: 0
G32: Misc. Items: | K32: Misc. Items: | O32: Misc. Items: | S32: Misc. Items:
G33: ='Current Prices'!$F$20 -> Fruit | I33: ='Current Prices'!$G$20 -> 0.6 | J33: =H33*I33 -> 0 | K33: ='Current Prices'!$F$20 -> Fruit | M33: ='Current Prices'!$G$20 -> 0.6 | N33: =L33*M33 -> 0 | O33: ='Current Prices'!$F$20 -> Fruit | Q33: ='Current Prices'!$G$20 -> 0.6 | R33: =P33*Q33 -> 0 | S33: ='Current Prices'!$F$20 -> Fruit | U33: ='Current Prices'!$G$20 -> 0.6 | V33: =T33*U33 -> 0
G34: ='Current Prices'!$F$21 -> Roll | I34: ='Current Prices'!$G$21 -> 0.6 | J34: =H34*I34 -> 0 | K34: ='Current Prices'!$F$21 -> Roll | M34: ='Current Prices'!$G$21 -> 0.6 | N34: =L34*M34 -> 0 | O34: ='Current Prices'!$F$21 -> Roll | Q34: ='Current Prices'!$G$21 -> 0.6 | R34: =P34*Q34 -> 0 | S34: ='Current Prices'!$F$21 -> Roll | U34: ='Current Prices'!$G$21 -> 0.6 | V34: =T34*U34 -> 0
G35: ='Current Prices'!$F$22 -> Soda | I35: ='Current Prices'!$G$22 -> 0.6 | J35: =H35*I35 -> 0 | K35: ='Current Prices'!$F$22 -> Soda | M35: ='Current Prices'!$G$22 -> 0.6 | N35: =L35*M35 -> 0 | O35: ='Current Prices'!$F$22 -> Soda | Q35: ='Current Prices'!$G$22 -> 0.6 | R35: =P35*Q35 -> 0 | S35: ='Current Prices'!$F$22 -> Soda | U35: ='Current Prices'!$G$22 -> 0.6 | V35: =T35*U35 -> 0
G36: ='Current Prices'!$F$23 -> Chocolate Milk | I36: ='Current Prices'!$G$23 -> 1 | J36: =H36*I36 -> 0 | K36: ='Current Prices'!$F$23 -> Chocolate Milk | M36: ='Current Prices'!$G$23 -> 1 | N36: =L36*M36 -> 0 | O36: ='Current Prices'!$F$23 -> Chocolate Milk | Q36: ='Current Prices'!$G$23 -> 1 | R36: =P36*Q36 -> 0 | S36: ='Current Prices'!$F$23 -> Chocolate Milk | U36: ='Current Prices'!$G$23 -> 1 | V36: =T36*U36 -> 0
G37: ='Current Prices'!$F$24 -> 2% Milk | I37: ='Current Prices'!$G$24 -> 1 | J37: =H37*I37 -> 0 | K37: ='Current Prices'!$F$24 -> 2% Milk | M37: ='Current Prices'!$G$24 -> 1 | N37: =L37*M37 -> 0 | O37: ='Current Prices'!$F$24 -> 2% Milk | Q37: ='Current Prices'!$G$24 -> 1 | R37: =P37*Q37 -> 0 | S37: ='Current Prices'!$F$24 -> 2% Milk | U37: ='Current Prices'!$G$24 -> 1 | V37: =T37*U37 -> 0
G38: ='Current Prices'!$F$25 -> Skim Milk | I38: ='Current Prices'!$G$25 -> 1 | J38: 0 | K38: ='Current Prices'!$F$25 -> Skim Milk | M38: ='Current Prices'!$G$25 -> 1 | N38: 0 | O38: ='Current Prices'!$F$25 -> Skim Milk | Q38: ='Current Prices'!$G$25 -> 1 | R38: 0 | S38: ='Current Prices'!$F$25 -> Skim Milk | U38: ='Current Prices'!$G$25 -> 1 | V38: 0
G39: ='Current Prices'!$F$26 -> V-8 Splash | I39: ='Current Prices'!$G$26 -> 1.5 | J39: 0 | K39: ='Current Prices'!$F$26 -> V-8 Splash | M39: ='Current Prices'!$G$26 -> 1.5 | N39: 0 | O39: ='Current Prices'!$F$26 -> V-8 Splash | Q39: ='Current Prices'!$G$26 -> 1.5 | R39: 0 | S39: ='Current Prices'!$F$26 -> V-8 Splash | U39: ='Current Prices'!$G$26 -> 1.5 | V39: 0
G40: Misc. | I40: Misc. Income: | K40: Misc. | M40: Misc. Income: | O40: Misc. | Q40: Misc. Income: | S40: Misc. | U40: Misc. Income:
H42: Subtotal of Net Income: | J42: =IF(ABS(I42-I53)>0,"DISCREPANCY","") ->  | L42: Subtotal of Net Income: | N42: =IF(ABS(M42-M53)>0,"DISCREPANCY","") ->  | P42: Subtotal of Net Income: | R42: =IF(ABS(Q42-Q53)>0,"DISCREPANCY","") ->  | T42: Subtotal of Net Income: | V42: =IF(ABS(U42-U53)>0,"DISCREPANCY","") -> 
H43: Minus Discount Meals: | L43: Minus Discount Meals: | P43: Minus Discount Meals: | T43: Minus Discount Meals:
H44: Net Income: | I44: =I42-I43 -> 0 | L44: Net Income: | M44: =M42-M43 -> 0 | P44: Net Income: | Q44: =Q42-Q43 -> 0 | T44: Net Income: | U44: =U42-U43 -> 0
H46: Number of Guests: | L46: Number of Guests: | P46: Number of Guests: | T46: Number of Guests:
H47: There were 18 items sold with total sales of $33.5 | L47: There were 215 items sold with total sales of $451.2 | P47: There were 215 items sold with total sales of $451.2 | T47: There were 215 items sold with total sales of $451.2
G52: DATA HIDDEN - USED FOR REPORTS | K52: DATA HIDDEN - USED FOR REPORTS | O52: DATA HIDDEN - USED FOR REPORTS | S52: DATA HIDDEN - USED FOR REPORTS
H53: Total Gross Sales: | I53: =SUM(J19:J40) -> 0 | L53: Total Gross Sales: | M53: =SUM(N19:N40) -> 0 | P53: Total Gross Sales: | Q53: =SUM(R19:R40) -> 0 | T53: Total Gross Sales: | U53: =SUM(V19:V40) -> 0
H54: Total Items Sold: | I54: =SUM(H19:H40) -> 0 | L54: Total Sales Count: | M54: =SUM(L19:L40) -> 0 | P54: Total Sales Count: | Q54: =SUM(P19:P40) -> 0 | T54: Total Sales Count: | U54: =SUM(T19:T40) -> 0
H56: Equivalent Meals Served | I56: =I44/EquivalentMealFactor -> 0 | L56: Equivalent Meals Served | M56: =M44/EquivalentMealFactor -> 0 | P56: Equivalent Meals Served | Q56: =Q44/EquivalentMealFactor -> 0 | T56: Equivalent Meals Served | U56: =U44/EquivalentMealFactor -> 0
H57: Average Check: | I57: =I44/I46 ->  | L57: Average Check: | M57: =M44/M46 ->  | P57: Average Check: | Q57: =Q44/Q46 ->  | T57: Average Check: | U57: =U44/U46 -> 
H58: Seat Turnover: | I58: =I46/DiningRoomCapacity -> 0 | L58: Seat Turnover: | M58: =M46/DiningRoomCapacity -> 0 | P58: Seat Turnover: | Q58: =Q46/DiningRoomCapacity -> 0 | T58: Seat Turnover: | U58: =U46/DiningRoomCapacity -> 0
H60: Minutes Served: | I60: 100 | L60: Minutes Served: | M60: 70 | P60: Minutes Served: | Q60: 100 | T60: Minutes Served: | U60: 100
H61: Normal Minutes: | I61: 100 | L61: Normal Minutes: | M61: 100 | P61: Normal Minutes: | Q61: 100 | T61: Normal Minutes: | U61: 100
H63: Average Sales per Minute: | I63: =I44/I60 -> 0 | L63: Average Sales per Minute: | M63: =M44/M60 -> 0 | P63: Average Sales per Minute: | Q63: =Q44/Q60 -> 0 | T63: Average Sales per Minute: | U63: =U44/U60 -> 0
H64: Normalized Sales: | I64: =I63*I61 -> 0 | L64: Normalized Sales: | M64: =M63*M61 -> 0 | P64: Normalized Sales: | Q64: =Q63*Q61 -> 0 | T64: Normalized Sales: | U64: =U63*U61 -> 0
H66: Average Equivalent Meals per Minute: | I66: =I56/I60 -> 0 | L66: Average Equivalent Meals per Minute: | M66: =M56/M60 -> 0 | P66: Average Equivalent Meals per Minute: | Q66: =Q56/Q60 -> 0 | T66: Average Equivalent Meals per Minute: | U66: =U56/U60 -> 0
H67: Normalized Equivalent Meals: | I67: =I61*I66 -> 0 | L67: Normalized Equivalent Meals: | M67: =M61*M66 -> 0 | P67: Normalized Equivalent Meals: | Q67: =Q61*Q66 -> 0 | T67: Normalized Equivalent Meals: | U67: =U61*U66 -> 0
H69: Average Number of Checks per Minute: | I69: =I46/I60 -> 0 | L69: Average Number of Checks per Minute: | M69: =M46/M60 -> 0 | P69: Average Number of Checks per Minute: | Q69: =Q46/Q60 -> 0 | T69: Average Number of Checks per Minute: | U69: =U46/U60 -> 0
H70: Normalized Seat Turnover: | I70: =(I69*I61)/DiningRoomCapacity -> 0 | L70: Normalized Seat Turnover: | M70: =(M69*M61)/DiningRoomCapacity -> 0 | P70: Normalized Seat Turnover: | Q70: =(Q69*Q61)/DiningRoomCapacity -> 0 | T70: Normalized Seat Turnover: | U70: =(U69*U61)/DiningRoomCapacity -> 0

Sheet Week 4
F1: ü
Y2: Instructions
F3: ü
F4: ü | H4: Monday | L4: Tuesday | P4: Wednesday | T4: Thursday
H5: 1 | L5: 2 | P5: 3 | T5: 4
F6: ü | H6: Daily Production | L6: Daily Production | P6: Daily Production | T6: Daily Production
G7: Type | H7: Name of Menu Item | I7: # Prod. | J7: # Sold | K7: Type | L7: Name of Menu Item | M7: # Prod. | N7: # Sold | O7: Type | P7: Name of Menu Item | Q7: # Prod. | R7: # Sold | S7: Type | T7: Name of Menu Item | U7: # Prod. | V7: # Sold | X7: WeekLookup Reference
G8: ='Current Prices'!$F$6 -> Feature | H8: =IF(AND($E$13>=4,$E$13<=6),(HLOOKUP(H$5,ReverseMenu,VLOOKUP($E$13,WeekLookupTable,X8))),(HLOOKUP(H$5,CurrentMenu,VLOOKUP($E$13,WeekLookupTable,X8)))) -> Mediterranean Chicken Pasta | K8: ='Current Prices'!$F$6 -> Feature | L8: =IF(AND($E$13>=4,$E$13<=6),(HLOOKUP(L$5,ReverseMenu,VLOOKUP($E$13,WeekLookupTable,X8))),(HLOOKUP(L$5,CurrentMenu,VLOOKUP($E$13,WeekLookupTable,X8)))) -> Macadamia Chicken | O8: ='Current Prices'!$F$6 -> Feature | P8: =IF(AND($E$13>=4,$E$13<=6),(HLOOKUP(P$5,ReverseMenu,VLOOKUP($E$13,WeekLookupTable,X8))),(HLOOKUP(P$5,CurrentMenu,VLOOKUP($E$13,WeekLookupTable,X8)))) -> Beef & Broccoli Stir Fry | Q8: 35 | R8: 24 | S8: ='Current Prices'!$F$6 -> Feature | T8: =IF(AND($E$13>=4,$E$13<=6),(HLOOKUP(T$5,ReverseMenu,VLOOKUP($E$13,WeekLookupTable,X8))),(HLOOKUP(T$5,CurrentMenu,VLOOKUP($E$13,WeekLookupTable,X8)))) -> Chicken Puff Pastry | X8: 2
G9: ='Current Prices'!$F$7 -> Soup | H9: Broccoli Cheese Soup | K9: ='Current Prices'!$F$7 -> Soup | L9: Lasagna Soup | O9: ='Current Prices'!$F$7 -> Soup | P9: Chicken Pot Pie | Q9: 25 | R9: 12 | S9: ='Current Prices'!$F$7 -> Soup | T9: Taco Soup | X9: 3
G10: ='Current Prices'!$F$8 -> Cold Plate | H10: BBQ Chicken Salad | K10: ='Current Prices'!$F$8 -> Cold Plate | L10: Kansas City BBQ Pork Sandwhich | O10: ='Current Prices'!$F$8 -> Cold Plate | P10: Chicken & Berry Sensation | Q10: 45 | R10: 34 | S10: ='Current Prices'!$F$8 -> Cold Plate | T10: Vermont Turkey Club w/Spinach | X10: 4
G11: ='Current Prices'!$F$9 -> Taco Salad | H11: Beef Taco Salad | K11: ='Current Prices'!$F$9 -> Taco Salad | L11: Beef Taco Salad | O11: ='Current Prices'!$F$9 -> Taco Salad | P11: Beef Taco Salad | Q11: 35 | R11: 34 | S11: ='Current Prices'!$F$9 -> Taco Salad | T11: Beef Taco Salad | X11: 5
G12: ='Current Prices'!$F$10 -> Dessert | H12: Fruit Pizza | K12: ='Current Prices'!$F$10 -> Dessert | L12: Pumpkin Streusel Pie (÷ 8) | O12: ='Current Prices'!$F$10 -> Dessert | P12: Rasberry Buttermilk Pie Tart | Q12: 76 | R12: 55 | S12: ='Current Prices'!$F$10 -> Dessert | T12: Decadent Fudge Cake (÷ 12) | X12: 6
D13: WEEK VLOOKUP = | E13: 4 | G13: ='Current Prices'!$F$11 -> Muffin | H13: Cranberry Orange Scone (÷ 10) | K13: ='Current Prices'!$F$11 -> Muffin | L13: Lemon Poppy Seed Muffin | O13: ='Current Prices'!$F$11 -> Muffin | P13: Carrot Muffin | Q13: 45 | R13: 44 | S13: ='Current Prices'!$F$11 -> Muffin | T13: Cherry Chocolate Scone | X13: 7
G14: ='Current Prices'!$F$12 -> Cookie | H14: Macaroon | K14: ='Current Prices'!$F$12 -> Cookie | L14: Chewy Dbl Chocolate Mint Cookie | O14: ='Current Prices'!$F$12 -> Cookie | P14: Peanut Butter Chocolate Chip Cookie | Q14: 65 | R14: 54 | S14: ='Current Prices'!$F$12 -> Cookie | T14: Oatmeal Golden Raisin Cookie | X14: 8
H15: There were 0 basic items produced and 0 basic items sold | L15: There were 0 basic items produced and 0 basic items sold | P15: There were 154 basic items produced and 122 basic items sold | T15: There were 0 basic items produced and 0 basic items sold
H17: Cashier Sheet | L17: Daily Sales | P17: Daily Sales | T17: Daily Sales | X17: Instructions:
G18: Type | H18: # Sold | I18: Price | J18: Total Sales | K18: Type | L18: # Sold | M18: Price | N18: Total Sales | O18: Type | P18: # Sold | Q18: Price | R18: Total Sales | S18: Type | T18: # Sold | U18: Price | V18: Total Sales | X18: This is the reference used to find which week to lookup in the menu
G19: ='Current Prices'!$F$6 -> Feature | H19: =IF(J8>0,J8,"") ->  | I19: ='Current Prices'!$G$6 -> 5.35 | J19: =IF(J8>0,(H19*I19),"") ->  | K19: ='Current Prices'!$F$6 -> Feature | L19: =IF(N8>0,N8,"") ->  | M19: ='Current Prices'!$G$6 -> 5.35 | N19: =IF(N8>0,(L19*M19),"") ->  | O19: ='Current Prices'!$F$6 -> Feature | P19: =IF(R8>0,R8,"") -> 24 | Q19: ='Current Prices'!$G$6 -> 5.35 | R19: =IF(R8>0,(P19*Q19),"") -> 128.4 | S19: ='Current Prices'!$F$6 -> Feature | T19: =IF(V8>0,V8,"") ->  | U19: ='Current Prices'!$G$6 -> 5.35 | V19: =IF(V8>0,(T19*U19),"") -> 
G20: ='Current Prices'!$F$8 -> Cold Plate | H20: =IF(J10>0,J10,"") ->  | I20: ='Current Prices'!$G$8 -> 5 | J20: =IF(J10>0,(H20*I20),"") ->  | K20: ='Current Prices'!$F$8 -> Cold Plate | L20: =IF(N10>0,N10,"") ->  | M20: ='Current Prices'!$G$8 -> 5 | N20: =IF(N10>0,(L20*M20),"") ->  | O20: ='Current Prices'!$F$8 -> Cold Plate | P20: =IF(R10>0,R10,"") -> 34 | Q20: ='Current Prices'!$G$8 -> 5 | R20: =IF(R10>0,(P20*Q20),"") -> 170 | S20: ='Current Prices'!$F$8 -> Cold Plate | T20: =IF(V10>0,V10,"") ->  | U20: ='Current Prices'!$G$8 -> 5 | V20: =IF(V10>0,(T20*U20),"") -> 
G21: ='Current Prices'!$F$9 -> Taco Salad | H21: =IF(J11>0,J11,"") ->  | I21: ='Current Prices'!$G$9 -> 4.5 | J21: =IF(J11>0,(H21*I21),"") ->  | K21: ='Current Prices'!$F$9 -> Taco Salad | L21: =IF(N11>0,N11,"") ->  | M21: ='Current Prices'!$G$9 -> 4.5 | N21: =IF(N11>0,(L21*M21),"") ->  | O21: ='Current Prices'!$F$9 -> Taco Salad | P21: =IF(R11>0,R11,"") -> 34 | Q21: ='Current Prices'!$G$9 -> 4.5 | R21: =IF(R11>0,(P21*Q21),"") -> 153 | S21: ='Current Prices'!$F$9 -> Taco Salad | T21: =IF(V11>0,V11,"") ->  | U21: ='Current Prices'!$G$9 -> 4.5 | V21: =IF(V11>0,(T21*U21),"") -> 
G22: ='Current Prices'!$F$7 -> Soup | H22: =IF(J9>0,J9,"") ->  | I22: ='Current Prices'!$G$7 -> 2.5 | J22: =IF(J9>0,(H22*I22),"") ->  | K22: ='Current Prices'!$F$7 -> Soup | L22: =IF(N9>0,N9,"") ->  | M22: ='Current Prices'!$G$7 -> 2.5 | N22: =IF(N9>0,(L22*M22),"") ->  | O22: ='Current Prices'!$F$7 -> Soup | P22: =IF(R9>0,R9,"") -> 12 | Q22: ='Current Prices'!$G$7 -> 2.5 | R22: =IF(R9>0,(P22*Q22),"") -> 30 | S22: ='Current Prices'!$F$7 -> Soup | T22: =IF(V9>0,V9,"") ->  | U22: ='Current Prices'!$G$7 -> 2.5 | V22: =IF(V9>0,(T22*U22),"") -> 
G23: ='Current Prices'!$F$10 -> Dessert | H23: =IF(J12>0,J12,"") ->  | I23: ='Current Prices'!$G$10 -> 2.5 | J23: =IF(J12>0,(H23*I23),"") ->  | K23: ='Current Prices'!$F$10 -> Dessert | L23: =IF(N12>0,N12,"") ->  | M23: ='Current Prices'!$G$10 -> 2.5 | N23: =IF(N12>0,(L23*M23),"") ->  | O23: ='Current Prices'!$F$10 -> Dessert | P23: =IF(R12>0,R12,"") -> 55 | Q23: ='Current Prices'!$G$10 -> 2.5 | R23: =IF(R12>0,(P23*Q23),"") -> 137.5 | S23: ='Current Prices'!$F$10 -> Dessert | T23: =IF(V12>0,V12,"") ->  | U23: ='Current Prices'!$G$10 -> 2.5 | V23: =IF(V12>0,(T23*U23),"") -> 
G24: ='Current Prices'!$F$11 -> Muffin | H24: =IF(J13>0,J13,"") ->  | I24: ='Current Prices'!$G$11 -> 1.25 | J24: =IF(J13>0,(H24*I24),"") ->  | K24: ='Current Prices'!$F$11 -> Muffin | L24: =IF(N13>0,N13,"") ->  | M24: ='Current Prices'!$G$11 -> 1.25 | N24: =IF(N13>0,(L24*M24),"") ->  | O24: ='Current Prices'!$F$11 -> Muffin | P24: =IF(R13>0,R13,"") -> 44 | Q24: ='Current Prices'!$G$11 -> 1.25 | R24: =IF(R13>0,(P24*Q24),"") -> 55 | S24: ='Current Prices'!$F$11 -> Muffin | T24: =IF(V13>0,V13,"") ->  | U24: ='Current Prices'!$G$11 -> 1.25 | V24: =IF(V13>0,(T24*U24),"") -> 
G25: ='Current Prices'!$F$12 -> Cookie | H25: =IF(J14>0,J14,"") ->  | I25: ='Current Prices'!$G$12 -> 0.75 | J25: =IF(J14>0,(H25*I25),"") ->  | K25: ='Current Prices'!$F$12 -> Cookie | L25: =IF(N14>0,N14,"") ->  | M25: ='Current Prices'!$G$12 -> 0.75 | N25: =IF(N14>0,(L25*M25),"") ->  | O25: ='Current Prices'!$F$12 -> Cookie | P25: =IF(R14>0,R14,"") -> 54 | Q25: ='Current Prices'!$G$12 -> 0.75 | R25: =IF(R14>0,(P25*Q25),"") -> 40.5 | S25: ='Current Prices'!$F$12 -> Cookie | T25: =IF(V14>0,V14,"") ->  | U25: ='Current Prices'!$G$12 -> 0.75 | V25: =IF(V14>0,(T25*U25),"") -> 
G27: A La Carte: | K27: A La Carte: | O27: A La Carte: | S27: A La Carte:
G28: ='Current Prices'!$F$15 -> Entrée | I28: ='Current Prices'!$G$15 -> 3 | J28: =H28*I28 -> 0 | K28: ='Current Prices'!$F$15 -> Entrée | M28: ='Current Prices'!$G$15 -> 3 | N28: =L28*M28 -> 0 | O28: ='Current Prices'!$F$15 -> Entrée | P28: 3 | Q28: ='Current Prices'!$G$15 -> 3 | R28: =P28*Q28 -> 9 | S28: ='Current Prices'!$F$15 -> Entrée | U28: ='Current Prices'!$G$15 -> 3 | V28: =T28*U28 -> 0
G29: ='Current Prices'!$F$16 -> Vegetable | I29: ='Current Prices'!$G$16 -> 1 | J29: 0 | K29: ='Current Prices'!$F$16 -> Vegetable | M29: ='Current Prices'!$G$16 -> 1 | N29: =L29*M29 -> 0 | O29: ='Current Prices'!$F$16 -> Vegetable | P29: 4 | Q29: ='Current Prices'!$G$16 -> 1 | R29: =P29*Q29 -> 4 | S29: ='Current Prices'!$F$16 -> Vegetable | U29: ='Current Prices'!$G$16 -> 1 | V29: =T29*U29 -> 0
G30: ='Current Prices'!$F$17 -> Starch | I30: ='Current Prices'!$G$17 -> 1.35 | J30: 0 | K30: ='Current Prices'!$F$17 -> Starch | M30: ='Current Prices'!$G$17 -> 1.35 | N30: 0 | O30: ='Current Prices'!$F$17 -> Starch | P30: 5 | Q30: ='Current Prices'!$G$17 -> 1.35 | R30: 6.75 | S30: ='Current Prices'!$F$17 -> Starch | U30: ='Current Prices'!$G$17 -> 1.35 | V30: 0
G32: Misc. Items: | K32: Misc. Items: | O32: Misc. Items: | S32: Misc. Items:
G33: ='Current Prices'!$F$20 -> Fruit | I33: ='Current Prices'!$G$20 -> 0.6 | J33: =H33*I33 -> 0 | K33: ='Current Prices'!$F$20 -> Fruit | M33: ='Current Prices'!$G$20 -> 0.6 | N33: =L33*M33 -> 0 | O33: ='Current Prices'!$F$20 -> Fruit | P33: 18 | Q33: ='Current Prices'!$G$20 -> 0.6 | R33: =P33*Q33 -> 10.8 | S33: ='Current Prices'!$F$20 -> Fruit | U33: ='Current Prices'!$G$20 -> 0.6 | V33: =T33*U33 -> 0
G34: ='Current Prices'!$F$21 -> Roll | I34: ='Current Prices'!$G$21 -> 0.6 | J34: =H34*I34 -> 0 | K34: ='Current Prices'!$F$21 -> Roll | M34: ='Current Prices'!$G$21 -> 0.6 | N34: =L34*M34 -> 0 | O34: ='Current Prices'!$F$21 -> Roll | P34: 17 | Q34: ='Current Prices'!$G$21 -> 0.6 | R34: =P34*Q34 -> 10.2 | S34: ='Current Prices'!$F$21 -> Roll | U34: ='Current Prices'!$G$21 -> 0.6 | V34: =T34*U34 -> 0
G35: ='Current Prices'!$F$22 -> Soda | I35: ='Current Prices'!$G$22 -> 0.6 | J35: =H35*I35 -> 0 | K35: ='Current Prices'!$F$22 -> Soda | M35: ='Current Prices'!$G$22 -> 0.6 | N35: =L35*M35 -> 0 | O35: ='Current Prices'!$F$22 -> Soda | P35: 12 | Q35: ='Current Prices'!$G$22 -> 0.6 | R35: =P35*Q35 -> 7.2 | S35: ='Current Prices'!$F$22 -> Soda | U35: ='Current Prices'!$G$22 -> 0.6 | V35: =T35*U35 -> 0
G36: ='Current Prices'!$F$23 -> Chocolate Milk | I36: ='Current Prices'!$G$23 -> 1 | J36: =H36*I36 -> 0 | K36: ='Current Prices'!$F$23 -> Chocolate Milk | M36: ='Current Prices'!$G$23 -> 1 | N36: =L36*M36 -> 0 | O36: ='Current Prices'!$F$23 -> Chocolate Milk | P36: 5 | Q36: ='Current Prices'!$G$23 -> 1 | R36: =P36*Q36 -> 5 | S36: ='Current Prices'!$F$23 -> Chocolate Milk | U36: ='Current Prices'!$G$23 -> 1 | V36: =T36*U36 -> 0
G37: ='Current Prices'!$F$24 -> 2% Milk | I37: ='Current Prices'!$G$24 -> 1 | J37: =H37*I37 -> 0 | K37: ='Current Prices'!$F$24 -> 2% Milk | M37: ='Current Prices'!$G$24 -> 1 | N37: =L37*M37 -> 0 | O37: ='Current Prices'!$F$24 -> 2% Milk | P37: 5 | Q37: ='Current Prices'!$G$24 -> 1 | R37: =P37*Q37 -> 5 | S37: ='Current Prices'!$F$24 -> 2% Milk | U37: ='Current Prices'!$G$24 -> 1 | V37: =T37*U37 -> 0
G38: ='Current Prices'!$F$25 -> Skim Milk | I38: ='Current Prices'!$G$25 -> 1 | J38: 0 | K38: ='Current Prices'!$F$25 -> Skim Milk | M38: ='Current Prices'!$G$25 -> 1 | N38: 0 | O38: ='Current Prices'!$F$25 -> Skim Milk | P38: 2 | Q38: ='Current Prices'!$G$25 -> 1 | R38: 2 | S38: ='Current Prices'!$F$25 -> Skim Milk | U38: ='Current Prices'!$G$25 -> 1 | V38: 0
G39: ='Current Prices'!$F$26 -> V-8 Splash | I39: ='Current Prices'!$G$26 -> 1.5 | J39: 0 | K39: ='Current Prices'!$F$26 -> V-8 Splash | M39: ='Current Prices'!$G$26 -> 1.5 | N39: 0 | O39: ='Current Prices'!$F$26 -> V-8 Splash | P39: 0 | Q39: ='Current Prices'!$G$26 -> 1.5 | R39: 0 | S39: ='Current Prices'!$F$26 -> V-8 Splash | U39: ='Current Prices'!$G$26 -> 1.5 | V39: 0
G40: Misc. | I40: Misc. Income: | K40: Misc. | M40: Misc. Income: | O40: Misc. | P40: 0 | Q40: Misc. Income: | R40: 0 | S40: Misc. | U40: Misc. Income:
H42: Subtotal of Net Income: | J42: =IF(ABS(I42-I53)>0,"DISCREPANCY","") ->  | L42: Subtotal of Net Income: | N42: =IF(ABS(M42-M53)>0,"DISCREPANCY","") ->  | P42: Subtotal of Net Income: | Q42: 567 | R42: =IF(ABS(Q42-Q53)>0,"DISCREPANCY","") -> DISCREPANCY | T42: Subtotal of Net Income: | V42: =IF(ABS(U42-U53)>0,"DISCREPANCY","") -> 
H43: Minus Discount Meals: | L43: Minus Discount Meals: | P43: Minus Discount Meals: | Q43: 56 | T43: Minus Discount Meals:
H44: Net Income: | I44: =I42-I43 -> 0 | L44: Net Income: | M44: =M42-M43 -> 0 | P44: Net Income: | Q44: =Q42-Q43 -> 511 | T44: Net Income: | U44: =U42-U43 -> 0
H46: Number of Guests: | L46: Number of Guests: | P46: Number of Guests: | Q46: 45 | T46: Number of Guests:
H47: There were 18 items sold with total sales of $33.5 | L47: There were 215 items sold with total sales of $451.2 | P47: There were 215 items sold with total sales of $451.2 | T47: There were 215 items sold with total sales of $451.2
G52: DATA HIDDEN - USED FOR REPORTS | K52: DATA HIDDEN - USED FOR REPORTS | O52: DATA HIDDEN - USED FOR REPORTS | S52: DATA HIDDEN - USED FOR REPORTS
H53: Total Gross Sales: | I53: =SUM(J19:J40) -> 0 | L53: Total Gross Sales: | M53: =SUM(N19:N40) -> 0 | P53: Total Gross Sales: | Q53: =SUM(R19:R40) -> 774.35 | T53: Total Gross Sales: | U53: =SUM(V19:V40) -> 0
H54: Total Items Sold: | I54: =SUM(H19:H40) -> 0 | L54: Total Sales Count: | M54: =SUM(L19:L40) -> 0 | P54: Total Sales Count: | Q54: =SUM(P19:P40) -> 328 | T54: Total Sales Count: | U54: =SUM(T19:T40) -> 0
H56: Equivalent Meals Served | I56: =I44/EquivalentMealFactor -> 0 | L56: Equivalent Meals Served | M56: =M44/EquivalentMealFactor -> 0 | P56: Equivalent Meals Served | Q56: =Q44/EquivalentMealFactor -> 60.47337278 | T56: Equivalent Meals Served | U56: =U44/EquivalentMealFactor -> 0
H57: Average Check: | I57: =I44/I46 ->  | L57: Average Check: | M57: =M44/M46 ->  | P57: Average Check: | Q57: =Q44/Q46 -> 11.35555556 | T57: Average Check: | U57: =U44/U46 -> 
H58: Seat Turnover: | I58: =I46/DiningRoomCapacity -> 0 | L58: Seat Turnover: | M58: =M46/DiningRoomCapacity -> 0 | P58: Seat Turnover: | Q58: =Q46/DiningRoomCapacity -> 0.5625 | T58: Seat Turnover: | U58: =U46/DiningRoomCapacity -> 0
H60: Minutes Served: | I60: 100 | L60: Minutes Served: | M60: 70 | P60: Minutes Served: | Q60: 100 | T60: Minutes Served: | U60: 100
H61: Normal Minutes: | I61: 100 | L61: Normal Minutes: | M61: 100 | P61: Normal Minutes: | Q61: 100 | T61: Normal Minutes: | U61: 100
H63: Average Sales per Minute: | I63: =I44/I60 -> 0 | L63: Average Sales per Minute: | M63: =M44/M60 -> 0 | P63: Average Sales per Minute: | Q63: =Q44/Q60 -> 5.11 | T63: Average Sales per Minute: | U63: =U44/U60 -> 0
H64: Normalized Sales: | I64: =I63*I61 -> 0 | L64: Normalized Sales: | M64: =M63*M61 -> 0 | P64: Normalized Sales: | Q64: =Q63*Q61 -> 511 | T64: Normalized Sales: | U64: =U63*U61 -> 0
H66: Average Equivalent Meals per Minute: | I66: =I56/I60 -> 0 | L66: Average Equivalent Meals per Minute: | M66: =M56/M60 -> 0 | P66: Average Equivalent Meals per Minute: | Q66: =Q56/Q60 -> 0.6047337278 | T66: Average Equivalent Meals per Minute: | U66: =U56/U60 -> 0
H67: Normalized Equivalent Meals: | I67: =I61*I66 -> 0 | L67: Normalized Equivalent Meals: | M67: =M61*M66 -> 0 | P67: Normalized Equivalent Meals: | Q67: =Q61*Q66 -> 60.47337278 | T67: Normalized Equivalent Meals: | U67: =U61*U66 -> 0
H69: Average Number of Checks per Minute: | I69: =I46/I60 -> 0 | L69: Average Number of Checks per Minute: | M69: =M46/M60 -> 0 | P69: Average Number of Checks per Minute: | Q69: =Q46/Q60 -> 0.45 | T69: Average Number of Checks per Minute: | U69: =U46/U60 -> 0
H70: Normalized Seat Turnover: | I70: =(I69*I61)/DiningRoomCapacity -> 0 | L70: Normalized Seat Turnover: | M70: =(M69*M61)/DiningRoomCapacity -> 0 | P70: Normalized Seat Turnover: | Q70: =(Q69*Q61)/DiningRoomCapacity -> 0.5625 | T70: Normalized Seat Turnover: | U70: =(U69*U61)/DiningRoomCapacity -> 0

Sheet Week 5
F1: ü
Y2: Instructions
F3: ü
F4: ü | H4: Monday | L4: Tuesday | P4: Wednesday | T4: Thursday
H5: 1 | L5: 2 | P5: 3 | T5: 4
F6: ü | H6: Daily Production | L6: Daily Production | P6: Daily Production | T6: Daily Production
G7: Type | H7: Name of Menu Item | I7: # Prod. | J7: # Sold | K7: Type | L7: Name of Menu Item | M7: # Prod. | N7: # Sold | O7: Type | P7: Name of Menu Item | Q7: # Prod. | R7: # Sold | S7: Type | T7: Name of Menu Item | U7: # Prod. | V7: # Sold | X7: WeekLookup Reference
G8: ='Current Prices'!$F$6 -> Feature | H8: =IF(AND($E$13>=4,$E$13<=6),(HLOOKUP(H$5,ReverseMenu,VLOOKUP($E$13,WeekLookupTable,X8))),(HLOOKUP(H$5,CurrentMenu,VLOOKUP($E$13,WeekLookupTable,X8)))) -> Cheddar Herb Cod | K8: ='Current Prices'!$F$6 -> Feature | L8: =IF(AND($E$13>=4,$E$13<=6),(HLOOKUP(L$5,ReverseMenu,VLOOKUP($E$13,WeekLookupTable,X8))),(HLOOKUP(L$5,CurrentMenu,VLOOKUP($E$13,WeekLookupTable,X8)))) -> Chicken & Spinach Calzone | O8: ='Current Prices'!$F$6 -> Feature | P8: =IF(AND($E$13>=4,$E$13<=6),(HLOOKUP(P$5,ReverseMenu,VLOOKUP($E$13,WeekLookupTable,X8))),(HLOOKUP(P$5,CurrentMenu,VLOOKUP($E$13,WeekLookupTable,X8)))) -> Moroccan Chicken | S8: ='Current Prices'!$F$6 -> Feature | T8: =IF(AND($E$13>=4,$E$13<=6),(HLOOKUP(T$5,ReverseMenu,VLOOKUP($E$13,WeekLookupTable,X8))),(HLOOKUP(T$5,CurrentMenu,VLOOKUP($E$13,WeekLookupTable,X8)))) -> Russian Beef Stroganoff | X8: 2
G9: ='Current Prices'!$F$7 -> Soup | H9: Chicken Enchilada Soup | K9: ='Current Prices'!$F$7 -> Soup | L9: Loaded Baked Potato Soup | O9: ='Current Prices'!$F$7 -> Soup | P9: Hearty Wild Mushroom Soup | S9: ='Current Prices'!$F$7 -> Soup | T9: Vegetable Chili | X9: 3
G10: ='Current Prices'!$F$8 -> Cold Plate | H10: Oriental Chicken & Mandarin Salad | K10: ='Current Prices'!$F$8 -> Cold Plate | L10: Gourmet Gouda & Beef Sandwhich | O10: ='Current Prices'!$F$8 -> Cold Plate | P10: Turkey Bacon Ranch Sandwhich | S10: ='Current Prices'!$F$8 -> Cold Plate | T10: Cajun Chicken Caesar Salad | X10: 4
G11: ='Current Prices'!$F$9 -> Taco Salad | H11: Beef Taco Salad | K11: ='Current Prices'!$F$9 -> Taco Salad | L11: Beef Taco Salad | O11: ='Current Prices'!$F$9 -> Taco Salad | P11: Beef Taco Salad | S11: ='Current Prices'!$F$9 -> Taco Salad | T11: Beef Taco Salad | X11: 5
G12: ='Current Prices'!$F$10 -> Dessert | H12: Strawberry Shortcake (÷ 10) | K12: ='Current Prices'!$F$10 -> Dessert | L12: Chocolaty Peanut Butter Pie (÷ 6) | O12: ='Current Prices'!$F$10 -> Dessert | P12: Chocolate Rasberry Crème Torte (÷ 10) | S12: ='Current Prices'!$F$10 -> Dessert | T12: Lemon Crepe with Rasberry Sauce | X12: 6
D13: WEEK VLOOKUP = | E13: 5 | G13: ='Current Prices'!$F$11 -> Muffin | H13: Golden Raisin Scone (÷ 10) | K13: ='Current Prices'!$F$11 -> Muffin | L13: Apple Muffin | O13: ='Current Prices'!$F$11 -> Muffin | P13: Cheddar Chive Scone (÷ 10) | S13: ='Current Prices'!$F$11 -> Muffin | T13: Home Style Cornbread Muffin | X13: 7
G14: ='Current Prices'!$F$12 -> Cookie | H14: Chocolate Chip Cookie | K14: ='Current Prices'!$F$12 -> Cookie | L14: Toffee Oatmeal Cookie | O14: ='Current Prices'!$F$12 -> Cookie | P14: Chocolate Chip Cookie | S14: ='Current Prices'!$F$12 -> Cookie | T14: Peanut Butter Choc Chip Cookie | X14: 8
H15: There were 0 basic items produced and 0 basic items sold | L15: There were 0 basic items produced and 0 basic items sold | P15: There were 154 basic items produced and 122 basic items sold | T15: There were 154 basic items produced and 122 basic items sold
H17: Cashier Sheet | L17: Daily Sales | P17: Daily Sales | T17: Daily Sales | X17: Instructions:
G18: Type | H18: # Sold | I18: Price | J18: Total Sales | K18: Type | L18: # Sold | M18: Price | N18: Total Sales | O18: Type | P18: # Sold | Q18: Price | R18: Total Sales | S18: Type | T18: # Sold | U18: Price | V18: Total Sales | X18: This is the reference used to find which week to lookup in the menu
G19: ='Current Prices'!$F$6 -> Feature | H19: =IF(J8>0,J8,"") ->  | I19: ='Current Prices'!$G$6 -> 5.35 | J19: =IF(J8>0,(H19*I19),"") ->  | K19: ='Current Prices'!$F$6 -> Feature | L19: =IF(N8>0,N8,"") ->  | M19: ='Current Prices'!$G$6 -> 5.35 | N19: =IF(N8>0,(L19*M19),"") ->  | O19: ='Current Prices'!$F$6 -> Feature | P19: =IF(R8>0,R8,"") ->  | Q19: ='Current Prices'!$G$6 -> 5.35 | R19: =IF(R8>0,(P19*Q19),"") ->  | S19: ='Current Prices'!$F$6 -> Feature | T19: =IF(V8>0,V8,"") ->  | U19: ='Current Prices'!$G$6 -> 5.35 | V19: =IF(V8>0,(T19*U19),"") -> 
G20: ='Current Prices'!$F$8 -> Cold Plate | H20: =IF(J10>0,J10,"") ->  | I20: ='Current Prices'!$G$8 -> 5 | J20: =IF(J10>0,(H20*I20),"") ->  | K20: ='Current Prices'!$F$8 -> Cold Plate | L20: =IF(N10>0,N10,"") ->  | M20: ='Current Prices'!$G$8 -> 5 | N20: =IF(N10>0,(L20*M20),"") ->  | O20: ='Current Prices'!$F$8 -> Cold Plate | P20: =IF(R10>0,R10,"") ->  | Q20: ='Current Prices'!$G$8 -> 5 | R20: =IF(R10>0,(P20*Q20),"") ->  | S20: ='Current Prices'!$F$8 -> Cold Plate | T20: =IF(V10>0,V10,"") ->  | U20: ='Current Prices'!$G$8 -> 5 | V20: =IF(V10>0,(T20*U20),"") -> 
G21: ='Current Prices'!$F$9 -> Taco Salad | H21: =IF(J11>0,J11,"") ->  | I21: ='Current Prices'!$G$9 -> 4.5 | J21: =IF(J11>0,(H21*I21),"") ->  | K21: ='Current Prices'!$F$9 -> Taco Salad | L21: =IF(N11>0,N11,"") ->  | M21: ='Current Prices'!$G$9 -> 4.5 | N21: =IF(N11>0,(L21*M21),"") ->  | O21: ='Current Prices'!$F$9 -> Taco Salad | P21: =IF(R11>0,R11,"") ->  | Q21: ='Current Prices'!$G$9 -> 4.5 | R21: =IF(R11>0,(P21*Q21),"") ->  | S21: ='Current Prices'!$F$9 -> Taco Salad | T21: =IF(V11>0,V11,"") ->  | U21: ='Current Prices'!$G$9 -> 4.5 | V21: =IF(V11>0,(T21*U21),"") -> 
G22: ='Current Prices'!$F$7 -> Soup | H22: =IF(J9>0,J9,"") ->  | I22: ='Current Prices'!$G$7 -> 2.5 | J22: =IF(J9>0,(H22*I22),"") ->  | K22: ='Current Prices'!$F$7 -> Soup | L22: =IF(N9>0,N9,"") ->  | M22: ='Current Prices'!$G$7 -> 2.5 | N22: =IF(N9>0,(L22*M22),"") ->  | O22: ='Current Prices'!$F$7 -> Soup | P22: =IF(R9>0,R9,"") ->  | Q22: ='Current Prices'!$G$7 -> 2.5 | R22: =IF(R9>0,(P22*Q22),"") ->  | S22: ='Current Prices'!$F$7 -> Soup | T22: =IF(V9>0,V9,"") ->  | U22: ='Current Prices'!$G$7 -> 2.5 | V22: =IF(V9>0,(T22*U22),"") -> 
G23: ='Current Prices'!$F$10 -> Dessert | H23: =IF(J12>0,J12,"") ->  | I23: ='Current Prices'!$G$10 -> 2.5 | J23: =IF(J12>0,(H23*I23),"") ->  | K23: ='Current Prices'!$F$10 -> Dessert | L23: =IF(N12>0,N12,"") ->  | M23: ='Current Prices'!$G$10 -> 2.5 | N23: =IF(N12>0,(L23*M23),"") ->  | O23: ='Current Prices'!$F$10 -> Dessert | P23: =IF(R12>0,R12,"") ->  | Q23: ='Current Prices'!$G$10 -> 2.5 | R23: =IF(R12>0,(P23*Q23),"") ->  | S23: ='Current Prices'!$F$10 -> Dessert | T23: =IF(V12>0,V12,"") ->  | U23: ='Current Prices'!$G$10 -> 2.5 | V23: =IF(V12>0,(T23*U23),"") -> 
G24: ='Current Prices'!$F$11 -> Muffin | H24: =IF(J13>0,J13,"") ->  | I24: ='Current Prices'!$G$11 -> 1.25 | J24: =IF(J13>0,(H24*I24),"") ->  | K24: ='Current Prices'!$F$11 -> Muffin | L24: =IF(N13>0,N13,"") ->  | M24: ='Current Prices'!$G$11 -> 1.25 | N24: =IF(N13>0,(L24*M24),"") ->  | O24: ='Current Prices'!$F$11 -> Muffin | P24: =IF(R13>0,R13,"") ->  | Q24: ='Current Prices'!$G$11 -> 1.25 | R24: =IF(R13>0,(P24*Q24),"") ->  | S24: ='Current Prices'!$F$11 -> Muffin | T24: =IF(V13>0,V13,"") ->  | U24: ='Current Prices'!$G$11 -> 1.25 | V24: =IF(V13>0,(T24*U24),"") -> 
G25: ='Current Prices'!$F$12 -> Cookie | H25: =IF(J14>0,J14,"") ->  | I25: ='Current Prices'!$G$12 -> 0.75 | J25: =IF(J14>0,(H25*I25),"") ->  | K25: ='Current Prices'!$F$12 -> Cookie | L25: =IF(N14>0,N14,"") ->  | M25: ='Current Prices'!$G$12 -> 0.75 | N25: =IF(N14>0,(L25*M25),"") ->  | O25: ='Current Prices'!$F$12 -> Cookie | P25: =IF(R14>0,R14,"") ->  | Q25: ='Current Prices'!$G$12 -> 0.75 | R25: =IF(R14>0,(P25*Q25),"") ->  | S25: ='Current Prices'!$F$12 -> Cookie | T25: =IF(V14>0,V14,"") ->  | U25: ='Current Prices'!$G$12 -> 0.75 | V25: =IF(V14>0,(T25*U25),"") -> 
G27: A La Carte: | K27: A La Carte: | O27: A La Carte: | S27: A La Carte:
G28: ='Current Prices'!$F$15 -> Entrée | I28: ='Current Prices'!$G$15 -> 3 | J28: =H28*I28 -> 0 | K28: ='Current Prices'!$F$15 -> Entrée | M28: ='Current Prices'!$G$15 -> 3 | N28: =L28*M28 -> 0 | O28: ='Current Prices'!$F$15 -> Entrée | Q28: ='Current Prices'!$G$15 -> 3 | R28: =P28*Q28 -> 0 | S28: ='Current Prices'!$F$15 -> Entrée | U28: ='Current Prices'!$G$15 -> 3 | V28: =T28*U28 -> 0
G29: ='Current Prices'!$F$16 -> Vegetable | I29: ='Current Prices'!$G$16 -> 1 | J29: 0 | K29: ='Current Prices'!$F$16 -> Vegetable | M29: ='Current Prices'!$G$16 -> 1 | N29: =L29*M29 -> 0 | O29: ='Current Prices'!$F$16 -> Vegetable | Q29: ='Current Prices'!$G$16 -> 1 | R29: =P29*Q29 -> 0 | S29: ='Current Prices'!$F$16 -> Vegetable | U29: ='Current Prices'!$G$16 -> 1 | V29: =T29*U29 -> 0
G30: ='Current Prices'!$F$17 -> Starch | I30: ='Current Prices'!$G$17 -> 1.35 | J30: 0 | K30: ='Current Prices'!$F$17 -> Starch | M30: ='Current Prices'!$G$17 -> 1.35 | N30: 0 | O30: ='Current Prices'!$F$17 -> Starch | Q30: ='Current Prices'!$G$17 -> 1.35 | R30: 0 | S30: ='Current Prices'!$F$17 -> Starch | U30: ='Current Prices'!$G$17 -> 1.35 | V30: 0
G32: Misc. Items: | K32: Misc. Items: | O32: Misc. Items: | S32: Misc. Items:
G33: ='Current Prices'!$F$20 -> Fruit | I33: ='Current Prices'!$G$20 -> 0.6 | J33: =H33*I33 -> 0 | K33: ='Current Prices'!$F$20 -> Fruit | M33: ='Current Prices'!$G$20 -> 0.6 | N33: =L33*M33 -> 0 | O33: ='Current Prices'!$F$20 -> Fruit | Q33: ='Current Prices'!$G$20 -> 0.6 | R33: =P33*Q33 -> 0 | S33: ='Current Prices'!$F$20 -> Fruit | U33: ='Current Prices'!$G$20 -> 0.6 | V33: =T33*U33 -> 0
G34: ='Current Prices'!$F$21 -> Roll | I34: ='Current Prices'!$G$21 -> 0.6 | J34: =H34*I34 -> 0 | K34: ='Current Prices'!$F$21 -> Roll | M34: ='Current Prices'!$G$21 -> 0.6 | N34: =L34*M34 -> 0 | O34: ='Current Prices'!$F$21 -> Roll | Q34: ='Current Prices'!$G$21 -> 0.6 | R34: =P34*Q34 -> 0 | S34: ='Current Prices'!$F$21 -> Roll | U34: ='Current Prices'!$G$21 -> 0.6 | V34: =T34*U34 -> 0
G35: ='Current Prices'!$F$22 -> Soda | I35: ='Current Prices'!$G$22 -> 0.6 | J35: =H35*I35 -> 0 | K35: ='Current Prices'!$F$22 -> Soda | M35: ='Current Prices'!$G$22 -> 0.6 | N35: =L35*M35 -> 0 | O35: ='Current Prices'!$F$22 -> Soda | Q35: ='Current Prices'!$G$22 -> 0.6 | R35: =P35*Q35 -> 0 | S35: ='Current Prices'!$F$22 -> Soda | U35: ='Current Prices'!$G$22 -> 0.6 | V35: =T35*U35 -> 0
G36: ='Current Prices'!$F$23 -> Chocolate Milk | I36: ='Current Prices'!$G$23 -> 1 | J36: =H36*I36 -> 0 | K36: ='Current Prices'!$F$23 -> Chocolate Milk | M36: ='Current Prices'!$G$23 -> 1 | N36: =L36*M36 -> 0 | O36: ='Current Prices'!$F$23 -> Chocolate Milk | Q36: ='Current Prices'!$G$23 -> 1 | R36: =P36*Q36 -> 0 | S36: ='Current Prices'!$F$23 -> Chocolate Milk | U36: ='Current Prices'!$G$23 -> 1 | V36: =T36*U36 -> 0
G37: ='Current Prices'!$F$24 -> 2% Milk | I37: ='Current Prices'!$G$24 -> 1 | J37: =H37*I37 -> 0 | K37: ='Current Prices'!$F$24 -> 2% Milk | M37: ='Current Prices'!$G$24 -> 1 | N37: =L37*M37 -> 0 | O37: ='Current Prices'!$F$24 -> 2% Milk | Q37: ='Current Prices'!$G$24 -> 1 | R37: =P37*Q37 -> 0 | S37: ='Current Prices'!$F$24 -> 2% Milk | U37: ='Current Prices'!$G$24 -> 1 | V37: =T37*U37 -> 0
G38: ='Current Prices'!$F$25 -> Skim Milk | I38: ='Current Prices'!$G$25 -> 1 | J38: 0 | K38: ='Current Prices'!$F$25 -> Skim Milk | M38: ='Current Prices'!$G$25 -> 1 | N38: 0 | O38: ='Current Prices'!$F$25 -> Skim Milk | Q38: ='Current Prices'!$G$25 -> 1 | R38: 0 | S38: ='Current Prices'!$F$25 -> Skim Milk | U38: ='Current Prices'!$G$25 -> 1 | V38: 0
G39: ='Current Prices'!$F$26 -> V-8 Splash | I39: ='Current Prices'!$G$26 -> 1.5 | J39: 0 | K39: ='Current Prices'!$F$26 -> V-8 Splash | M39: ='Current Prices'!$G$26 -> 1.5 | N39: 0 | O39: ='Current Prices'!$F$26 -> V-8 Splash | Q39: ='Current Prices'!$G$26 -> 1.5 | R39: 0 | S39: ='Current Prices'!$F$26 -> V-8 Splash | U39: ='Current Prices'!$G$26 -> 1.5 | V39: 0
G40: Misc. | I40: Misc. Income: | K40: Misc. | M40: Misc. Income: | O40: Misc. | Q40: Misc. Income: | S40: Misc. | U40: Misc. Income:
H42: Subtotal of Net Income: | J42: =IF(ABS(I42-I53)>0,"DISCREPANCY","") ->  | L42: Subtotal of Net Income: | N42: =IF(ABS(M42-M53)>0,"DISCREPANCY","") ->  | P42: Subtotal of Net Income: | R42: =IF(ABS(Q42-Q53)>0,"DISCREPANCY","") ->  | T42: Subtotal of Net Income: | V42: =IF(ABS(U42-U53)>0,"DISCREPANCY","") -> 
H43: Minus Discount Meals: | L43: Minus Discount Meals: | P43: Minus Discount Meals: | T43: Minus Discount Meals:
H44: Net Income: | I44: =I42-I43 -> 0 | L44: Net Income: | M44: =M42-M43 -> 0 | P44: Net Income: | Q44: =Q42-Q43 -> 0 | T44: Net Income: | U44: =U42-U43 -> 0
H46: Number of Guests: | L46: Number of Guests: | P46: Number of Guests: | T46: Number of Guests:
H47: There were 18 items sold with total sales of $33.5 | L47: There were 215 items sold with total sales of $451.2 | P47: There were 215 items sold with total sales of $451.2 | T47: There were 215 items sold with total sales of $451.2
G52: DATA HIDDEN - USED FOR REPORTS | K52: DATA HIDDEN - USED FOR REPORTS | O52: DATA HIDDEN - USED FOR REPORTS | S52: DATA HIDDEN - USED FOR REPORTS
H53: Total Gross Sales: | I53: =SUM(J19:J40) -> 0 | L53: Total Gross Sales: | M53: =SUM(N19:N40) -> 0 | P53: Total Gross Sales: | Q53: =SUM(R19:R40) -> 0 | T53: Total Gross Sales: | U53: =SUM(V19:V40) -> 0
H54: Total Items Sold: | I54: =SUM(H19:H40) -> 0 | L54: Total Sales Count: | M54: =SUM(L19:L40) -> 0 | P54: Total Sales Count: | Q54: =SUM(P19:P40) -> 0 | T54: Total Sales Count: | U54: =SUM(T19:T40) -> 0
H56: Equivalent Meals Served | I56: =I44/EquivalentMealFactor -> 0 | L56: Equivalent Meals Served | M56: =M44/EquivalentMealFactor -> 0 | P56: Equivalent Meals Served | Q56: =Q44/EquivalentMealFactor -> 0 | T56: Equivalent Meals Served | U56: =U44/EquivalentMealFactor -> 0
H57: Average Check: | I57: =I44/I46 ->  | L57: Average Check: | M57: =M44/M46 ->  | P57: Average Check: | Q57: =Q44/Q46 ->  | T57: Average Check: | U57: =U44/U46 -> 
H58: Seat Turnover: | I58: =I46/DiningRoomCapacity -> 0 | L58: Seat Turnover: | M58: =M46/DiningRoomCapacity -> 0 | P58: Seat Turnover: | Q58: =Q46/DiningRoomCapacity -> 0 | T58: Seat Turnover: | U58: =U46/DiningRoomCapacity -> 0
H60: Minutes Served: | I60: 100 | L60: Minutes Served: | M60: 70 | P60: Minutes Served: | Q60: 100 | T60: Minutes Served: | U60: 100
H61: Normal Minutes: | I61: 100 | L61: Normal Minutes: | M61: 100 | P61: Normal Minutes: | Q61: 100 | T61: Normal Minutes: | U61: 100
H63: Average Sales per Minute: | I63: =I44/I60 -> 0 | L63: Average Sales per Minute: | M63: =M44/M60 -> 0 | P63: Average Sales per Minute: | Q63: =Q44/Q60 -> 0 | T63: Average Sales per Minute: | U63: =U44/U60 -> 0
H64: Normalized Sales: | I64: =I63*I61 -> 0 | L64: Normalized Sales: | M64: =M63*M61 -> 0 | P64: Normalized Sales: | Q64: =Q63*Q61 -> 0 | T64: Normalized Sales: | U64: =U63*U61 -> 0
H66: Average Equivalent Meals per Minute: | I66: =I56/I60 -> 0 | L66: Average Equivalent Meals per Minute: | M66: =M56/M60 -> 0 | P66: Average Equivalent Meals per Minute: | Q66: =Q56/Q60 -> 0 | T66: Average Equivalent Meals per Minute: | U66: =U56/U60 -> 0
H67: Normalized Equivalent Meals: | I67: =I61*I66 -> 0 | L67: Normalized Equivalent Meals: | M67: =M61*M66 -> 0 | P67: Normalized Equivalent Meals: | Q67: =Q61*Q66 -> 0 | T67: Normalized Equivalent Meals: | U67: =U61*U66 -> 0
H69: Average Number of Checks per Minute: | I69: =I46/I60 -> 0 | L69: Average Number of Checks per Minute: | M69: =M46/M60 -> 0 | P69: Average Number of Checks per Minute: | Q69: =Q46/Q60 -> 0 | T69: Average Number of Checks per Minute: | U69: =U46/U60 -> 0
H70: Normalized Seat Turnover: | I70: =(I69*I61)/DiningRoomCapacity -> 0 | L70: Normalized Seat Turnover: | M70: =(M69*M61)/DiningRoomCapacity -> 0 | P70: Normalized Seat Turnover: | Q70: =(Q69*Q61)/DiningRoomCapacity -> 0 | T70: Normalized Seat Turnover: | U70: =(U69*U61)/DiningRoomCapacity -> 0

Sheet Week 6
F1: ü
Y2: Instructions
F3: ü
F4: ü | H4: Monday | L4: Tuesday | P4: Wednesday | T4: Thursday
H5: 1 | L5: 2 | P5: 3 | T5: 4
F6: ü | H6: Daily Production | L6: Daily Production | P6: Daily Production | T6: Daily Production
G7: Type | H7: Name of Menu Item | I7: # Prod. | J7: # Sold | K7: Type | L7: Name of Menu Item | M7: # Prod. | N7: # Sold | O7: Type | P7: Name of Menu Item | Q7: # Prod. | R7: # Sold | S7: Type | T7: Name of Menu Item | U7: # Prod. | V7: # Sold | X7: WeekLookup Reference
G8: ='Current Prices'!$F$6 -> Feature | H8: =IF(AND($E$13>=4,$E$13<=6),(HLOOKUP(H$5,ReverseMenu,VLOOKUP($E$13,WeekLookupTable,X8))),(HLOOKUP(H$5,CurrentMenu,VLOOKUP($E$13,WeekLookupTable,X8)))) -> Herb Crusted Chicken Breast | K8: ='Current Prices'!$F$6 -> Feature | L8: =IF(AND($E$13>=4,$E$13<=6),(HLOOKUP(L$5,ReverseMenu,VLOOKUP($E$13,WeekLookupTable,X8))),(HLOOKUP(L$5,CurrentMenu,VLOOKUP($E$13,WeekLookupTable,X8)))) -> Stuffed Bean Burrito | O8: ='Current Prices'!$F$6 -> Feature | P8: =IF(AND($E$13>=4,$E$13<=6),(HLOOKUP(P$5,ReverseMenu,VLOOKUP($E$13,WeekLookupTable,X8))),(HLOOKUP(P$5,CurrentMenu,VLOOKUP($E$13,WeekLookupTable,X8)))) -> Baked Ziti | S8: ='Current Prices'!$F$6 -> Feature | T8: =IF(AND($E$13>=4,$E$13<=6),(HLOOKUP(T$5,ReverseMenu,VLOOKUP($E$13,WeekLookupTable,X8))),(HLOOKUP(T$5,CurrentMenu,VLOOKUP($E$13,WeekLookupTable,X8)))) -> Monterey Chicken | X8: 2
G9: ='Current Prices'!$F$7 -> Soup | H9: Tomato Florentine Soup | K9: ='Current Prices'!$F$7 -> Soup | L9: Zuppa Tuscana Soup | O9: ='Current Prices'!$F$7 -> Soup | P9: Chicken Cilantro Bisque | S9: ='Current Prices'!$F$7 -> Soup | T9: Black Bean Soup | X9: 3
G10: ='Current Prices'!$F$8 -> Cold Plate | H10: Tuscan Tuna Sandwhich | K10: ='Current Prices'!$F$8 -> Cold Plate | L10: Turkey & Swiss Crescent Sandwhich | O10: ='Current Prices'!$F$8 -> Cold Plate | P10: Grilled Cheese Sandwhich w/Tomato Soup | S10: ='Current Prices'!$F$8 -> Cold Plate | T10: Asian Lettuce Un-Wrapped Salad | X10: 4
G11: ='Current Prices'!$F$9 -> Taco Salad | H11: Beef Taco Salad | K11: ='Current Prices'!$F$9 -> Taco Salad | L11: Beef Taco Salad | O11: ='Current Prices'!$F$9 -> Taco Salad | P11: Beef Taco Salad | S11: ='Current Prices'!$F$9 -> Taco Salad | T11: Beef Taco Salad | X11: 5
G12: ='Current Prices'!$F$10 -> Dessert | H12: Old Fashioned Peach Pie (÷ 8) | K12: ='Current Prices'!$F$10 -> Dessert | L12: Malted Chocolate Mousse Pie (÷ 6) | O12: ='Current Prices'!$F$10 -> Dessert | P12: Triple Chocolate Turnover | S12: ='Current Prices'!$F$10 -> Dessert | T12: Cheesecake Assortment | X12: 6
D13: WEEK VLOOKUP = | E13: 6 | G13: ='Current Prices'!$F$11 -> Muffin | H13: Chocolate Avalanche Muffin | K13: ='Current Prices'!$F$11 -> Muffin | L13: Almond Poppy Seed Scone | O13: ='Current Prices'!$F$11 -> Muffin | P13: Chocolate Chip Sour Cream Muffin | S13: ='Current Prices'!$F$11 -> Muffin | T13: Pumpkin Chocolate Chip Muffin | X13: 7
G14: ='Current Prices'!$F$12 -> Cookie | H14: Oatmeal Golden Raisin Cookie | K14: ='Current Prices'!$F$12 -> Cookie | L14: Chewy Double Chocolate Mint Cookie | O14: ='Current Prices'!$F$12 -> Cookie | P14: Toffee Oatmeal Cookie | S14: ='Current Prices'!$F$12 -> Cookie | T14: Peanut Butter Chocolate Chip Cookie | X14: 8
H15: There were 0 basic items produced and 0 basic items sold | L15: There were 0 basic items produced and 0 basic items sold | P15: There were 154 basic items produced and 122 basic items sold | T15: There were 154 basic items produced and 122 basic items sold
H17: Cashier Sheet | L17: Daily Sales | P17: Daily Sales | T17: Daily Sales | X17: Instructions:
G18: Type | H18: # Sold | I18: Price | J18: Total Sales | K18: Type | L18: # Sold | M18: Price | N18: Total Sales | O18: Type | P18: # Sold | Q18: Price | R18: Total Sales | S18: Type | T18: # Sold | U18: Price | V18: Total Sales | X18: This is the reference used to find which week to lookup in the menu
G19: ='Current Prices'!$F$6 -> Feature | H19: =IF(J8>0,J8,"") ->  | I19: ='Current Prices'!$G$6 -> 5.35 | J19: =IF(J8>0,(H19*I19),"") ->  | K19: ='Current Prices'!$F$6 -> Feature | L19: =IF(N8>0,N8,"") ->  | M19: ='Current Prices'!$G$6 -> 5.35 | N19: =IF(N8>0,(L19*M19),"") ->  | O19: ='Current Prices'!$F$6 -> Feature | P19: =IF(R8>0,R8,"") ->  | Q19: ='Current Prices'!$G$6 -> 5.35 | R19: =IF(R8>0,(P19*Q19),"") ->  | S19: ='Current Prices'!$F$6 -> Feature | T19: =IF(V8>0,V8,"") ->  | U19: ='Current Prices'!$G$6 -> 5.35 | V19: =IF(V8>0,(T19*U19),"") -> 
G20: ='Current Prices'!$F$8 -> Cold Plate | H20: =IF(J10>0,J10,"") ->  | I20: ='Current Prices'!$G$8 -> 5 | J20: =IF(J10>0,(H20*I20),"") ->  | K20: ='Current Prices'!$F$8 -> Cold Plate | L20: =IF(N10>0,N10,"") ->  | M20: ='Current Prices'!$G$8 -> 5 | N20: =IF(N10>0,(L20*M20),"") ->  | O20: ='Current Prices'!$F$8 -> Cold Plate | P20: =IF(R10>0,R10,"") ->  | Q20: ='Current Prices'!$G$8 -> 5 | R20: =IF(R10>0,(P20*Q20),"") ->  | S20: ='Current Prices'!$F$8 -> Cold Plate | T20: =IF(V10>0,V10,"") ->  | U20: ='Current Prices'!$G$8 -> 5 | V20: =IF(V10>0,(T20*U20),"") -> 
G21: ='Current Prices'!$F$9 -> Taco Salad | H21: =IF(J11>0,J11,"") ->  | I21: ='Current Prices'!$G$9 -> 4.5 | J21: =IF(J11>0,(H21*I21),"") ->  | K21: ='Current Prices'!$F$9 -> Taco Salad | L21: =IF(N11>0,N11,"") ->  | M21: ='Current Prices'!$G$9 -> 4.5 | N21: =IF(N11>0,(L21*M21),"") ->  | O21: ='Current Prices'!$F$9 -> Taco Salad | P21: =IF(R11>0,R11,"") ->  | Q21: ='Current Prices'!$G$9 -> 4.5 | R21: =IF(R11>0,(P21*Q21),"") ->  | S21: ='Current Prices'!$F$9 -> Taco Salad | T21: =IF(V11>0,V11,"") ->  | U21: ='Current Prices'!$G$9 -> 4.5 | V21: =IF(V11>0,(T21*U21),"") -> 
G22: ='Current Prices'!$F$7 -> Soup | H22: =IF(J9>0,J9,"") ->  | I22: ='Current Prices'!$G$7 -> 2.5 | J22: =IF(J9>0,(H22*I22),"") ->  | K22: ='Current Prices'!$F$7 -> Soup | L22: =IF(N9>0,N9,"") ->  | M22: ='Current Prices'!$G$7 -> 2.5 | N22: =IF(N9>0,(L22*M22),"") ->  | O22: ='Current Prices'!$F$7 -> Soup | P22: =IF(R9>0,R9,"") ->  | Q22: ='Current Prices'!$G$7 -> 2.5 | R22: =IF(R9>0,(P22*Q22),"") ->  | S22: ='Current Prices'!$F$7 -> Soup | T22: =IF(V9>0,V9,"") ->  | U22: ='Current Prices'!$G$7 -> 2.5 | V22: =IF(V9>0,(T22*U22),"") -> 
G23: ='Current Prices'!$F$10 -> Dessert | H23: =IF(J12>0,J12,"") ->  | I23: ='Current Prices'!$G$10 -> 2.5 | J23: =IF(J12>0,(H23*I23),"") ->  | K23: ='Current Prices'!$F$10 -> Dessert | L23: =IF(N12>0,N12,"") ->  | M23: ='Current Prices'!$G$10 -> 2.5 | N23: =IF(N12>0,(L23*M23),"") ->  | O23: ='Current Prices'!$F$10 -> Dessert | P23: =IF(R12>0,R12,"") ->  | Q23: ='Current Prices'!$G$10 -> 2.5 | R23: =IF(R12>0,(P23*Q23),"") ->  | S23: ='Current Prices'!$F$10 -> Dessert | T23: =IF(V12>0,V12,"") ->  | U23: ='Current Prices'!$G$10 -> 2.5 | V23: =IF(V12>0,(T23*U23),"") -> 
G24: ='Current Prices'!$F$11 -> Muffin | H24: =IF(J13>0,J13,"") ->  | I24: ='Current Prices'!$G$11 -> 1.25 | J24: =IF(J13>0,(H24*I24),"") ->  | K24: ='Current Prices'!$F$11 -> Muffin | L24: =IF(N13>0,N13,"") ->  | M24: ='Current Prices'!$G$11 -> 1.25 | N24: =IF(N13>0,(L24*M24),"") ->  | O24: ='Current Prices'!$F$11 -> Muffin | P24: =IF(R13>0,R13,"") ->  | Q24: ='Current Prices'!$G$11 -> 1.25 | R24: =IF(R13>0,(P24*Q24),"") ->  | S24: ='Current Prices'!$F$11 -> Muffin | T24: =IF(V13>0,V13,"") ->  | U24: ='Current Prices'!$G$11 -> 1.25 | V24: =IF(V13>0,(T24*U24),"") -> 
G25: ='Current Prices'!$F$12 -> Cookie | H25: =IF(J14>0,J14,"") ->  | I25: ='Current Prices'!$G$12 -> 0.75 | J25: =IF(J14>0,(H25*I25),"") ->  | K25: ='Current Prices'!$F$12 -> Cookie | L25: =IF(N14>0,N14,"") ->  | M25: ='Current Prices'!$G$12 -> 0.75 | N25: =IF(N14>0,(L25*M25),"") ->  | O25: ='Current Prices'!$F$12 -> Cookie | P25: =IF(R14>0,R14,"") ->  | Q25: ='Current Prices'!$G$12 -> 0.75 | R25: =IF(R14>0,(P25*Q25),"") ->  | S25: ='Current Prices'!$F$12 -> Cookie | T25: =IF(V14>0,V14,"") ->  | U25: ='Current Prices'!$G$12 -> 0.75 | V25: =IF(V14>0,(T25*U25),"") -> 
G27: A La Carte: | K27: A La Carte: | O27: A La Carte: | S27: A La Carte:
G28: ='Current Prices'!$F$15 -> Entrée | I28: ='Current Prices'!$G$15 -> 3 | J28: =H28*I28 -> 0 | K28: ='Current Prices'!$F$15 -> Entrée | M28: ='Current Prices'!$G$15 -> 3 | N28: =L28*M28 -> 0 | O28: ='Current Prices'!$F$15 -> Entrée | Q28: ='Current Prices'!$G$15 -> 3 | R28: =P28*Q28 -> 0 | S28: ='Current Prices'!$F$15 -> Entrée | U28: ='Current Prices'!$G$15 -> 3 | V28: =T28*U28 -> 0
G29: ='Current Prices'!$F$16 -> Vegetable | I29: ='Current Prices'!$G$16 -> 1 | J29: 0 | K29: ='Current Prices'!$F$16 -> Vegetable | M29: ='Current Prices'!$G$16 -> 1 | N29: =L29*M29 -> 0 | O29: ='Current Prices'!$F$16 -> Vegetable | Q29: ='Current Prices'!$G$16 -> 1 | R29: =P29*Q29 -> 0 | S29: ='Current Prices'!$F$16 -> Vegetable | U29: ='Current Prices'!$G$16 -> 1 | V29: =T29*U29 -> 0
G30: ='Current Prices'!$F$17 -> Starch | I30: ='Current Prices'!$G$17 -> 1.35 | J30: 0 | K30: ='Current Prices'!$F$17 -> Starch | M30: ='Current Prices'!$G$17 -> 1.35 | N30: 0 | O30: ='Current Prices'!$F$17 -> Starch | Q30: ='Current Prices'!$G$17 -> 1.35 | R30: 0 | S30: ='Current Prices'!$F$17 -> Starch | U30: ='Current Prices'!$G$17 -> 1.35 | V30: 0
G32: Misc. Items: | K32: Misc. Items: | O32: Misc. Items: | S32: Misc. Items:
G33: ='Current Prices'!$F$20 -> Fruit | I33: ='Current Prices'!$G$20 -> 0.6 | J33: =H33*I33 -> 0 | K33: ='Current Prices'!$F$20 -> Fruit | M33: ='Current Prices'!$G$20 -> 0.6 | N33: =L33*M33 -> 0 | O33: ='Current Prices'!$F$20 -> Fruit | Q33: ='Current Prices'!$G$20 -> 0.6 | R33: =P33*Q33 -> 0 | S33: ='Current Prices'!$F$20 -> Fruit | U33: ='Current Prices'!$G$20 -> 0.6 | V33: =T33*U33 -> 0
G34: ='Current Prices'!$F$21 -> Roll | I34: ='Current Prices'!$G$21 -> 0.6 | J34: =H34*I34 -> 0 | K34: ='Current Prices'!$F$21 -> Roll | M34: ='Current Prices'!$G$21 -> 0.6 | N34: =L34*M34 -> 0 | O34: ='Current Prices'!$F$21 -> Roll | Q34: ='Current Prices'!$G$21 -> 0.6 | R34: =P34*Q34 -> 0 | S34: ='Current Prices'!$F$21 -> Roll | U34: ='Current Prices'!$G$21 -> 0.6 | V34: =T34*U34 -> 0
G35: ='Current Prices'!$F$22 -> Soda | I35: ='Current Prices'!$G$22 -> 0.6 | J35: =H35*I35 -> 0 | K35: ='Current Prices'!$F$22 -> Soda | M35: ='Current Prices'!$G$22 -> 0.6 | N35: =L35*M35 -> 0 | O35: ='Current Prices'!$F$22 -> Soda | Q35: ='Current Prices'!$G$22 -> 0.6 | R35: =P35*Q35 -> 0 | S35: ='Current Prices'!$F$22 -> Soda | U35: ='Current Prices'!$G$22 -> 0.6 | V35: =T35*U35 -> 0
G36: ='Current Prices'!$F$23 -> Chocolate Milk | I36: ='Current Prices'!$G$23 -> 1 | J36: =H36*I36 -> 0 | K36: ='Current Prices'!$F$23 -> Chocolate Milk | M36: ='Current Prices'!$G$23 -> 1 | N36: =L36*M36 -> 0 | O36: ='Current Prices'!$F$23 -> Chocolate Milk | Q36: ='Current Prices'!$G$23 -> 1 | R36: =P36*Q36 -> 0 | S36: ='Current Prices'!$F$23 -> Chocolate Milk | U36: ='Current Prices'!$G$23 -> 1 | V36: =T36*U36 -> 0
G37: ='Current Prices'!$F$24 -> 2% Milk | I37: ='Current Prices'!$G$24 -> 1 | J37: =H37*I37 -> 0 | K37: ='Current Prices'!$F$24 -> 2% Milk | M37: ='Current Prices'!$G$24 -> 1 | N37: =L37*M37 -> 0 | O37: ='Current Prices'!$F$24 -> 2% Milk | Q37: ='Current Prices'!$G$24 -> 1 | R37: =P37*Q37 -> 0 | S37: ='Current Prices'!$F$24 -> 2% Milk | U37: ='Current Prices'!$G$24 -> 1 | V37: =T37*U37 -> 0
G38: ='Current Prices'!$F$25 -> Skim Milk | I38: ='Current Prices'!$G$25 -> 1 | J38: 0 | K38: ='Current Prices'!$F$25 -> Skim Milk | M38: ='Current Prices'!$G$25 -> 1 | N38: 0 | O38: ='Current Prices'!$F$25 -> Skim Milk | Q38: ='Current Prices'!$G$25 -> 1 | R38: 0 | S38: ='Current Prices'!$F$25 -> Skim Milk | U38: ='Current Prices'!$G$25 -> 1 | V38: 0
G39: ='Current Prices'!$F$26 -> V-8 Splash | I39: ='Current Prices'!$G$26 -> 1.5 | J39: 0 | K39: ='Current Prices'!$F$26 -> V-8 Splash | M39: ='Current Prices'!$G$26 -> 1.5 | N39: 0 | O39: ='Current Prices'!$F$26 -> V-8 Splash | Q39: ='Current Prices'!$G$26 -> 1.5 | R39: 0 | S39: ='Current Prices'!$F$26 -> V-8 Splash | U39: ='Current Prices'!$G$26 -> 1.5 | V39: 0
G40: Misc. | I40: Misc. Income: | K40: Misc. | M40: Misc. Income: | O40: Misc. | Q40: Misc. Income: | S40: Misc. | U40: Misc. Income:
H42: Subtotal of Net Income: | J42: =IF(ABS(I42-I53)>0,"DISCREPANCY","") ->  | L42: Subtotal of Net Income: | N42: =IF(ABS(M42-M53)>0,"DISCREPANCY","") ->  | P42: Subtotal of Net Income: | R42: =IF(ABS(Q42-Q53)>0,"DISCREPANCY","") ->  | T42: Subtotal of Net Income: | V42: =IF(ABS(U42-U53)>0,"DISCREPANCY","") -> 
H43: Minus Discount Meals: | L43: Minus Discount Meals: | P43: Minus Discount Meals: | T43: Minus Discount Meals:
H44: Net Income: | I44: =I42-I43 -> 0 | L44: Net Income: | M44: =M42-M43 -> 0 | P44: Net Income: | Q44: =Q42-Q43 -> 0 | T44: Net Income: | U44: =U42-U43 -> 0
H46: Number of Guests: | L46: Number of Guests: | P46: Number of Guests: | T46: Number of Guests:
H47: There were 18 items sold with total sales of $33.5 | L47: There were 215 items sold with total sales of $451.2 | P47: There were 215 items sold with total sales of $451.2 | T47: There were 215 items sold with total sales of $451.2
G52: DATA HIDDEN - USED FOR REPORTS | K52: DATA HIDDEN - USED FOR REPORTS | O52: DATA HIDDEN - USED FOR REPORTS | S52: DATA HIDDEN - USED FOR REPORTS
H53: Total Gross Sales: | I53: =SUM(J19:J40) -> 0 | L53: Total Gross Sales: | M53: =SUM(N19:N40) -> 0 | P53: Total Gross Sales: | Q53: =SUM(R19:R40) -> 0 | T53: Total Gross Sales: | U53: =SUM(V19:V40) -> 0
H54: Total Items Sold: | I54: =SUM(H19:H40) -> 0 | L54: Total Sales Count: | M54: =SUM(L19:L40) -> 0 | P54: Total Sales Count: | Q54: =SUM(P19:P40) -> 0 | T54: Total Sales Count: | U54: =SUM(T19:T40) -> 0
H56: Equivalent Meals Served | I56: =I44/EquivalentMealFactor -> 0 | L56: Equivalent Meals Served | M56: =M44/EquivalentMealFactor -> 0 | P56: Equivalent Meals Served | Q56: =Q44/EquivalentMealFactor -> 0 | T56: Equivalent Meals Served | U56: =U44/EquivalentMealFactor -> 0
H57: Average Check: | I57: =I44/I46 ->  | L57: Average Check: | M57: =M44/M46 ->  | P57: Average Check: | Q57: =Q44/Q46 ->  | T57: Average Check: | U57: =U44/U46 -> 
H58: Seat Turnover: | I58: =I46/DiningRoomCapacity -> 0 | L58: Seat Turnover: | M58: =M46/DiningRoomCapacity -> 0 | P58: Seat Turnover: | Q58: =Q46/DiningRoomCapacity -> 0 | T58: Seat Turnover: | U58: =U46/DiningRoomCapacity -> 0
H60: Minutes Served: | I60: 100 | L60: Minutes Served: | M60: 70 | P60: Minutes Served: | Q60: 100 | T60: Minutes Served: | U60: 100
H61: Normal Minutes: | I61: 100 | L61: Normal Minutes: | M61: 100 | P61: Normal Minutes: | Q61: 100 | T61: Normal Minutes: | U61: 100
H63: Average Sales per Minute: | I63: =I44/I60 -> 0 | L63: Average Sales per Minute: | M63: =M44/M60 -> 0 | P63: Average Sales per Minute: | Q63: =Q44/Q60 -> 0 | T63: Average Sales per Minute: | U63: =U44/U60 -> 0
H64: Normalized Sales: | I64: =I63*I61 -> 0 | L64: Normalized Sales: | M64: =M63*M61 -> 0 | P64: Normalized Sales: | Q64: =Q63*Q61 -> 0 | T64: Normalized Sales: | U64: =U63*U61 -> 0
H66: Average Equivalent Meals per Minute: | I66: =I56/I60 -> 0 | L66: Average Equivalent Meals per Minute: | M66: =M56/M60 -> 0 | P66: Average Equivalent Meals per Minute: | Q66: =Q56/Q60 -> 0 | T66: Average Equivalent Meals per Minute: | U66: =U56/U60 -> 0
H67: Normalized Equivalent Meals: | I67: =I61*I66 -> 0 | L67: Normalized Equivalent Meals: | M67: =M61*M66 -> 0 | P67: Normalized Equivalent Meals: | Q67: =Q61*Q66 -> 0 | T67: Normalized Equivalent Meals: | U67: =U61*U66 -> 0
H69: Average Number of Checks per Minute: | I69: =I46/I60 -> 0 | L69: Average Number of Checks per Minute: | M69: =M46/M60 -> 0 | P69: Average Number of Checks per Minute: | Q69: =Q46/Q60 -> 0 | T69: Average Number of Checks per Minute: | U69: =U46/U60 -> 0
H70: Normalized Seat Turnover: | I70: =(I69*I61)/DiningRoomCapacity -> 0 | L70: Normalized Seat Turnover: | M70: =(M69*M61)/DiningRoomCapacity -> 0 | P70: Normalized Seat Turnover: | Q70: =(Q69*Q61)/DiningRoomCapacity -> 0 | T70: Normalized Seat Turnover: | U70: =(U69*U61)/DiningRoomCapacity -> 0

Sheet Week 7
F1: ü
Y2: Instructions
F3: ü
F4: ü | H4: Monday | L4: Tuesday | P4: Wednesday | T4: Thursday
H5: 1 | L5: 2 | P5: 3 | T5: 4
F6: ü | H6: Daily Production | L6: Daily Production | P6: Daily Production | T6: Daily Production
G7: Type | H7: Name of Menu Item | I7: # Prod. | J7: # Sold | K7: Type | L7: Name of Menu Item | M7: # Prod. | N7: # Sold | O7: Type | P7: Name of Menu Item | Q7: # Prod. | R7: # Sold | S7: Type | T7: Name of Menu Item | U7: # Prod. | V7: # Sold | X7: WeekLookup Reference
G8: ='Current Prices'!$F$6 -> Feature | H8: =IF(AND($E$13>=4,$E$13<=6),(HLOOKUP(H$5,ReverseMenu,VLOOKUP($E$13,WeekLookupTable,X8))),(HLOOKUP(H$5,CurrentMenu,VLOOKUP($E$13,WeekLookupTable,X8)))) -> Chicken Puff Pastry | K8: ='Current Prices'!$F$6 -> Feature | L8: =IF(AND($E$13>=4,$E$13<=6),(HLOOKUP(L$5,ReverseMenu,VLOOKUP($E$13,WeekLookupTable,X8))),(HLOOKUP(L$5,CurrentMenu,VLOOKUP($E$13,WeekLookupTable,X8)))) -> Beef & Broccoli Stir Fry | O8: ='Current Prices'!$F$6 -> Feature | P8: =IF(AND($E$13>=4,$E$13<=6),(HLOOKUP(P$5,ReverseMenu,VLOOKUP($E$13,WeekLookupTable,X8))),(HLOOKUP(P$5,CurrentMenu,VLOOKUP($E$13,WeekLookupTable,X8)))) -> Macadamia Chicken | S8: ='Current Prices'!$F$6 -> Feature | T8: =IF(AND($E$13>=4,$E$13<=6),(HLOOKUP(T$5,ReverseMenu,VLOOKUP($E$13,WeekLookupTable,X8))),(HLOOKUP(T$5,CurrentMenu,VLOOKUP($E$13,WeekLookupTable,X8)))) -> Mediterranean Chicken Pasta | X8: 2
G9: ='Current Prices'!$F$7 -> Soup | H9: Taco Soup | K9: ='Current Prices'!$F$7 -> Soup | L9: Chicken Pot Pie | O9: ='Current Prices'!$F$7 -> Soup | P9: Lasagna Soup | S9: ='Current Prices'!$F$7 -> Soup | T9: Broccoli Cheese Soup | X9: 3
G10: ='Current Prices'!$F$8 -> Cold Plate | H10: Vermont Turkey Club w/Spinach | K10: ='Current Prices'!$F$8 -> Cold Plate | L10: Chicken & Berry Sensation | O10: ='Current Prices'!$F$8 -> Cold Plate | P10: Kansas City BBQ Pork Sandwhich | S10: ='Current Prices'!$F$8 -> Cold Plate | T10: BBQ Chicken Salad | X10: 4
G11: ='Current Prices'!$F$9 -> Taco Salad | H11: Beef Taco Salad | K11: ='Current Prices'!$F$9 -> Taco Salad | L11: Beef Taco Salad | O11: ='Current Prices'!$F$9 -> Taco Salad | P11: Beef Taco Salad | S11: ='Current Prices'!$F$9 -> Taco Salad | T11: Beef Taco Salad | X11: 5
G12: ='Current Prices'!$F$10 -> Dessert | H12: Decadent Fudge Cake (÷ 12) | K12: ='Current Prices'!$F$10 -> Dessert | L12: Rasberry Buttermilk Pie Tart | O12: ='Current Prices'!$F$10 -> Dessert | P12: Pumpkin Streusel Pie (÷ 8) | S12: ='Current Prices'!$F$10 -> Dessert | T12: Fruit Pizza | X12: 6
D13: WEEK VLOOKUP = | E13: 7 | G13: ='Current Prices'!$F$11 -> Muffin | H13: Cherry Chocolate Scone | K13: ='Current Prices'!$F$11 -> Muffin | L13: Carrot Muffin | O13: ='Current Prices'!$F$11 -> Muffin | P13: Lemon Poppy Seed Muffin | S13: ='Current Prices'!$F$11 -> Muffin | T13: Cranberry Orange Scone (÷ 10) | X13: 7
G14: ='Current Prices'!$F$12 -> Cookie | H14: Oatmeal Golden Raisin Cookie | K14: ='Current Prices'!$F$12 -> Cookie | L14: Peanut Butter Chocolate Chip Cookie | O14: ='Current Prices'!$F$12 -> Cookie | P14: Chewy Dbl Chocolate Mint Cookie | S14: ='Current Prices'!$F$12 -> Cookie | T14: Macaroon | X14: 8
H15: There were 0 basic items produced and 0 basic items sold | L15: There were 0 basic items produced and 0 basic items sold | P15: There were 154 basic items produced and 122 basic items sold | T15: There were 154 basic items produced and 122 basic items sold
H17: Cashier Sheet | L17: Daily Sales | P17: Daily Sales | T17: Daily Sales | X17: Instructions:
G18: Type | H18: # Sold | I18: Price | J18: Total Sales | K18: Type | L18: # Sold | M18: Price | N18: Total Sales | O18: Type | P18: # Sold | Q18: Price | R18: Total Sales | S18: Type | T18: # Sold | U18: Price | V18: Total Sales | X18: This is the reference used to find which week to lookup in the menu
G19: ='Current Prices'!$F$6 -> Feature | H19: =IF(J8>0,J8,"") ->  | I19: ='Current Prices'!$G$6 -> 5.35 | J19: =IF(J8>0,(H19*I19),"") ->  | K19: ='Current Prices'!$F$6 -> Feature | L19: =IF(N8>0,N8,"") ->  | M19: ='Current Prices'!$G$6 -> 5.35 | N19: =IF(N8>0,(L19*M19),"") ->  | O19: ='Current Prices'!$F$6 -> Feature | P19: =IF(R8>0,R8,"") ->  | Q19: ='Current Prices'!$G$6 -> 5.35 | R19: =IF(R8>0,(P19*Q19),"") ->  | S19: ='Current Prices'!$F$6 -> Feature | T19: =IF(V8>0,V8,"") ->  | U19: ='Current Prices'!$G$6 -> 5.35 | V19: =IF(V8>0,(T19*U19),"") -> 
G20: ='Current Prices'!$F$8 -> Cold Plate | H20: =IF(J10>0,J10,"") ->  | I20: ='Current Prices'!$G$8 -> 5 | J20: =IF(J10>0,(H20*I20),"") ->  | K20: ='Current Prices'!$F$8 -> Cold Plate | L20: =IF(N10>0,N10,"") ->  | M20: ='Current Prices'!$G$8 -> 5 | N20: =IF(N10>0,(L20*M20),"") ->  | O20: ='Current Prices'!$F$8 -> Cold Plate | P20: =IF(R10>0,R10,"") ->  | Q20: ='Current Prices'!$G$8 -> 5 | R20: =IF(R10>0,(P20*Q20),"") ->  | S20: ='Current Prices'!$F$8 -> Cold Plate | T20: =IF(V10>0,V10,"") ->  | U20: ='Current Prices'!$G$8 -> 5 | V20: =IF(V10>0,(T20*U20),"") -> 
G21: ='Current Prices'!$F$9 -> Taco Salad | H21: =IF(J11>0,J11,"") ->  | I21: ='Current Prices'!$G$9 -> 4.5 | J21: =IF(J11>0,(H21*I21),"") ->  | K21: ='Current Prices'!$F$9 -> Taco Salad | L21: =IF(N11>0,N11,"") ->  | M21: ='Current Prices'!$G$9 -> 4.5 | N21: =IF(N11>0,(L21*M21),"") ->  | O21: ='Current Prices'!$F$9 -> Taco Salad | P21: =IF(R11>0,R11,"") ->  | Q21: ='Current Prices'!$G$9 -> 4.5 | R21: =IF(R11>0,(P21*Q21),"") ->  | S21: ='Current Prices'!$F$9 -> Taco Salad | T21: =IF(V11>0,V11,"") ->  | U21: ='Current Prices'!$G$9 -> 4.5 | V21: =IF(V11>0,(T21*U21),"") -> 
G22: ='Current Prices'!$F$7 -> Soup | H22: =IF(J9>0,J9,"") ->  | I22: ='Current Prices'!$G$7 -> 2.5 | J22: =IF(J9>0,(H22*I22),"") ->  | K22: ='Current Prices'!$F$7 -> Soup | L22: =IF(N9>0,N9,"") ->  | M22: ='Current Prices'!$G$7 -> 2.5 | N22: =IF(N9>0,(L22*M22),"") ->  | O22: ='Current Prices'!$F$7 -> Soup | P22: =IF(R9>0,R9,"") ->  | Q22: ='Current Prices'!$G$7 -> 2.5 | R22: =IF(R9>0,(P22*Q22),"") ->  | S22: ='Current Prices'!$F$7 -> Soup | T22: =IF(V9>0,V9,"") ->  | U22: ='Current Prices'!$G$7 -> 2.5 | V22: =IF(V9>0,(T22*U22),"") -> 
G23: ='Current Prices'!$F$10 -> Dessert | H23: =IF(J12>0,J12,"") ->  | I23: ='Current Prices'!$G$10 -> 2.5 | J23: =IF(J12>0,(H23*I23),"") ->  | K23: ='Current Prices'!$F$10 -> Dessert | L23: =IF(N12>0,N12,"") ->  | M23: ='Current Prices'!$G$10 -> 2.5 | N23: =IF(N12>0,(L23*M23),"") ->  | O23: ='Current Prices'!$F$10 -> Dessert | P23: =IF(R12>0,R12,"") ->  | Q23: ='Current Prices'!$G$10 -> 2.5 | R23: =IF(R12>0,(P23*Q23),"") ->  | S23: ='Current Prices'!$F$10 -> Dessert | T23: =IF(V12>0,V12,"") ->  | U23: ='Current Prices'!$G$10 -> 2.5 | V23: =IF(V12>0,(T23*U23),"") -> 
G24: ='Current Prices'!$F$11 -> Muffin | H24: =IF(J13>0,J13,"") ->  | I24: ='Current Prices'!$G$11 -> 1.25 | J24: =IF(J13>0,(H24*I24),"") ->  | K24: ='Current Prices'!$F$11 -> Muffin | L24: =IF(N13>0,N13,"") ->  | M24: ='Current Prices'!$G$11 -> 1.25 | N24: =IF(N13>0,(L24*M24),"") ->  | O24: ='Current Prices'!$F$11 -> Muffin | P24: =IF(R13>0,R13,"") ->  | Q24: ='Current Prices'!$G$11 -> 1.25 | R24: =IF(R13>0,(P24*Q24),"") ->  | S24: ='Current Prices'!$F$11 -> Muffin | T24: =IF(V13>0,V13,"") ->  | U24: ='Current Prices'!$G$11 -> 1.25 | V24: =IF(V13>0,(T24*U24),"") -> 
G25: ='Current Prices'!$F$12 -> Cookie | H25: =IF(J14>0,J14,"") ->  | I25: ='Current Prices'!$G$12 -> 0.75 | J25: =IF(J14>0,(H25*I25),"") ->  | K25: ='Current Prices'!$F$12 -> Cookie | L25: =IF(N14>0,N14,"") ->  | M25: ='Current Prices'!$G$12 -> 0.75 | N25: =IF(N14>0,(L25*M25),"") ->  | O25: ='Current Prices'!$F$12 -> Cookie | P25: =IF(R14>0,R14,"") ->  | Q25: ='Current Prices'!$G$12 -> 0.75 | R25: =IF(R14>0,(P25*Q25),"") ->  | S25: ='Current Prices'!$F$12 -> Cookie | T25: =IF(V14>0,V14,"") ->  | U25: ='Current Prices'!$G$12 -> 0.75 | V25: =IF(V14>0,(T25*U25),"") -> 
G27: A La Carte: | K27: A La Carte: | O27: A La Carte: | S27: A La Carte:
G28: ='Current Prices'!$F$15 -> Entrée | I28: ='Current Prices'!$G$15 -> 3 | J28: =H28*I28 -> 0 | K28: ='Current Prices'!$F$15 -> Entrée | M28: ='Current Prices'!$G$15 -> 3 | N28: =L28*M28 -> 0 | O28: ='Current Prices'!$F$15 -> Entrée | Q28: ='Current Prices'!$G$15 -> 3 | R28: =P28*Q28 -> 0 | S28: ='Current Prices'!$F$15 -> Entrée | U28: ='Current Prices'!$G$15 -> 3 | V28: =T28*U28 -> 0
G29: ='Current Prices'!$F$16 -> Vegetable | I29: ='Current Prices'!$G$16 -> 1 | J29: 0 | K29: ='Current Prices'!$F$16 -> Vegetable | M29: ='Current Prices'!$G$16 -> 1 | N29: =L29*M29 -> 0 | O29: ='Current Prices'!$F$16 -> Vegetable | Q29: ='Current Prices'!$G$16 -> 1 | R29: =P29*Q29 -> 0 | S29: ='Current Prices'!$F$16 -> Vegetable | U29: ='Current Prices'!$G$16 -> 1 | V29: =T29*U29 -> 0
G30: ='Current Prices'!$F$17 -> Starch | I30: ='Current Prices'!$G$17 -> 1.35 | J30: 0 | K30: ='Current Prices'!$F$17 -> Starch | M30: ='Current Prices'!$G$17 -> 1.35 | N30: 0 | O30: ='Current Prices'!$F$17 -> Starch | Q30: ='Current Prices'!$G$17 -> 1.35 | R30: 0 | S30: ='Current Prices'!$F$17 -> Starch | U30: ='Current Prices'!$G$17 -> 1.35 | V30: 0
G32: Misc. Items: | K32: Misc. Items: | O32: Misc. Items: | S32: Misc. Items:
G33: ='Current Prices'!$F$20 -> Fruit | I33: ='Current Prices'!$G$20 -> 0.6 | J33: =H33*I33 -> 0 | K33: ='Current Prices'!$F$20 -> Fruit | M33: ='Current Prices'!$G$20 -> 0.6 | N33: =L33*M33 -> 0 | O33: ='Current Prices'!$F$20 -> Fruit | Q33: ='Current Prices'!$G$20 -> 0.6 | R33: =P33*Q33 -> 0 | S33: ='Current Prices'!$F$20 -> Fruit | U33: ='Current Prices'!$G$20 -> 0.6 | V33: =T33*U33 -> 0
G34: ='Current Prices'!$F$21 -> Roll | I34: ='Current Prices'!$G$21 -> 0.6 | J34: =H34*I34 -> 0 | K34: ='Current Prices'!$F$21 -> Roll | M34: ='Current Prices'!$G$21 -> 0.6 | N34: =L34*M34 -> 0 | O34: ='Current Prices'!$F$21 -> Roll | Q34: ='Current Prices'!$G$21 -> 0.6 | R34: =P34*Q34 -> 0 | S34: ='Current Prices'!$F$21 -> Roll | U34: ='Current Prices'!$G$21 -> 0.6 | V34: =T34*U34 -> 0
G35: ='Current Prices'!$F$22 -> Soda | I35: ='Current Prices'!$G$22 -> 0.6 | J35: =H35*I35 -> 0 | K35: ='Current Prices'!$F$22 -> Soda | M35: ='Current Prices'!$G$22 -> 0.6 | N35: =L35*M35 -> 0 | O35: ='Current Prices'!$F$22 -> Soda | Q35: ='Current Prices'!$G$22 -> 0.6 | R35: =P35*Q35 -> 0 | S35: ='Current Prices'!$F$22 -> Soda | U35: ='Current Prices'!$G$22 -> 0.6 | V35: =T35*U35 -> 0
G36: ='Current Prices'!$F$23 -> Chocolate Milk | I36: ='Current Prices'!$G$23 -> 1 | J36: =H36*I36 -> 0 | K36: ='Current Prices'!$F$23 -> Chocolate Milk | M36: ='Current Prices'!$G$23 -> 1 | N36: =L36*M36 -> 0 | O36: ='Current Prices'!$F$23 -> Chocolate Milk | Q36: ='Current Prices'!$G$23 -> 1 | R36: =P36*Q36 -> 0 | S36: ='Current Prices'!$F$23 -> Chocolate Milk | U36: ='Current Prices'!$G$23 -> 1 | V36: =T36*U36 -> 0
G37: ='Current Prices'!$F$24 -> 2% Milk | I37: ='Current Prices'!$G$24 -> 1 | J37: =H37*I37 -> 0 | K37: ='Current Prices'!$F$24 -> 2% Milk | M37: ='Current Prices'!$G$24 -> 1 | N37: =L37*M37 -> 0 | O37: ='Current Prices'!$F$24 -> 2% Milk | Q37: ='Current Prices'!$G$24 -> 1 | R37: =P37*Q37 -> 0 | S37: ='Current Prices'!$F$24 -> 2% Milk | U37: ='Current Prices'!$G$24 -> 1 | V37: =T37*U37 -> 0
G38: ='Current Prices'!$F$25 -> Skim Milk | I38: ='Current Prices'!$G$25 -> 1 | J38: 0 | K38: ='Current Prices'!$F$25 -> Skim Milk | M38: ='Current Prices'!$G$25 -> 1 | N38: 0 | O38: ='Current Prices'!$F$25 -> Skim Milk | Q38: ='Current Prices'!$G$25 -> 1 | R38: 0 | S38: ='Current Prices'!$F$25 -> Skim Milk | U38: ='Current Prices'!$G$25 -> 1 | V38: 0
G39: ='Current Prices'!$F$26 -> V-8 Splash | I39: ='Current Prices'!$G$26 -> 1.5 | J39: 0 | K39: ='Current Prices'!$F$26 -> V-8 Splash | M39: ='Current Prices'!$G$26 -> 1.5 | N39: 0 | O39: ='Current Prices'!$F$26 -> V-8 Splash | Q39: ='Current Prices'!$G$26 -> 1.5 | R39: 0 | S39: ='Current Prices'!$F$26 -> V-8 Splash | U39: ='Current Prices'!$G$26 -> 1.5 | V39: 0
G40: Misc. | I40: Misc. Income: | K40: Misc. | M40: Misc. Income: | O40: Misc. | Q40: Misc. Income: | S40: Misc. | U40: Misc. Income:
H42: Subtotal of Net Income: | J42: =IF(ABS(I42-I53)>0,"DISCREPANCY","") ->  | L42: Subtotal of Net Income: | N42: =IF(ABS(M42-M53)>0,"DISCREPANCY","") ->  | P42: Subtotal of Net Income: | R42: =IF(ABS(Q42-Q53)>0,"DISCREPANCY","") ->  | T42: Subtotal of Net Income: | V42: =IF(ABS(U42-U53)>0,"DISCREPANCY","") -> 
H43: Minus Discount Meals: | L43: Minus Discount Meals: | P43: Minus Discount Meals: | T43: Minus Discount Meals:
H44: Net Income: | I44: =I42-I43 -> 0 | L44: Net Income: | M44: =M42-M43 -> 0 | P44: Net Income: | Q44: =Q42-Q43 -> 0 | T44: Net Income: | U44: =U42-U43 -> 0
H46: Number of Guests: | L46: Number of Guests: | P46: Number of Guests: | T46: Number of Guests:
H47: There were 18 items sold with total sales of $33.5 | L47: There were 215 items sold with total sales of $451.2 | P47: There were 215 items sold with total sales of $451.2 | T47: There were 215 items sold with total sales of $451.2
G52: DATA HIDDEN - USED FOR REPORTS | K52: DATA HIDDEN - USED FOR REPORTS | O52: DATA HIDDEN - USED FOR REPORTS | S52: DATA HIDDEN - USED FOR REPORTS
H53: Total Gross Sales: | I53: =SUM(J19:J40) -> 0 | L53: Total Gross Sales: | M53: =SUM(N19:N40) -> 0 | P53: Total Gross Sales: | Q53: =SUM(R19:R40) -> 0 | T53: Total Gross Sales: | U53: =SUM(V19:V40) -> 0
H54: Total Items Sold: | I54: =SUM(H19:H40) -> 0 | L54: Total Sales Count: | M54: =SUM(L19:L40) -> 0 | P54: Total Sales Count: | Q54: =SUM(P19:P40) -> 0 | T54: Total Sales Count: | U54: =SUM(T19:T40) -> 0
H56: Equivalent Meals Served | I56: =I44/EquivalentMealFactor -> 0 | L56: Equivalent Meals Served | M56: =M44/EquivalentMealFactor -> 0 | P56: Equivalent Meals Served | Q56: =Q44/EquivalentMealFactor -> 0 | T56: Equivalent Meals Served | U56: =U44/EquivalentMealFactor -> 0
H57: Average Check: | I57: =I44/I46 ->  | L57: Average Check: | M57: =M44/M46 ->  | P57: Average Check: | Q57: =Q44/Q46 ->  | T57: Average Check: | U57: =U44/U46 -> 
H58: Seat Turnover: | I58: =I46/DiningRoomCapacity -> 0 | L58: Seat Turnover: | M58: =M46/DiningRoomCapacity -> 0 | P58: Seat Turnover: | Q58: =Q46/DiningRoomCapacity -> 0 | T58: Seat Turnover: | U58: =U46/DiningRoomCapacity -> 0
H60: Minutes Served: | I60: 100 | L60: Minutes Served: | M60: 70 | P60: Minutes Served: | Q60: 100 | T60: Minutes Served: | U60: 100
H61: Normal Minutes: | I61: 100 | L61: Normal Minutes: | M61: 100 | P61: Normal Minutes: | Q61: 100 | T61: Normal Minutes: | U61: 100
H63: Average Sales per Minute: | I63: =I44/I60 -> 0 | L63: Average Sales per Minute: | M63: =M44/M60 -> 0 | P63: Average Sales per Minute: | Q63: =Q44/Q60 -> 0 | T63: Average Sales per Minute: | U63: =U44/U60 -> 0
H64: Normalized Sales: | I64: =I63*I61 -> 0 | L64: Normalized Sales: | M64: =M63*M61 -> 0 | P64: Normalized Sales: | Q64: =Q63*Q61 -> 0 | T64: Normalized Sales: | U64: =U63*U61 -> 0
H66: Average Equivalent Meals per Minute: | I66: =I56/I60 -> 0 | L66: Average Equivalent Meals per Minute: | M66: =M56/M60 -> 0 | P66: Average Equivalent Meals per Minute: | Q66: =Q56/Q60 -> 0 | T66: Average Equivalent Meals per Minute: | U66: =U56/U60 -> 0
H67: Normalized Equivalent Meals: | I67: =I61*I66 -> 0 | L67: Normalized Equivalent Meals: | M67: =M61*M66 -> 0 | P67: Normalized Equivalent Meals: | Q67: =Q61*Q66 -> 0 | T67: Normalized Equivalent Meals: | U67: =U61*U66 -> 0
H69: Average Number of Checks per Minute: | I69: =I46/I60 -> 0 | L69: Average Number of Checks per Minute: | M69: =M46/M60 -> 0 | P69: Average Number of Checks per Minute: | Q69: =Q46/Q60 -> 0 | T69: Average Number of Checks per Minute: | U69: =U46/U60 -> 0
H70: Normalized Seat Turnover: | I70: =(I69*I61)/DiningRoomCapacity -> 0 | L70: Normalized Seat Turnover: | M70: =(M69*M61)/DiningRoomCapacity -> 0 | P70: Normalized Seat Turnover: | Q70: =(Q69*Q61)/DiningRoomCapacity -> 0 | T70: Normalized Seat Turnover: | U70: =(U69*U61)/DiningRoomCapacity -> 0

Sheet Week 8
F1: ü
Y2: Instructions
F3: ü
F4: ü | H4: Monday | L4: Tuesday | P4: Wednesday | T4: Thursday
H5: 1 | L5: 2 | P5: 3 | T5: 4
F6: ü | H6: Daily Production | L6: Daily Production | P6: Daily Production | T6: Daily Production
G7: Type | H7: Name of Menu Item | I7: # Prod. | J7: # Sold | K7: Type | L7: Name of Menu Item | M7: # Prod. | N7: # Sold | O7: Type | P7: Name of Menu Item | Q7: # Prod. | R7: # Sold | S7: Type | T7: Name of Menu Item | U7: # Prod. | V7: # Sold | X7: WeekLookup Reference
G8: ='Current Prices'!$F$6 -> Feature | H8: =IF(AND($E$13>=4,$E$13<=6),(HLOOKUP(H$5,ReverseMenu,VLOOKUP($E$13,WeekLookupTable,X8))),(HLOOKUP(H$5,CurrentMenu,VLOOKUP($E$13,WeekLookupTable,X8)))) -> Russian Beef Stroganoff | K8: ='Current Prices'!$F$6 -> Feature | L8: =IF(AND($E$13>=4,$E$13<=6),(HLOOKUP(L$5,ReverseMenu,VLOOKUP($E$13,WeekLookupTable,X8))),(HLOOKUP(L$5,CurrentMenu,VLOOKUP($E$13,WeekLookupTable,X8)))) -> Moroccan Chicken | O8: ='Current Prices'!$F$6 -> Feature | P8: =IF(AND($E$13>=4,$E$13<=6),(HLOOKUP(P$5,ReverseMenu,VLOOKUP($E$13,WeekLookupTable,X8))),(HLOOKUP(P$5,CurrentMenu,VLOOKUP($E$13,WeekLookupTable,X8)))) -> Chicken & Spinach Calzone | S8: ='Current Prices'!$F$6 -> Feature | T8: =IF(AND($E$13>=4,$E$13<=6),(HLOOKUP(T$5,ReverseMenu,VLOOKUP($E$13,WeekLookupTable,X8))),(HLOOKUP(T$5,CurrentMenu,VLOOKUP($E$13,WeekLookupTable,X8)))) -> Cheddar Herb Cod | X8: 2
G9: ='Current Prices'!$F$7 -> Soup | H9: Vegetable Chili | K9: ='Current Prices'!$F$7 -> Soup | L9: Hearty Wild Mushroom Soup | O9: ='Current Prices'!$F$7 -> Soup | P9: Loaded Baked Potato Soup | S9: ='Current Prices'!$F$7 -> Soup | T9: Chicken Enchilada Soup | X9: 3
G10: ='Current Prices'!$F$8 -> Cold Plate | H10: Cajun Chicken Caesar Salad | K10: ='Current Prices'!$F$8 -> Cold Plate | L10: Turkey Bacon Ranch Sandwhich | O10: ='Current Prices'!$F$8 -> Cold Plate | P10: Gourmet Gouda & Beef Sandwhich | S10: ='Current Prices'!$F$8 -> Cold Plate | T10: Oriental Chicken & Mandarin Salad | X10: 4
G11: ='Current Prices'!$F$9 -> Taco Salad | H11: Beef Taco Salad | K11: ='Current Prices'!$F$9 -> Taco Salad | L11: Beef Taco Salad | O11: ='Current Prices'!$F$9 -> Taco Salad | P11: Beef Taco Salad | S11: ='Current Prices'!$F$9 -> Taco Salad | T11: Beef Taco Salad | X11: 5
G12: ='Current Prices'!$F$10 -> Dessert | H12: Lemon Crepe with Rasberry Sauce | K12: ='Current Prices'!$F$10 -> Dessert | L12: Chocolate Rasberry Crème Torte (÷ 10) | O12: ='Current Prices'!$F$10 -> Dessert | P12: Chocolaty Peanut Butter Pie (÷ 6) | S12: ='Current Prices'!$F$10 -> Dessert | T12: Strawberry Shortcake (÷ 10) | X12: 6
D13: WEEK VLOOKUP = | E13: 8 | G13: ='Current Prices'!$F$11 -> Muffin | H13: Home Style Cornbread Muffin | K13: ='Current Prices'!$F$11 -> Muffin | L13: Cheddar Chive Scone (÷ 10) | O13: ='Current Prices'!$F$11 -> Muffin | P13: Apple Muffin | S13: ='Current Prices'!$F$11 -> Muffin | T13: Golden Raisin Scone (÷ 10) | X13: 7
G14: ='Current Prices'!$F$12 -> Cookie | H14: Peanut Butter Choc Chip Cookie | K14: ='Current Prices'!$F$12 -> Cookie | L14: Chocolate Chip Cookie | O14: ='Current Prices'!$F$12 -> Cookie | P14: Toffee Oatmeal Cookie | S14: ='Current Prices'!$F$12 -> Cookie | T14: Chocolate Chip Cookie | X14: 8
H15: There were 0 basic items produced and 0 basic items sold | L15: There were 0 basic items produced and 0 basic items sold | P15: There were 154 basic items produced and 122 basic items sold | T15: There were 154 basic items produced and 122 basic items sold
H17: Cashier Sheet | L17: Daily Sales | P17: Daily Sales | T17: Daily Sales | X17: Instructions:
G18: Type | H18: # Sold | I18: Price | J18: Total Sales | K18: Type | L18: # Sold | M18: Price | N18: Total Sales | O18: Type | P18: # Sold | Q18: Price | R18: Total Sales | S18: Type | T18: # Sold | U18: Price | V18: Total Sales | X18: This is the reference used to find which week to lookup in the menu
G19: ='Current Prices'!$F$6 -> Feature | H19: =IF(J8>0,J8,"") ->  | I19: ='Current Prices'!$G$6 -> 5.35 | J19: =IF(J8>0,(H19*I19),"") ->  | K19: ='Current Prices'!$F$6 -> Feature | L19: =IF(N8>0,N8,"") ->  | M19: ='Current Prices'!$G$6 -> 5.35 | N19: =IF(N8>0,(L19*M19),"") ->  | O19: ='Current Prices'!$F$6 -> Feature | P19: =IF(R8>0,R8,"") ->  | Q19: ='Current Prices'!$G$6 -> 5.35 | R19: =IF(R8>0,(P19*Q19),"") ->  | S19: ='Current Prices'!$F$6 -> Feature | T19: =IF(V8>0,V8,"") ->  | U19: ='Current Prices'!$G$6 -> 5.35 | V19: =IF(V8>0,(T19*U19),"") -> 
G20: ='Current Prices'!$F$8 -> Cold Plate | H20: =IF(J10>0,J10,"") ->  | I20: ='Current Prices'!$G$8 -> 5 | J20: =IF(J10>0,(H20*I20),"") ->  | K20: ='Current Prices'!$F$8 -> Cold Plate | L20: =IF(N10>0,N10,"") ->  | M20: ='Current Prices'!$G$8 -> 5 | N20: =IF(N10>0,(L20*M20),"") ->  | O20: ='Current Prices'!$F$8 -> Cold Plate | P20: =IF(R10>0,R10,"") ->  | Q20: ='Current Prices'!$G$8 -> 5 | R20: =IF(R10>0,(P20*Q20),"") ->  | S20: ='Current Prices'!$F$8 -> Cold Plate | T20: =IF(V10>0,V10,"") ->  | U20: ='Current Prices'!$G$8 -> 5 | V20: =IF(V10>0,(T20*U20),"") -> 
G21: ='Current Prices'!$F$9 -> Taco Salad | H21: =IF(J11>0,J11,"") ->  | I21: ='Current Prices'!$G$9 -> 4.5 | J21: =IF(J11>0,(H21*I21),"") ->  | K21: ='Current Prices'!$F$9 -> Taco Salad | L21: =IF(N11>0,N11,"") ->  | M21: ='Current Prices'!$G$9 -> 4.5 | N21: =IF(N11>0,(L21*M21),"") ->  | O21: ='Current Prices'!$F$9 -> Taco Salad | P21: =IF(R11>0,R11,"") ->  | Q21: ='Current Prices'!$G$9 -> 4.5 | R21: =IF(R11>0,(P21*Q21),"") ->  | S21: ='Current Prices'!$F$9 -> Taco Salad | T21: =IF(V11>0,V11,"") ->  | U21: ='Current Prices'!$G$9 -> 4.5 | V21: =IF(V11>0,(T21*U21),"") -> 
G22: ='Current Prices'!$F$7 -> Soup | H22: =IF(J9>0,J9,"") ->  | I22: ='Current Prices'!$G$7 -> 2.5 | J22: =IF(J9>0,(H22*I22),"") ->  | K22: ='Current Prices'!$F$7 -> Soup | L22: =IF(N9>0,N9,"") ->  | M22: ='Current Prices'!$G$7 -> 2.5 | N22: =IF(N9>0,(L22*M22),"") ->  | O22: ='Current Prices'!$F$7 -> Soup | P22: =IF(R9>0,R9,"") ->  | Q22: ='Current Prices'!$G$7 -> 2.5 | R22: =IF(R9>0,(P22*Q22),"") ->  | S22: ='Current Prices'!$F$7 -> Soup | T22: =IF(V9>0,V9,"") ->  | U22: ='Current Prices'!$G$7 -> 2.5 | V22: =IF(V9>0,(T22*U22),"") -> 
G23: ='Current Prices'!$F$10 -> Dessert | H23: =IF(J12>0,J12,"") ->  | I23: ='Current Prices'!$G$10 -> 2.5 | J23: =IF(J12>0,(H23*I23),"") ->  | K23: ='Current Prices'!$F$10 -> Dessert | L23: =IF(N12>0,N12,"") ->  | M23: ='Current Prices'!$G$10 -> 2.5 | N23: =IF(N12>0,(L23*M23),"") ->  | O23: ='Current Prices'!$F$10 -> Dessert | P23: =IF(R12>0,R12,"") ->  | Q23: ='Current Prices'!$G$10 -> 2.5 | R23: =IF(R12>0,(P23*Q23),"") ->  | S23: ='Current Prices'!$F$10 -> Dessert | T23: =IF(V12>0,V12,"") ->  | U23: ='Current Prices'!$G$10 -> 2.5 | V23: =IF(V12>0,(T23*U23),"") -> 
G24: ='Current Prices'!$F$11 -> Muffin | H24: =IF(J13>0,J13,"") ->  | I24: ='Current Prices'!$G$11 -> 1.25 | J24: =IF(J13>0,(H24*I24),"") ->  | K24: ='Current Prices'!$F$11 -> Muffin | L24: =IF(N13>0,N13,"") ->  | M24: ='Current Prices'!$G$11 -> 1.25 | N24: =IF(N13>0,(L24*M24),"") ->  | O24: ='Current Prices'!$F$11 -> Muffin | P24: =IF(R13>0,R13,"") ->  | Q24: ='Current Prices'!$G$11 -> 1.25 | R24: =IF(R13>0,(P24*Q24),"") ->  | S24: ='Current Prices'!$F$11 -> Muffin | T24: =IF(V13>0,V13,"") ->  | U24: ='Current Prices'!$G$11 -> 1.25 | V24: =IF(V13>0,(T24*U24),"") -> 
G25: ='Current Prices'!$F$12 -> Cookie | H25: =IF(J14>0,J14,"") ->  | I25: ='Current Prices'!$G$12 -> 0.75 | J25: =IF(J14>0,(H25*I25),"") ->  | K25: ='Current Prices'!$F$12 -> Cookie | L25: =IF(N14>0,N14,"") ->  | M25: ='Current Prices'!$G$12 -> 0.75 | N25: =IF(N14>0,(L25*M25),"") ->  | O25: ='Current Prices'!$F$12 -> Cookie | P25: =IF(R14>0,R14,"") ->  | Q25: ='Current Prices'!$G$12 -> 0.75 | R25: =IF(R14>0,(P25*Q25),"") ->  | S25: ='Current Prices'!$F$12 -> Cookie | T25: =IF(V14>0,V14,"") ->  | U25: ='Current Prices'!$G$12 -> 0.75 | V25: =IF(V14>0,(T25*U25),"") -> 
G27: A La Carte: | K27: A La Carte: | O27: A La Carte: | S27: A La Carte:
G28: ='Current Prices'!$F$15 -> Entrée | I28: ='Current Prices'!$G$15 -> 3 | J28: =H28*I28 -> 0 | K28: ='Current Prices'!$F$15 -> Entrée | M28: ='Current Prices'!$G$15 -> 3 | N28: =L28*M28 -> 0 | O28: ='Current Prices'!$F$15 -> Entrée | Q28: ='Current Prices'!$G$15 -> 3 | R28: =P28*Q28 -> 0 | S28: ='Current Prices'!$F$15 -> Entrée | U28: ='Current Prices'!$G$15 -> 3 | V28: =T28*U28 -> 0
G29: ='Current Prices'!$F$16 -> Vegetable | I29: ='Current Prices'!$G$16 -> 1 | J29: 0 | K29: ='Current Prices'!$F$16 -> Vegetable | M29: ='Current Prices'!$G$16 -> 1 | N29: =L29*M29 -> 0 | O29: ='Current Prices'!$F$16 -> Vegetable | Q29: ='Current Prices'!$G$16 -> 1 | R29: =P29*Q29 -> 0 | S29: ='Current Prices'!$F$16 -> Vegetable | U29: ='Current Prices'!$G$16 -> 1 | V29: =T29*U29 -> 0
G30: ='Current Prices'!$F$17 -> Starch | I30: ='Current Prices'!$G$17 -> 1.35 | J30: 0 | K30: ='Current Prices'!$F$17 -> Starch | M30: ='Current Prices'!$G$17 -> 1.35 | N30: 0 | O30: ='Current Prices'!$F$17 -> Starch | Q30: ='Current Prices'!$G$17 -> 1.35 | R30: 0 | S30: ='Current Prices'!$F$17 -> Starch | U30: ='Current Prices'!$G$17 -> 1.35 | V30: 0
G32: Misc. Items: | K32: Misc. Items: | O32: Misc. Items: | S32: Misc. Items:
G33: ='Current Prices'!$F$20 -> Fruit | I33: ='Current Prices'!$G$20 -> 0.6 | J33: =H33*I33 -> 0 | K33: ='Current Prices'!$F$20 -> Fruit | M33: ='Current Prices'!$G$20 -> 0.6 | N33: =L33*M33 -> 0 | O33: ='Current Prices'!$F$20 -> Fruit | Q33: ='Current Prices'!$G$20 -> 0.6 | R33: =P33*Q33 -> 0 | S33: ='Current Prices'!$F$20 -> Fruit | U33: ='Current Prices'!$G$20 -> 0.6 | V33: =T33*U33 -> 0
G34: ='Current Prices'!$F$21 -> Roll | I34: ='Current Prices'!$G$21 -> 0.6 | J34: =H34*I34 -> 0 | K34: ='Current Prices'!$F$21 -> Roll | M34: ='Current Prices'!$G$21 -> 0.6 | N34: =L34*M34 -> 0 | O34: ='Current Prices'!$F$21 -> Roll | Q34: ='Current Prices'!$G$21 -> 0.6 | R34: =P34*Q34 -> 0 | S34: ='Current Prices'!$F$21 -> Roll | U34: ='Current Prices'!$G$21 -> 0.6 | V34: =T34*U34 -> 0
G35: ='Current Prices'!$F$22 -> Soda | I35: ='Current Prices'!$G$22 -> 0.6 | J35: =H35*I35 -> 0 | K35: ='Current Prices'!$F$22 -> Soda | M35: ='Current Prices'!$G$22 -> 0.6 | N35: =L35*M35 -> 0 | O35: ='Current Prices'!$F$22 -> Soda | Q35: ='Current Prices'!$G$22 -> 0.6 | R35: =P35*Q35 -> 0 | S35: ='Current Prices'!$F$22 -> Soda | U35: ='Current Prices'!$G$22 -> 0.6 | V35: =T35*U35 -> 0
G36: ='Current Prices'!$F$23 -> Chocolate Milk | I36: ='Current Prices'!$G$23 -> 1 | J36: =H36*I36 -> 0 | K36: ='Current Prices'!$F$23 -> Chocolate Milk | M36: ='Current Prices'!$G$23 -> 1 | N36: =L36*M36 -> 0 | O36: ='Current Prices'!$F$23 -> Chocolate Milk | Q36: ='Current Prices'!$G$23 -> 1 | R36: =P36*Q36 -> 0 | S36: ='Current Prices'!$F$23 -> Chocolate Milk | U36: ='Current Prices'!$G$23 -> 1 | V36: =T36*U36 -> 0
G37: ='Current Prices'!$F$24 -> 2% Milk | I37: ='Current Prices'!$G$24 -> 1 | J37: =H37*I37 -> 0 | K37: ='Current Prices'!$F$24 -> 2% Milk | M37: ='Current Prices'!$G$24 -> 1 | N37: =L37*M37 -> 0 | O37: ='Current Prices'!$F$24 -> 2% Milk | Q37: ='Current Prices'!$G$24 -> 1 | R37: =P37*Q37 -> 0 | S37: ='Current Prices'!$F$24 -> 2% Milk | U37: ='Current Prices'!$G$24 -> 1 | V37: =T37*U37 -> 0
G38: ='Current Prices'!$F$25 -> Skim Milk | I38: ='Current Prices'!$G$25 -> 1 | J38: 0 | K38: ='Current Prices'!$F$25 -> Skim Milk | M38: ='Current Prices'!$G$25 -> 1 | N38: 0 | O38: ='Current Prices'!$F$25 -> Skim Milk | Q38: ='Current Prices'!$G$25 -> 1 | R38: 0 | S38: ='Current Prices'!$F$25 -> Skim Milk | U38: ='Current Prices'!$G$25 -> 1 | V38: 0
G39: ='Current Prices'!$F$26 -> V-8 Splash | I39: ='Current Prices'!$G$26 -> 1.5 | J39: 0 | K39: ='Current Prices'!$F$26 -> V-8 Splash | M39: ='Current Prices'!$G$26 -> 1.5 | N39: 0 | O39: ='Current Prices'!$F$26 -> V-8 Splash | Q39: ='Current Prices'!$G$26 -> 1.5 | R39: 0 | S39: ='Current Prices'!$F$26 -> V-8 Splash | U39: ='Current Prices'!$G$26 -> 1.5 | V39: 0
G40: Misc. | I40: Misc. Income: | K40: Misc. | M40: Misc. Income: | O40: Misc. | Q40: Misc. Income: | S40: Misc. | U40: Misc. Income:
H42: Subtotal of Net Income: | J42: =IF(ABS(I42-I53)>0,"DISCREPANCY","") ->  | L42: Subtotal of Net Income: | N42: =IF(ABS(M42-M53)>0,"DISCREPANCY","") ->  | P42: Subtotal of Net Income: | R42: =IF(ABS(Q42-Q53)>0,"DISCREPANCY","") ->  | T42: Subtotal of Net Income: | V42: =IF(ABS(U42-U53)>0,"DISCREPANCY","") -> 
H43: Minus Discount Meals: | L43: Minus Discount Meals: | P43: Minus Discount Meals: | T43: Minus Discount Meals:
H44: Net Income: | I44: =I42-I43 -> 0 | L44: Net Income: | M44: =M42-M43 -> 0 | P44: Net Income: | Q44: =Q42-Q43 -> 0 | T44: Net Income: | U44: =U42-U43 -> 0
H46: Number of Guests: | L46: Number of Guests: | P46: Number of Guests: | T46: Number of Guests:
H47: There were 18 items sold with total sales of $33.5 | L47: There were 215 items sold with total sales of $451.2 | P47: There were 215 items sold with total sales of $451.2 | T47: There were 215 items sold with total sales of $451.2
G52: DATA HIDDEN - USED FOR REPORTS | K52: DATA HIDDEN - USED FOR REPORTS | O52: DATA HIDDEN - USED FOR REPORTS | S52: DATA HIDDEN - USED FOR REPORTS
H53: Total Gross Sales: | I53: =SUM(J19:J40) -> 0 | L53: Total Gross Sales: | M53: =SUM(N19:N40) -> 0 | P53: Total Gross Sales: | Q53: =SUM(R19:R40) -> 0 | T53: Total Gross Sales: | U53: =SUM(V19:V40) -> 0
H54: Total Items Sold: | I54: =SUM(H19:H40) -> 0 | L54: Total Sales Count: | M54: =SUM(L19:L40) -> 0 | P54: Total Sales Count: | Q54: =SUM(P19:P40) -> 0 | T54: Total Sales Count: | U54: =SUM(T19:T40) -> 0
H56: Equivalent Meals Served | I56: =I44/EquivalentMealFactor -> 0 | L56: Equivalent Meals Served | M56: =M44/EquivalentMealFactor -> 0 | P56: Equivalent Meals Served | Q56: =Q44/EquivalentMealFactor -> 0 | T56: Equivalent Meals Served | U56: =U44/EquivalentMealFactor -> 0
H57: Average Check: | I57: =I44/I46 ->  | L57: Average Check: | M57: =M44/M46 ->  | P57: Average Check: | Q57: =Q44/Q46 ->  | T57: Average Check: | U57: =U44/U46 -> 
H58: Seat Turnover: | I58: =I46/DiningRoomCapacity -> 0 | L58: Seat Turnover: | M58: =M46/DiningRoomCapacity -> 0 | P58: Seat Turnover: | Q58: =Q46/DiningRoomCapacity -> 0 | T58: Seat Turnover: | U58: =U46/DiningRoomCapacity -> 0
H60: Minutes Served: | I60: 100 | L60: Minutes Served: | M60: 70 | P60: Minutes Served: | Q60: 100 | T60: Minutes Served: | U60: 100
H61: Normal Minutes: | I61: 100 | L61: Normal Minutes: | M61: 100 | P61: Normal Minutes: | Q61: 100 | T61: Normal Minutes: | U61: 100
H63: Average Sales per Minute: | I63: =I44/I60 -> 0 | L63: Average Sales per Minute: | M63: =M44/M60 -> 0 | P63: Average Sales per Minute: | Q63: =Q44/Q60 -> 0 | T63: Average Sales per Minute: | U63: =U44/U60 -> 0
H64: Normalized Sales: | I64: =I63*I61 -> 0 | L64: Normalized Sales: | M64: =M63*M61 -> 0 | P64: Normalized Sales: | Q64: =Q63*Q61 -> 0 | T64: Normalized Sales: | U64: =U63*U61 -> 0
H66: Average Equivalent Meals per Minute: | I66: =I56/I60 -> 0 | L66: Average Equivalent Meals per Minute: | M66: =M56/M60 -> 0 | P66: Average Equivalent Meals per Minute: | Q66: =Q56/Q60 -> 0 | T66: Average Equivalent Meals per Minute: | U66: =U56/U60 -> 0
H67: Normalized Equivalent Meals: | I67: =I61*I66 -> 0 | L67: Normalized Equivalent Meals: | M67: =M61*M66 -> 0 | P67: Normalized Equivalent Meals: | Q67: =Q61*Q66 -> 0 | T67: Normalized Equivalent Meals: | U67: =U61*U66 -> 0
H69: Average Number of Checks per Minute: | I69: =I46/I60 -> 0 | L69: Average Number of Checks per Minute: | M69: =M46/M60 -> 0 | P69: Average Number of Checks per Minute: | Q69: =Q46/Q60 -> 0 | T69: Average Number of Checks per Minute: | U69: =U46/U60 -> 0
H70: Normalized Seat Turnover: | I70: =(I69*I61)/DiningRoomCapacity -> 0 | L70: Normalized Seat Turnover: | M70: =(M69*M61)/DiningRoomCapacity -> 0 | P70: Normalized Seat Turnover: | Q70: =(Q69*Q61)/DiningRoomCapacity -> 0 | T70: Normalized Seat Turnover: | U70: =(U69*U61)/DiningRoomCapacity -> 0

Sheet Week 9
F1: ü
Y2: Instructions
F3: ü
F4: ü | H4: Monday | L4: Tuesday | P4: Wednesday | T4: Thursday
H5: 1 | L5: 2 | P5: 3 | T5: 4
F6: ü | H6: Daily Production | L6: Daily Production | P6: Daily Production | T6: Daily Production
G7: Type | H7: Name of Menu Item | I7: # Prod. | J7: # Sold | K7: Type | L7: Name of Menu Item | M7: # Prod. | N7: # Sold | O7: Type | P7: Name of Menu Item | Q7: # Prod. | R7: # Sold | S7: Type | T7: Name of Menu Item | U7: # Prod. | V7: # Sold | X7: WeekLookup Reference
G8: ='Current Prices'!$F$6 -> Feature | H8: =IF(AND($E$13>=4,$E$13<=6),(HLOOKUP(H$5,ReverseMenu,VLOOKUP($E$13,WeekLookupTable,X8))),(HLOOKUP(H$5,CurrentMenu,VLOOKUP($E$13,WeekLookupTable,X8)))) -> Monterey Chicken | I8: 25 | J8: 15 | K8: ='Current Prices'!$F$6 -> Feature | L8: =IF(AND($E$13>=4,$E$13<=6),(HLOOKUP(L$5,ReverseMenu,VLOOKUP($E$13,WeekLookupTable,X8))),(HLOOKUP(L$5,CurrentMenu,VLOOKUP($E$13,WeekLookupTable,X8)))) -> Baked Ziti | O8: ='Current Prices'!$F$6 -> Feature | P8: =IF(AND($E$13>=4,$E$13<=6),(HLOOKUP(P$5,ReverseMenu,VLOOKUP($E$13,WeekLookupTable,X8))),(HLOOKUP(P$5,CurrentMenu,VLOOKUP($E$13,WeekLookupTable,X8)))) -> Stuffed Bean Burrito | S8: ='Current Prices'!$F$6 -> Feature | T8: =IF(AND($E$13>=4,$E$13<=6),(HLOOKUP(T$5,ReverseMenu,VLOOKUP($E$13,WeekLookupTable,X8))),(HLOOKUP(T$5,CurrentMenu,VLOOKUP($E$13,WeekLookupTable,X8)))) -> Herb Crusted Chicken Breast | X8: 2
G9: ='Current Prices'!$F$7 -> Soup | H9: Black Bean Soup | I9: 25 | J9: 15 | K9: ='Current Prices'!$F$7 -> Soup | L9: Chicken Cilantro Bisque | O9: ='Current Prices'!$F$7 -> Soup | P9: Zuppa Tuscana Soup | S9: ='Current Prices'!$F$7 -> Soup | T9: Tomato Florentine Soup | X9: 3
G10: ='Current Prices'!$F$8 -> Cold Plate | H10: Asian Lettuce Un-Wrapped Salad | I10: 25 | J10: 15 | K10: ='Current Prices'!$F$8 -> Cold Plate | L10: Grilled Cheese Sandwhich w/Tomato Soup | O10: ='Current Prices'!$F$8 -> Cold Plate | P10: Turkey & Swiss Crescent Sandwhich | S10: ='Current Prices'!$F$8 -> Cold Plate | T10: Tuscan Tuna Sandwhich | X10: 4
G11: ='Current Prices'!$F$9 -> Taco Salad | H11: Beef Taco Salad | I11: 25 | J11: 15 | K11: ='Current Prices'!$F$9 -> Taco Salad | L11: Beef Taco Salad | O11: ='Current Prices'!$F$9 -> Taco Salad | P11: Beef Taco Salad | S11: ='Current Prices'!$F$9 -> Taco Salad | T11: Beef Taco Salad | X11: 5
G12: ='Current Prices'!$F$10 -> Dessert | H12: Cheesecake Assortment | I12: 25 | J12: 15 | K12: ='Current Prices'!$F$10 -> Dessert | L12: Triple Chocolate Turnover | O12: ='Current Prices'!$F$10 -> Dessert | P12: Malted Chocolate Mousse Pie (÷ 6) | S12: ='Current Prices'!$F$10 -> Dessert | T12: Old Fashioned Peach Pie (÷ 8) | X12: 6
D13: WEEK VLOOKUP = | E13: 9 | G13: ='Current Prices'!$F$11 -> Muffin | H13: Pumpkin Chocolate Chip Muffin | I13: 25 | J13: 15 | K13: ='Current Prices'!$F$11 -> Muffin | L13: Chocolate Chip Sour Cream Muffin | O13: ='Current Prices'!$F$11 -> Muffin | P13: Almond Poppy Seed Scone | S13: ='Current Prices'!$F$11 -> Muffin | T13: Chocolate Avalanche Muffin | X13: 7
G14: ='Current Prices'!$F$12 -> Cookie | H14: Peanut Butter Chocolate Chip Cookie | I14: 25 | J14: 15 | K14: ='Current Prices'!$F$12 -> Cookie | L14: Toffee Oatmeal Cookie | O14: ='Current Prices'!$F$12 -> Cookie | P14: Chewy Double Chocolate Mint Cookie | S14: ='Current Prices'!$F$12 -> Cookie | T14: Oatmeal Golden Raisin Cookie | X14: 8
H15: There were 175 basic items produced and 105 basic items sold | L15: There were 0 basic items produced and 0 basic items sold | P15: There were 154 basic items produced and 122 basic items sold | T15: There were 154 basic items produced and 122 basic items sold
H17: Cashier Sheet | L17: Daily Sales | P17: Daily Sales | T17: Daily Sales | X17: Instructions:
G18: Type | H18: # Sold | I18: Price | J18: Total Sales | K18: Type | L18: # Sold | M18: Price | N18: Total Sales | O18: Type | P18: # Sold | Q18: Price | R18: Total Sales | S18: Type | T18: # Sold | U18: Price | V18: Total Sales | X18: This is the reference used to find which week to lookup in the menu
G19: ='Current Prices'!$F$6 -> Feature | H19: =IF(J8>0,J8,"") -> 15 | I19: ='Current Prices'!$G$6 -> 5.35 | J19: =IF(J8>0,(H19*I19),"") -> 80.25 | K19: ='Current Prices'!$F$6 -> Feature | L19: =IF(N8>0,N8,"") ->  | M19: ='Current Prices'!$G$6 -> 5.35 | N19: =IF(N8>0,(L19*M19),"") ->  | O19: ='Current Prices'!$F$6 -> Feature | P19: =IF(R8>0,R8,"") ->  | Q19: ='Current Prices'!$G$6 -> 5.35 | R19: =IF(R8>0,(P19*Q19),"") ->  | S19: ='Current Prices'!$F$6 -> Feature | T19: =IF(V8>0,V8,"") ->  | U19: ='Current Prices'!$G$6 -> 5.35 | V19: =IF(V8>0,(T19*U19),"") -> 
G20: ='Current Prices'!$F$8 -> Cold Plate | H20: =IF(J10>0,J10,"") -> 15 | I20: ='Current Prices'!$G$8 -> 5 | J20: =IF(J10>0,(H20*I20),"") -> 75 | K20: ='Current Prices'!$F$8 -> Cold Plate | L20: =IF(N10>0,N10,"") ->  | M20: ='Current Prices'!$G$8 -> 5 | N20: =IF(N10>0,(L20*M20),"") ->  | O20: ='Current Prices'!$F$8 -> Cold Plate | P20: =IF(R10>0,R10,"") ->  | Q20: ='Current Prices'!$G$8 -> 5 | R20: =IF(R10>0,(P20*Q20),"") ->  | S20: ='Current Prices'!$F$8 -> Cold Plate | T20: =IF(V10>0,V10,"") ->  | U20: ='Current Prices'!$G$8 -> 5 | V20: =IF(V10>0,(T20*U20),"") -> 
G21: ='Current Prices'!$F$9 -> Taco Salad | H21: =IF(J11>0,J11,"") -> 15 | I21: ='Current Prices'!$G$9 -> 4.5 | J21: =IF(J11>0,(H21*I21),"") -> 67.5 | K21: ='Current Prices'!$F$9 -> Taco Salad | L21: =IF(N11>0,N11,"") ->  | M21: ='Current Prices'!$G$9 -> 4.5 | N21: =IF(N11>0,(L21*M21),"") ->  | O21: ='Current Prices'!$F$9 -> Taco Salad | P21: =IF(R11>0,R11,"") ->  | Q21: ='Current Prices'!$G$9 -> 4.5 | R21: =IF(R11>0,(P21*Q21),"") ->  | S21: ='Current Prices'!$F$9 -> Taco Salad | T21: =IF(V11>0,V11,"") ->  | U21: ='Current Prices'!$G$9 -> 4.5 | V21: =IF(V11>0,(T21*U21),"") -> 
G22: ='Current Prices'!$F$7 -> Soup | H22: =IF(J9>0,J9,"") -> 15 | I22: ='Current Prices'!$G$7 -> 2.5 | J22: =IF(J9>0,(H22*I22),"") -> 37.5 | K22: ='Current Prices'!$F$7 -> Soup | L22: =IF(N9>0,N9,"") ->  | M22: ='Current Prices'!$G$7 -> 2.5 | N22: =IF(N9>0,(L22*M22),"") ->  | O22: ='Current Prices'!$F$7 -> Soup | P22: =IF(R9>0,R9,"") ->  | Q22: ='Current Prices'!$G$7 -> 2.5 | R22: =IF(R9>0,(P22*Q22),"") ->  | S22: ='Current Prices'!$F$7 -> Soup | T22: =IF(V9>0,V9,"") ->  | U22: ='Current Prices'!$G$7 -> 2.5 | V22: =IF(V9>0,(T22*U22),"") -> 
G23: ='Current Prices'!$F$10 -> Dessert | H23: =IF(J12>0,J12,"") -> 15 | I23: ='Current Prices'!$G$10 -> 2.5 | J23: =IF(J12>0,(H23*I23),"") -> 37.5 | K23: ='Current Prices'!$F$10 -> Dessert | L23: =IF(N12>0,N12,"") ->  | M23: ='Current Prices'!$G$10 -> 2.5 | N23: =IF(N12>0,(L23*M23),"") ->  | O23: ='Current Prices'!$F$10 -> Dessert | P23: =IF(R12>0,R12,"") ->  | Q23: ='Current Prices'!$G$10 -> 2.5 | R23: =IF(R12>0,(P23*Q23),"") ->  | S23: ='Current Prices'!$F$10 -> Dessert | T23: =IF(V12>0,V12,"") ->  | U23: ='Current Prices'!$G$10 -> 2.5 | V23: =IF(V12>0,(T23*U23),"") -> 
G24: ='Current Prices'!$F$11 -> Muffin | H24: =IF(J13>0,J13,"") -> 15 | I24: ='Current Prices'!$G$11 -> 1.25 | J24: =IF(J13>0,(H24*I24),"") -> 18.75 | K24: ='Current Prices'!$F$11 -> Muffin | L24: =IF(N13>0,N13,"") ->  | M24: ='Current Prices'!$G$11 -> 1.25 | N24: =IF(N13>0,(L24*M24),"") ->  | O24: ='Current Prices'!$F$11 -> Muffin | P24: =IF(R13>0,R13,"") ->  | Q24: ='Current Prices'!$G$11 -> 1.25 | R24: =IF(R13>0,(P24*Q24),"") ->  | S24: ='Current Prices'!$F$11 -> Muffin | T24: =IF(V13>0,V13,"") ->  | U24: ='Current Prices'!$G$11 -> 1.25 | V24: =IF(V13>0,(T24*U24),"") -> 
G25: ='Current Prices'!$F$12 -> Cookie | H25: =IF(J14>0,J14,"") -> 15 | I25: ='Current Prices'!$G$12 -> 0.75 | J25: =IF(J14>0,(H25*I25),"") -> 11.25 | K25: ='Current Prices'!$F$12 -> Cookie | L25: =IF(N14>0,N14,"") ->  | M25: ='Current Prices'!$G$12 -> 0.75 | N25: =IF(N14>0,(L25*M25),"") ->  | O25: ='Current Prices'!$F$12 -> Cookie | P25: =IF(R14>0,R14,"") ->  | Q25: ='Current Prices'!$G$12 -> 0.75 | R25: =IF(R14>0,(P25*Q25),"") ->  | S25: ='Current Prices'!$F$12 -> Cookie | T25: =IF(V14>0,V14,"") ->  | U25: ='Current Prices'!$G$12 -> 0.75 | V25: =IF(V14>0,(T25*U25),"") -> 
G27: A La Carte: | K27: A La Carte: | O27: A La Carte: | S27: A La Carte:
G28: ='Current Prices'!$F$15 -> Entrée | H28: 12 | I28: ='Current Prices'!$G$15 -> 3 | J28: =H28*I28 -> 36 | K28: ='Current Prices'!$F$15 -> Entrée | M28: ='Current Prices'!$G$15 -> 3 | N28: =L28*M28 -> 0 | O28: ='Current Prices'!$F$15 -> Entrée | Q28: ='Current Prices'!$G$15 -> 3 | R28: =P28*Q28 -> 0 | S28: ='Current Prices'!$F$15 -> Entrée | U28: ='Current Prices'!$G$15 -> 3 | V28: =T28*U28 -> 0
G29: ='Current Prices'!$F$16 -> Vegetable | H29: 12 | I29: ='Current Prices'!$G$16 -> 1 | J29: 12 | K29: ='Current Prices'!$F$16 -> Vegetable | M29: ='Current Prices'!$G$16 -> 1 | N29: =L29*M29 -> 0 | O29: ='Current Prices'!$F$16 -> Vegetable | Q29: ='Current Prices'!$G$16 -> 1 | R29: =P29*Q29 -> 0 | S29: ='Current Prices'!$F$16 -> Vegetable | U29: ='Current Prices'!$G$16 -> 1 | V29: =T29*U29 -> 0
G30: ='Current Prices'!$F$17 -> Starch | H30: 12 | I30: ='Current Prices'!$G$17 -> 1.35 | J30: 16.2 | K30: ='Current Prices'!$F$17 -> Starch | M30: ='Current Prices'!$G$17 -> 1.35 | N30: 0 | O30: ='Current Prices'!$F$17 -> Starch | Q30: ='Current Prices'!$G$17 -> 1.35 | R30: 0 | S30: ='Current Prices'!$F$17 -> Starch | U30: ='Current Prices'!$G$17 -> 1.35 | V30: 0
G32: Misc. Items: | K32: Misc. Items: | O32: Misc. Items: | S32: Misc. Items:
G33: ='Current Prices'!$F$20 -> Fruit | H33: 14 | I33: ='Current Prices'!$G$20 -> 0.6 | J33: =H33*I33 -> 8.4 | K33: ='Current Prices'!$F$20 -> Fruit | M33: ='Current Prices'!$G$20 -> 0.6 | N33: =L33*M33 -> 0 | O33: ='Current Prices'!$F$20 -> Fruit | Q33: ='Current Prices'!$G$20 -> 0.6 | R33: =P33*Q33 -> 0 | S33: ='Current Prices'!$F$20 -> Fruit | U33: ='Current Prices'!$G$20 -> 0.6 | V33: =T33*U33 -> 0
G34: ='Current Prices'!$F$21 -> Roll | H34: 14 | I34: ='Current Prices'!$G$21 -> 0.6 | J34: =H34*I34 -> 8.4 | K34: ='Current Prices'!$F$21 -> Roll | M34: ='Current Prices'!$G$21 -> 0.6 | N34: =L34*M34 -> 0 | O34: ='Current Prices'!$F$21 -> Roll | Q34: ='Current Prices'!$G$21 -> 0.6 | R34: =P34*Q34 -> 0 | S34: ='Current Prices'!$F$21 -> Roll | U34: ='Current Prices'!$G$21 -> 0.6 | V34: =T34*U34 -> 0
G35: ='Current Prices'!$F$22 -> Soda | H35: 14 | I35: ='Current Prices'!$G$22 -> 0.6 | J35: =H35*I35 -> 8.4 | K35: ='Current Prices'!$F$22 -> Soda | M35: ='Current Prices'!$G$22 -> 0.6 | N35: =L35*M35 -> 0 | O35: ='Current Prices'!$F$22 -> Soda | Q35: ='Current Prices'!$G$22 -> 0.6 | R35: =P35*Q35 -> 0 | S35: ='Current Prices'!$F$22 -> Soda | U35: ='Current Prices'!$G$22 -> 0.6 | V35: =T35*U35 -> 0
G36: ='Current Prices'!$F$23 -> Chocolate Milk | H36: 14 | I36: ='Current Prices'!$G$23 -> 1 | J36: =H36*I36 -> 14 | K36: ='Current Prices'!$F$23 -> Chocolate Milk | M36: ='Current Prices'!$G$23 -> 1 | N36: =L36*M36 -> 0 | O36: ='Current Prices'!$F$23 -> Chocolate Milk | Q36: ='Current Prices'!$G$23 -> 1 | R36: =P36*Q36 -> 0 | S36: ='Current Prices'!$F$23 -> Chocolate Milk | U36: ='Current Prices'!$G$23 -> 1 | V36: =T36*U36 -> 0
G37: ='Current Prices'!$F$24 -> 2% Milk | H37: 14 | I37: ='Current Prices'!$G$24 -> 1 | J37: =H37*I37 -> 14 | K37: ='Current Prices'!$F$24 -> 2% Milk | M37: ='Current Prices'!$G$24 -> 1 | N37: =L37*M37 -> 0 | O37: ='Current Prices'!$F$24 -> 2% Milk | Q37: ='Current Prices'!$G$24 -> 1 | R37: =P37*Q37 -> 0 | S37: ='Current Prices'!$F$24 -> 2% Milk | U37: ='Current Prices'!$G$24 -> 1 | V37: =T37*U37 -> 0
G38: ='Current Prices'!$F$25 -> Skim Milk | H38: 14 | I38: ='Current Prices'!$G$25 -> 1 | J38: 14 | K38: ='Current Prices'!$F$25 -> Skim Milk | M38: ='Current Prices'!$G$25 -> 1 | N38: 0 | O38: ='Current Prices'!$F$25 -> Skim Milk | Q38: ='Current Prices'!$G$25 -> 1 | R38: 0 | S38: ='Current Prices'!$F$25 -> Skim Milk | U38: ='Current Prices'!$G$25 -> 1 | V38: 0
G39: ='Current Prices'!$F$26 -> V-8 Splash | H39: 14 | I39: ='Current Prices'!$G$26 -> 1.5 | J39: 21 | K39: ='Current Prices'!$F$26 -> V-8 Splash | M39: ='Current Prices'!$G$26 -> 1.5 | N39: 0 | O39: ='Current Prices'!$F$26 -> V-8 Splash | Q39: ='Current Prices'!$G$26 -> 1.5 | R39: 0 | S39: ='Current Prices'!$F$26 -> V-8 Splash | U39: ='Current Prices'!$G$26 -> 1.5 | V39: 0
G40: Misc. | H40: 0 | I40: Misc. Income: | J40: 0 | K40: Misc. | M40: Misc. Income: | O40: Misc. | Q40: Misc. Income: | S40: Misc. | U40: Misc. Income:
H42: Subtotal of Net Income: | I42: 480.15 | J42: =IF(ABS(I42-I53)>0,"DISCREPANCY","") -> DISCREPANCY | L42: Subtotal of Net Income: | N42: =IF(ABS(M42-M53)>0,"DISCREPANCY","") ->  | P42: Subtotal of Net Income: | R42: =IF(ABS(Q42-Q53)>0,"DISCREPANCY","") ->  | T42: Subtotal of Net Income: | V42: =IF(ABS(U42-U53)>0,"DISCREPANCY","") -> 
H43: Minus Discount Meals: | I43: 45 | L43: Minus Discount Meals: | P43: Minus Discount Meals: | T43: Minus Discount Meals:
H44: Net Income: | I44: =I42-I43 -> 435.15 | L44: Net Income: | M44: =M42-M43 -> 0 | P44: Net Income: | Q44: =Q42-Q43 -> 0 | T44: Net Income: | U44: =U42-U43 -> 0
H46: Number of Guests: | I46: 50 | L46: Number of Guests: | P46: Number of Guests: | T46: Number of Guests:
H47: There were 239 items sold with total sales of $480.15 | L47: There were 215 items sold with total sales of $451.2 | P47: There were 215 items sold with total sales of $451.2 | T47: There were 215 items sold with total sales of $451.2
G52: DATA HIDDEN - USED FOR REPORTS | K52: DATA HIDDEN - USED FOR REPORTS | O52: DATA HIDDEN - USED FOR REPORTS | S52: DATA HIDDEN - USED FOR REPORTS
H53: Total Gross Sales: | I53: =SUM(J19:J40) -> 480.15 | L53: Total Gross Sales: | M53: =SUM(N19:N40) -> 0 | P53: Total Gross Sales: | Q53: =SUM(R19:R40) -> 0 | T53: Total Gross Sales: | U53: =SUM(V19:V40) -> 0
H54: Total Items Sold: | I54: =SUM(H19:H40) -> 239 | L54: Total Sales Count: | M54: =SUM(L19:L40) -> 0 | P54: Total Sales Count: | Q54: =SUM(P19:P40) -> 0 | T54: Total Sales Count: | U54: =SUM(T19:T40) -> 0
H56: Equivalent Meals Served | I56: =I44/EquivalentMealFactor -> 51.49704142 | L56: Equivalent Meals Served | M56: =M44/EquivalentMealFactor -> 0 | P56: Equivalent Meals Served | Q56: =Q44/EquivalentMealFactor -> 0 | T56: Equivalent Meals Served | U56: =U44/EquivalentMealFactor -> 0
H57: Average Check: | I57: =I44/I46 -> 8.703 | L57: Average Check: | M57: =M44/M46 ->  | P57: Average Check: | Q57: =Q44/Q46 ->  | T57: Average Check: | U57: =U44/U46 -> 
H58: Seat Turnover: | I58: =I46/DiningRoomCapacity -> 0.625 | L58: Seat Turnover: | M58: =M46/DiningRoomCapacity -> 0 | P58: Seat Turnover: | Q58: =Q46/DiningRoomCapacity -> 0 | T58: Seat Turnover: | U58: =U46/DiningRoomCapacity -> 0
H60: Minutes Served: | I60: 100 | L60: Minutes Served: | M60: 70 | P60: Minutes Served: | Q60: 100 | T60: Minutes Served: | U60: 100
H61: Normal Minutes: | I61: 100 | L61: Normal Minutes: | M61: 100 | P61: Normal Minutes: | Q61: 100 | T61: Normal Minutes: | U61: 100
H63: Average Sales per Minute: | I63: =I44/I60 -> 4.3515 | L63: Average Sales per Minute: | M63: =M44/M60 -> 0 | P63: Average Sales per Minute: | Q63: =Q44/Q60 -> 0 | T63: Average Sales per Minute: | U63: =U44/U60 -> 0
H64: Normalized Sales: | I64: =I63*I61 -> 435.15 | L64: Normalized Sales: | M64: =M63*M61 -> 0 | P64: Normalized Sales: | Q64: =Q63*Q61 -> 0 | T64: Normalized Sales: | U64: =U63*U61 -> 0
H66: Average Equivalent Meals per Minute: | I66: =I56/I60 -> 0.5149704142 | L66: Average Equivalent Meals per Minute: | M66: =M56/M60 -> 0 | P66: Average Equivalent Meals per Minute: | Q66: =Q56/Q60 -> 0 | T66: Average Equivalent Meals per Minute: | U66: =U56/U60 -> 0
H67: Normalized Equivalent Meals: | I67: =I61*I66 -> 51.49704142 | L67: Normalized Equivalent Meals: | M67: =M61*M66 -> 0 | P67: Normalized Equivalent Meals: | Q67: =Q61*Q66 -> 0 | T67: Normalized Equivalent Meals: | U67: =U61*U66 -> 0
H69: Average Number of Checks per Minute: | I69: =I46/I60 -> 0.5 | L69: Average Number of Checks per Minute: | M69: =M46/M60 -> 0 | P69: Average Number of Checks per Minute: | Q69: =Q46/Q60 -> 0 | T69: Average Number of Checks per Minute: | U69: =U46/U60 -> 0
H70: Normalized Seat Turnover: | I70: =(I69*I61)/DiningRoomCapacity -> 0.625 | L70: Normalized Seat Turnover: | M70: =(M69*M61)/DiningRoomCapacity -> 0 | P70: Normalized Seat Turnover: | Q70: =(Q69*Q61)/DiningRoomCapacity -> 0 | T70: Normalized Seat Turnover: | U70: =(U69*U61)/DiningRoomCapacity -> 0

Sheet Reports

Sheet Data
A1: Week | B1: Day | C1: FeatureSales | D1: ColdPlateSales | E1: TacoSaladSales | F1: SoupSales | G1: DessertSales | H1: MuffinSales | I1: CookieSales | J1: ALaCarteSales | K1: MiscItemSales | L1: TotalSales | M1: TotalDiscounts | N1: TotalNetSales | O1: FeatureSold | P1: ColdPlateSold | Q1: TacoSaladSold | R1: SoupSold | S1: DessertSold | T1: MuffinSold | U1: CookieSold | V1: ALaCarteSold | W1: MiscItemSold | X1: TotalItemsSold | Y1: EquivalentMeals | Z1: AverageCheck | AA1: NumberofGuests
A2: 1 | B2: Monday | C2: 235.4 | D2: 125 | E2: 211.5 | F2: 82.5 | G2: 107.5 | H2: 81.25 | I2: 33 | J2: 52.8 | K2: 106.8 | L2: 1035.75 | M2: 35 | N2: 1000.75 | O2: 44 | P2: 25 | Q2: 47 | R2: 33 | S2: 43 | T2: 65 | U2: 44 | V2: 26 | W2: 128 | X2: 455 | Y2: 118.4319527 | Z2: 8.78 | AA2: 114
A3: 1 | B3: Tuesday | C3: 235.4 | D3: 125 | E3: 211.5 | F3: 82.5 | G3: 107.5 | H3: 81.25 | I3: 33 | J3: 52.8 | K3: 106.8 | L3: 680 | M3: 35 | N3: 450 | O3: 44 | P3: 25 | Q3: 47 | R3: 33 | S3: 43 | T3: 65 | U3: 44 | V3: 26 | W3: 128 | X3: 455 | Y3: 119.4319527 | Z3: 8.78 | AA3: 114
A4: 1 | B4: Wednesday | C4: 235.4 | D4: 125 | E4: 211.5 | F4: 82.5 | G4: 107.5 | H4: 81.25 | I4: 33 | J4: 52.8 | K4: 106.8 | L4: 1035.75 | M4: 35 | N4: 1000.75 | O4: 44 | P4: 25 | Q4: 47 | R4: 33 | S4: 43 | T4: 65 | U4: 44 | V4: 26 | W4: 128 | X4: 455 | Y4: 120.4319527 | Z4: 8.78 | AA4: 114
A5: 1 | B5: Thursday | C5: 235.4 | D5: 125 | E5: 211.5 | F5: 82.5 | G5: 107.5 | H5: 81.25 | I5: 33 | J5: 52.8 | K5: 106.8 | L5: 1035.75 | M5: 35 | N5: 1000.75 | O5: 44 | P5: 25 | Q5: 47 | R5: 33 | S5: 43 | T5: 65 | U5: 44 | V5: 26 | W5: 128 | X5: 455 | Y5: 121.4319527 | Z5: 8.78 | AA5: 114
A6: 2 | B6: Monday | C6: 235.4 | D6: 125 | E6: 211.5 | F6: 82.5 | G6: 107.5 | H6: 81.25 | I6: 33 | J6: 52.8 | K6: 106.8 | L6: 1035.75 | M6: 35 | N6: 1000.75 | O6: 44 | P6: 25 | Q6: 47 | R6: 33 | S6: 43 | T6: 65 | U6: 44 | V6: 26 | W6: 128 | X6: 455 | Y6: 122.4319527 | Z6: 8.78 | AA6: 114
A7: 2 | B7: Tuesday | C7: 235.4 | D7: 125 | E7: 211.5 | F7: 82.5 | G7: 107.5 | H7: 81.25 | I7: 33 | J7: 52.8 | K7: 106.8 | L7: 900 | M7: 35 | N7: 780 | O7: 44 | P7: 25 | Q7: 47 | R7: 33 | S7: 43 | T7: 65 | U7: 44 | V7: 26 | W7: 128 | X7: 455 | Y7: 123.4319527 | Z7: 8.78 | AA7: 114
A8: 2 | B8: Wednesday | C8: 235.4 | D8: 125 | E8: 211.5 | F8: 82.5 | G8: 107.5 | H8: 81.25 | I8: 33 | J8: 52.8 | K8: 106.8 | L8: 1035.75 | M8: 35 | N8: 1000.75 | O8: 44 | P8: 25 | Q8: 47 | R8: 33 | S8: 43 | T8: 65 | U8: 44 | V8: 26 | W8: 128 | X8: 455 | Y8: 124.4319527 | Z8: 8.78 | AA8: 114
A9: 2 | B9: Thursday | C9: 235.4 | D9: 125 | E9: 211.5 | F9: 82.5 | G9: 107.5 | H9: 81.25 | I9: 33 | J9: 52.8 | K9: 106.8 | L9: 1035.75 | M9: 35 | N9: 1000.75 | O9: 44 | P9: 25 | Q9: 47 | R9: 33 | S9: 43 | T9: 65 | U9: 44 | V9: 26 | W9: 128 | X9: 455 | Y9: 125.4319527 | Z9: 8.78 | AA9: 114
A10: 3 | B10: Monday | C10: 235.4 | D10: 125 | E10: 211.5 | F10: 82.5 | G10: 107.5 | H10: 81.25 | I10: 33 | J10: 52.8 | K10: 106.8 | L10: 1035.75 | M10: 35 | N10: 1000.75 | O10: 44 | P10: 25 | Q10: 47 | R10: 33 | S10: 43 | T10: 65 | U10: 44 | V10: 26 | W10: 128 | X10: 455 | Y10: 126.4319527 | Z10: 8.78 | AA10: 114
A11: 3 | B11: Tuesday | C11: 235.4 | D11: 125 | E11: 211.5 | F11: 82.5 | G11: 107.5 | H11: 81.25 | I11: 33 | J11: 52.8 | K11: 106.8 | L11: 1200 | M11: 35 | N11: 900 | O11: 44 | P11: 25 | Q11: 47 | R11: 33 | S11: 43 | T11: 65 | U11: 44 | V11: 26 | W11: 128 | X11: 455 | Y11: 127.4319527 | Z11: 8.78 | AA11: 114
A12: 3 | B12: Wednesday | C12: 235.4 | D12: 125 | E12: 211.5 | F12: 82.5 | G12: 107.5 | H12: 81.25 | I12: 33 | J12: 52.8 | K12: 106.8 | L12: 1035.75 | M12: 35 | N12: 1000.75 | O12: 44 | P12: 25 | Q12: 47 | R12: 33 | S12: 43 | T12: 65 | U12: 44 | V12: 26 | W12: 128 | X12: 455 | Y12: 128.4319527 | Z12: 8.78 | AA12: 114
A13: 3 | B13: Thursday | C13: 235.4 | D13: 125 | E13: 211.5 | F13: 82.5 | G13: 107.5 | H13: 81.25 | I13: 33 | J13: 52.8 | K13: 106.8 | L13: 1035.75 | M13: 35 | N13: 1000.75 | O13: 44 | P13: 25 | Q13: 47 | R13: 33 | S13: 43 | T13: 65 | U13: 44 | V13: 26 | W13: 128 | X13: 455 | Y13: 129.4319527 | Z13: 8.78 | AA13: 114
A14: 4 | B14: Monday | C14: 235.4 | D14: 125 | E14: 211.5 | F14: 82.5 | G14: 107.5 | H14: 81.25 | I14: 33 | J14: 52.8 | K14: 106.8 | L14: 1035.75 | M14: 35 | N14: 1000.75 | O14: 44 | P14: 25 | Q14: 47 | R14: 33 | S14: 43 | T14: 65 | U14: 44 | V14: 26 | W14: 128 | X14: 455 | Y14: 130.4319527 | Z14: 8.78 | AA14: 114
A15: 4 | B15: Tuesday | C15: 235.4 | D15: 125 | E15: 211.5 | F15: 82.5 | G15: 107.5 | H15: 81.25 | I15: 33 | J15: 52.8 | K15: 106.8 | L15: 750 | M15: 35 | N15: 600 | O15: 44 | P15: 25 | Q15: 47 | R15: 33 | S15: 43 | T15: 65 | U15: 44 | V15: 26 | W15: 128 | X15: 455 | Y15: 131.4319527 | Z15: 8.78 | AA15: 114
A16: 4 | B16: Wednesday | C16: 235.4 | D16: 125 | E16: 211.5 | F16: 82.5 | G16: 107.5 | H16: 81.25 | I16: 33 | J16: 52.8 | K16: 106.8 | L16: 1035.75 | M16: 35 | N16: 1000.75 | O16: 44 | P16: 25 | Q16: 47 | R16: 33 | S16: 43 | T16: 65 | U16: 44 | V16: 26 | W16: 128 | X16: 455 | Y16: 132.4319527 | Z16: 8.78 | AA16: 114
A17: 4 | B17: Thursday | C17: 235.4 | D17: 125 | E17: 211.5 | F17: 82.5 | G17: 107.5 | H17: 81.25 | I17: 33 | J17: 52.8 | K17: 106.8 | L17: 1035.75 | M17: 35 | N17: 1000.75 | O17: 44 | P17: 25 | Q17: 47 | R17: 33 | S17: 43 | T17: 65 | U17: 44 | V17: 26 | W17: 128 | X17: 455 | Y17: 133.4319527 | Z17: 8.78 | AA17: 114
A18: 5 | B18: Monday | C18: 235.4 | D18: 125 | E18: 211.5 | F18: 82.5 | G18: 107.5 | H18: 81.25 | I18: 33 | J18: 52.8 | K18: 106.8 | L18: 1035.75 | M18: 35 | N18: 1000.75 | O18: 44 | P18: 25 | Q18: 47 | R18: 33 | S18: 43 | T18: 65 | U18: 44 | V18: 26 | W18: 128 | X18: 455 | Y18: 134.4319527 | Z18: 8.78 | AA18: 114
A19: 5 | B19: Tuesday | C19: 235.4 | D19: 125 | E19: 211.5 | F19: 82.5 | G19: 107.5 | H19: 81.25 | I19: 33 | J19: 52.8 | K19: 106.8 | L19: 1400 | M19: 35 | N19: 1200 | O19: 44 | P19: 25 | Q19: 47 | R19: 33 | S19: 43 | T19: 65 | U19: 44 | V19: 26 | W19: 128 | X19: 455 | Y19: 135.4319527 | Z19: 8.78 | AA19: 114
A20: 5 | B20: Wednesday | C20: 235.4 | D20: 125 | E20: 211.5 | F20: 82.5 | G20: 107.5 | H20: 81.25 | I20: 33 | J20: 52.8 | K20: 106.8 | L20: 1035.75 | M20: 35 | N20: 1000.75 | O20: 44 | P20: 25 | Q20: 47 | R20: 33 | S20: 43 | T20: 65 | U20: 44 | V20: 26 | W20: 128 | X20: 455 | Y20: 136.4319527 | Z20: 8.78 | AA20: 114
A21: 5 | B21: Thursday | C21: 235.4 | D21: 125 | E21: 211.5 | F21: 82.5 | G21: 107.5 | H21: 81.25 | I21: 33 | J21: 52.8 | K21: 106.8 | L21: 1035.75 | M21: 35 | N21: 1000.75 | O21: 44 | P21: 25 | Q21: 47 | R21: 33 | S21: 43 | T21: 65 | U21: 44 | V21: 26 | W21: 128 | X21: 455 | Y21: 137.4319527 | Z21: 8.78 | AA21: 114
A22: 6 | B22: Monday | C22: 235.4 | D22: 125 | E22: 211.5 | F22: 82.5 | G22: 107.5 | H22: 81.25 | I22: 33 | J22: 52.8 | K22: 106.8 | L22: 1035.75 | M22: 35 | N22: 1000.75 | O22: 44 | P22: 25 | Q22: 47 | R22: 33 | S22: 43 | T22: 65 | U22: 44 | V22: 26 | W22: 128 | X22: 455 | Y22: 138.4319527 | Z22: 8.78 | AA22: 114
A23: 6 | B23: Tuesday | C23: 235.4 | D23: 125 | E23: 211.5 | F23: 82.5 | G23: 107.5 | H23: 81.25 | I23: 33 | J23: 52.8 | K23: 106.8 | L23: 1035 | M23: 35 | N23: 1000.75 | O23: 44 | P23: 25 | Q23: 47 | R23: 33 | S23: 43 | T23: 65 | U23: 44 | V23: 26 | W23: 128 | X23: 455 | Y23: 139.4319527 | Z23: 8.78 | AA23: 114
A24: 6 | B24: Wednesday | C24: 235.4 | D24: 125 | E24: 211.5 | F24: 82.5 | G24: 107.5 | H24: 81.25 | I24: 33 | J24: 52.8 | K24: 106.8 | L24: 1035.75 | M24: 35 | N24: 1000.75 | O24: 44 | P24: 25 | Q24: 47 | R24: 33 | S24: 43 | T24: 65 | U24: 44 | V24: 26 | W24: 128 | X24: 455 | Y24: 140.4319527 | Z24: 8.78 | AA24: 114
A25: 6 | B25: Thursday | C25: 235.4 | D25: 125 | E25: 211.5 | F25: 82.5 | G25: 107.5 | H25: 81.25 | I25: 33 | J25: 52.8 | K25: 106.8 | L25: 1035.75 | M25: 35 | N25: 1000.75 | O25: 44 | P25: 25 | Q25: 47 | R25: 33 | S25: 43 | T25: 65 | U25: 44 | V25: 26 | W25: 128 | X25: 455 | Y25: 141.4319527 | Z25: 8.78 | AA25: 114
A26: 7 | B26: Monday | C26: 235.4 | D26: 125 | E26: 211.5 | F26: 82.5 | G26: 107.5 | H26: 81.25 | I26: 33 | J26: 52.8 | K26: 106.8 | L26: 1035.75 | M26: 35 | N26: 1000.75 | O26: 44 | P26: 25 | Q26: 47 | R26: 33 | S26: 43 | T26: 65 | U26: 44 | V26: 26 | W26: 128 | X26: 455 | Y26: 142.4319527 | Z26: 8.78 | AA26: 114
A27: 7 | B27: Tuesday | C27: 235.4 | D27: 125 | E27: 211.5 | F27: 82.5 | G27: 107.5 | H27: 81.25 | I27: 33 | J27: 52.8 | K27: 106.8 | L27: 900 | M27: 35 | N27: 550 | O27: 44 | P27: 25 | Q27: 47 | R27: 33 | S27: 43 | T27: 65 | U27: 44 | V27: 26 | W27: 128 | X27: 455 | Y27: 143.4319527 | Z27: 8.78 | AA27: 114
A28: 7 | B28: Wednesday | C28: 235.4 | D28: 125 | E28: 211.5 | F28: 82.5 | G28: 107.5 | H28: 81.25 | I28: 33 | J28: 52.8 | K28: 106.8 | L28: 1035.75 | M28: 35 | N28: 1000.75 | O28: 44 | P28: 25 | Q28: 47 | R28: 33 | S28: 43 | T28: 65 | U28: 44 | V28: 26 | W28: 128 | X28: 455 | Y28: 144.4319527 | Z28: 8.78 | AA28: 114
A29: 7 | B29: Thursday | C29: 235.4 | D29: 125 | E29: 211.5 | F29: 82.5 | G29: 107.5 | H29: 81.25 | I29: 33 | J29: 52.8 | K29: 106.8 | L29: 1035.75 | M29: 35 | N29: 1000.75 | O29: 44 | P29: 25 | Q29: 47 | R29: 33 | S29: 43 | T29: 65 | U29: 44 | V29: 26 | W29: 128 | X29: 455 | Y29: 145.4319527 | Z29: 8.78 | AA29: 114
A30: 8 | B30: Monday | C30: 235.4 | D30: 125 | E30: 211.5 | F30: 82.5 | G30: 107.5 | H30: 81.25 | I30: 33 | J30: 52.8 | K30: 106.8 | L30: 1035.75 | M30: 35 | N30: 1000.75 | O30: 44 | P30: 25 | Q30: 47 | R30: 33 | S30: 43 | T30: 65 | U30: 44 | V30: 26 | W30: 128 | X30: 455 | Y30: 146.4319527 | Z30: 8.78 | AA30: 114
A31: 8 | B31: Tuesday | C31: 235.4 | D31: 125 | E31: 211.5 | F31: 82.5 | G31: 107.5 | H31: 81.25 | I31: 33 | J31: 52.8 | K31: 106.8 | L31: 1900 | M31: 35 | N31: 850 | O31: 44 | P31: 25 | Q31: 47 | R31: 33 | S31: 43 | T31: 65 | U31: 44 | V31: 26 | W31: 128 | X31: 455 | Y31: 147.4319527 | Z31: 8.78 | AA31: 114
A32: 8 | B32: Wednesday | C32: 235.4 | D32: 125 | E32: 211.5 | F32: 82.5 | G32: 107.5 | H32: 81.25 | I32: 33 | J32: 52.8 | K32: 106.8 | L32: 1035.75 | M32: 35 | N32: 1000.75 | O32: 44 | P32: 25 | Q32: 47 | R32: 33 | S32: 43 | T32: 65 | U32: 44 | V32: 26 | W32: 128 | X32: 455 | Y32: 148.4319527 | Z32: 8.78 | AA32: 114
A33: 8 | B33: Thursday | C33: 235.4 | D33: 125 | E33: 211.5 | F33: 82.5 | G33: 107.5 | H33: 81.25 | I33: 33 | J33: 52.8 | K33: 106.8 | L33: 1035.75 | M33: 35 | N33: 1000.75 | O33: 44 | P33: 25 | Q33: 47 | R33: 33 | S33: 43 | T33: 65 | U33: 44 | V33: 26 | W33: 128 | X33: 455 | Y33: 149.4319527 | Z33: 8.78 | AA33: 114
A34: 9 | B34: Monday | C34: 235.4 | D34: 125 | E34: 211.5 | F34: 82.5 | G34: 107.5 | H34: 81.25 | I34: 33 | J34: 52.8 | K34: 106.8 | L34: 1035.75 | M34: 35 | N34: 1000.75 | O34: 44 | P34: 25 | Q34: 47 | R34: 33 | S34: 43 | T34: 65 | U34: 44 | V34: 26 | W34: 128 | X34: 455 | Y34: 150.4319527 | Z34: 8.78 | AA34: 114
A35: 9 | B35: Tuesday | C35: 235.4 | D35: 125 | E35: 211.5 | F35: 82.5 | G35: 107.5 | H35: 81.25 | I35: 33 | J35: 52.8 | K35: 106.8 | L35: 1700 | M35: 35 | N35: 1400 | O35: 44 | P35: 25 | Q35: 47 | R35: 33 | S35: 43 | T35: 65 | U35: 44 | V35: 26 | W35: 128 | X35: 455 | Y35: 151.4319527 | Z35: 8.78 | AA35: 114
A36: 9 | B36: Wednesday | C36: 235.4 | D36: 125 | E36: 211.5 | F36: 82.5 | G36: 107.5 | H36: 81.25 | I36: 33 | J36: 52.8 | K36: 106.8 | L36: 1035.75 | M36: 35 | N36: 1000.75 | O36: 44 | P36: 25 | Q36: 47 | R36: 33 | S36: 43 | T36: 65 | U36: 44 | V36: 26 | W36: 128 | X36: 455 | Y36: 152.4319527 | Z36: 8.78 | AA36: 114
A37: 9 | B37: Thursday | C37: 235.4 | D37: 125 | E37: 211.5 | F37: 82.5 | G37: 107.5 | H37: 81.25 | I37: 33 | J37: 52.8 | K37: 106.8 | L37: 1035.75 | M37: 35 | N37: 1000.75 | O37: 44 | P37: 25 | Q37: 47 | R37: 33 | S37: 43 | T37: 65 | U37: 44 | V37: 26 | W37: 128 | X37: 455 | Y37: 153.4319527 | Z37: 8.78 | AA37: 114

Sheet ReportData
A1: Week | B1: Weekly Net Sales | C1: Weekly Item Sales Count | D1: Weekly Equivalent Meals Served | E1: Sales Discounts | F1: Weekly # of Guests | G1: Weekly Gross Sales
A2: Week 1 | B2: =SUMIF(Data!$A$2:$A$37,1,Data!$N$2:$N$37) -> 3452.25 | C2: =SUMIF(Data!$A$2:$A$37,1,Data!$X$2:$X$37) -> 1820 | D2: =SUMIF(Data!$A$2:$A$37,1,Data!$Y$2:$Y$37) -> 479.7278107 | E2: =SUMIF(Data!$A$2:$A$37,1,Data!$M$2:$M$37) -> 140 | F2: =SUMIF(Data!$A$2:$A$37,1,Data!$AA$2:$AA$37) -> 456 | G2: =SUMIF(Data!$A$2:$A$37,1,Data!$L$2:$L$37) -> 3787.25
A3: Week 2 | B3: =SUMIF(Data!$A$2:$A$37,2,Data!$N$2:$N$37) -> 3782.25 | C3: =SUMIF(Data!$A$2:$A$37,2,Data!$X$2:$X$37) -> 1820 | D3: =SUMIF(Data!$A$2:$A$37,2,Data!$Y$2:$Y$37) -> 495.7278107 | E3: =SUMIF(Data!$A$2:$A$37,2,Data!$M$2:$M$37) -> 140 | F3: =SUMIF(Data!$A$2:$A$37,2,Data!$AA$2:$AA$37) -> 456 | G3: =SUMIF(Data!$A$2:$A$37,2,Data!$L$2:$L$37) -> 4007.25
A4: Week 3 | B4: =SUMIF(Data!$A$2:$A$37,3,Data!$N$2:$N$37) -> 3902.25 | C4: =SUMIF(Data!$A$2:$A$37,3,Data!$X$2:$X$37) -> 1820 | D4: =SUMIF(Data!$A$2:$A$37,3,Data!$Y$2:$Y$37) -> 511.7278107 | E4: =SUMIF(Data!$A$2:$A$37,3,Data!$M$2:$M$37) -> 140 | F4: =SUMIF(Data!$A$2:$A$37,3,Data!$AA$2:$AA$37) -> 456 | G4: =SUMIF(Data!$A$2:$A$37,3,Data!$L$2:$L$37) -> 4307.25
A5: Week 4 | B5: =SUMIF(Data!$A$2:$A$37,4,Data!$N$2:$N$37) -> 3602.25 | C5: =SUMIF(Data!$A$2:$A$37,4,Data!$X$2:$X$37) -> 1820 | D5: =SUMIF(Data!$A$2:$A$37,4,Data!$Y$2:$Y$37) -> 527.7278107 | E5: =SUMIF(Data!$A$2:$A$37,4,Data!$M$2:$M$37) -> 140 | F5: =SUMIF(Data!$A$2:$A$37,4,Data!$AA$2:$AA$37) -> 456 | G5: =SUMIF(Data!$A$2:$A$37,4,Data!$L$2:$L$37) -> 3857.25
A6: Week 5 | B6: =SUMIF(Data!$A$2:$A$37,5,Data!$N$2:$N$37) -> 4202.25 | C6: =SUMIF(Data!$A$2:$A$37,5,Data!$X$2:$X$37) -> 1820 | D6: =SUMIF(Data!$A$2:$A$37,5,Data!$Y$2:$Y$37) -> 543.7278107 | E6: =SUMIF(Data!$A$2:$A$37,5,Data!$M$2:$M$37) -> 140 | F6: =SUMIF(Data!$A$2:$A$37,5,Data!$AA$2:$AA$37) -> 456 | G6: =SUMIF(Data!$A$2:$A$37,5,Data!$L$2:$L$37) -> 4507.25
A7: Week 6 | B7: =SUMIF(Data!$A$2:$A$37,6,Data!$N$2:$N$37) -> 4003 | C7: =SUMIF(Data!$A$2:$A$37,6,Data!$X$2:$X$37) -> 1820 | D7: =SUMIF(Data!$A$2:$A$37,6,Data!$Y$2:$Y$37) -> 559.7278107 | E7: =SUMIF(Data!$A$2:$A$37,6,Data!$M$2:$M$37) -> 140 | F7: =SUMIF(Data!$A$2:$A$37,6,Data!$AA$2:$AA$37) -> 456 | G7: =SUMIF(Data!$A$2:$A$37,6,Data!$L$2:$L$37) -> 4142.25
A8: Week 7 | B8: =SUMIF(Data!$A$2:$A$37,7,Data!$N$2:$N$37) -> 3552.25 | C8: =SUMIF(Data!$A$2:$A$37,7,Data!$X$2:$X$37) -> 1820 | D8: =SUMIF(Data!$A$2:$A$37,7,Data!$Y$2:$Y$37) -> 575.7278107 | E8: =SUMIF(Data!$A$2:$A$37,7,Data!$M$2:$M$37) -> 140 | F8: =SUMIF(Data!$A$2:$A$37,7,Data!$AA$2:$AA$37) -> 456 | G8: =SUMIF(Data!$A$2:$A$37,7,Data!$L$2:$L$37) -> 4007.25
A9: Week 8 | B9: =SUMIF(Data!$A$2:$A$37,8,Data!$N$2:$N$37) -> 3852.25 | C9: =SUMIF(Data!$A$2:$A$37,8,Data!$X$2:$X$37) -> 1820 | D9: =SUMIF(Data!$A$2:$A$37,8,Data!$Y$2:$Y$37) -> 591.7278107 | E9: =SUMIF(Data!$A$2:$A$37,8,Data!$M$2:$M$37) -> 140 | F9: =SUMIF(Data!$A$2:$A$37,8,Data!$AA$2:$AA$37) -> 456 | G9: =SUMIF(Data!$A$2:$A$37,8,Data!$L$2:$L$37) -> 5007.25
A10: Week 9 | B10: =SUMIF(Data!$A$2:$A$37,9,Data!$N$2:$N$37) -> 4402.25 | C10: =SUMIF(Data!$A$2:$A$37,9,Data!$X$2:$X$37) -> 1820 | D10: =SUMIF(Data!$A$2:$A$37,9,Data!$Y$2:$Y$37) -> 607.7278107 | E10: =SUMIF(Data!$A$2:$A$37,9,Data!$M$2:$M$37) -> 140 | F10: =SUMIF(Data!$A$2:$A$37,9,Data!$AA$2:$AA$37) -> 456 | G10: =SUMIF(Data!$A$2:$A$37,9,Data!$L$2:$L$37) -> 4807.25

Sheet Instructions
B2: If you can't see everything. You can click the + or - button in the bottom right to zoom in or out. | O2: TYPES OF REPORTS!
Q3: *Have "Normalized" be a TOGGLE or CHECK box
P4: Weekly Sales | R4: *this disables the normalized check box
F6: *BEFORE COPYING | P6: FIGURE OUT R ON UPDATING DATA
G7: hyperlinks
G8: data validation | P8: Make an array for each item in the chart?
G9: links
P13: *ERROR MESSAGE WHEN THERE IS A DISCREPANCY!
P15: *Get rid of sumif functions
B16: Working on getting a pie chart to appear for each day during "summarize"
P17: *Have a text box that tells them to create a report when it's empty!
P19: *MAKE IT NOT Put zEROS on the graph
G20: *Other ISSUES | Q20: Do loop that increases the datarange if there isn't a zero
H21: Need to have ability to show/hide rows while unprotected | P21: *Make all the buttons depressed if something changes

Sheet Ideas
B2: Questions | I2: **Don't forget the discrepancy
B3: -Do you have the new menu | I3: Use data validation to give instructions for the entry of all data
B4: -Need to prepare the spreadsheets for entry by week 1
I5: Get the worksheets in…
J6: Have a button to update the data?
K7: and a notification confirming it updated?
B8: Feedback
C9: Total Sales was very confusing
C10: Total Items Sold
C11: Write Instructions & Procedures
C12: Help with Maintenance
L13: YOU NEED AN ERROR CHECKING LOOP FOR POPUlATING THE ARRAY IF NOTHING IS THERE!!!!
C14: Write INTERFACE with hyperlinks | M14: THE DAILYSALES AND DAILYSOLD ARRAYS GET SCREWED UP IF THE VALUE IS NULL
C16: Average Check | M16: MSGBOX : "PLEASE FILL OUT THE FORM BEFORE UPDATING"
C17: Seat Turnover
C18: Weekly Sales
C19: Food Cost %?
D20: Computrition | J20: When a cell changes then the checkmark goes away
C22: HIDE the numbers that aren't used
M23: Need a change event for when any price OR menu item changes…
C24: WRITE the instructions for protecting the sheet
C26: Create hyperlinks | M26: Have a clear all button that someone can push
C28: Have a button to create charts | M28: the check boxes are moving with the summarize…
C31: April 9th | D31: together
C32: April 12th
C33: 13
C34: 14
C35: 15
C37: Needs to be ULTRA easy to use and read and see
C40: Instructions for Maintenance
